Department Family,Entity,Date,Expense Type,Expense Area,Supplier,Transaction Number,Total
Ministry of Defence,Ministry of Defence,21/05/2010,Property leases,Land Forces,ASPIRE DEFENCE LIMITED,637577,16698449.19
Ministry of Defence,Ministry of Defence,19/05/2010,Government Procurement Card,MOD,Barclays Bank PLC,10648,11795443.17
Ministry of Defence,Ministry of Defence,19/05/2010,Estate management,Defence Estates,DEBUT SERVICES (SOUTH WEST)LIMITED,636283,11492173.46
Ministry of Defence,Ministry of Defence,10/05/2010,Design services and minor equipment purchases,Defence Equipment & Support,DEVONPORT ROYAL DOCKYARD LIMITED,631173,10634434.77
Ministry of Defence,Ministry of Defence,19/05/2010,Estate management,Defence Estates,MODERN HOUSING SOLUTIONS (PRIME)LIMITED,636482,9407098.81
Ministry of Defence,Ministry of Defence,25/05/2010,Miscellaneous Administration Costs,Navy Command,VT FLAGSHIP LTD,640388,7103276.33
Ministry of Defence,Ministry of Defence,17/05/2010,Estate management,Central TLB,MODUS SERVICES LIMITED,635096,6849318.68
Ministry of Defence,Ministry of Defence,19/05/2010,Government Procurement Card,MOD,Barclays Bank PLC,10647,6164129.01
Ministry of Defence,Ministry of Defence,14/05/2010,Estate management,Defence Estates,DEBUT SERVICES (SOUTH WEST)LIMITED,634121,5963579.41
Ministry of Defence,Ministry of Defence,19/05/2010,Estate management,Defence Estates,LANDMARC SUPPORT SERVICES LIMITED,636450,5759120.44
Ministry of Defence,Ministry of Defence,07/05/2010,Transport hire charges,Defence Equipment & Support,SD MARINE SERVICES LIMITED,630850,5544853.88
Ministry of Defence,Ministry of Defence,26/05/2010,Design services and minor equipment purchases,Central TLB,METEOROLOGICAL OFFICE,640834,5543166.67
Ministry of Defence,Ministry of Defence,11/05/2010,Estate management,Defence Estates,BABCOCK DYNCORP LIMITED,631822,5179176
Ministry of Defence,Ministry of Defence,18/05/2010,Estate management,Land Forces,HOLDFAST TRAINING SERVICES LTD,635717,4992079
Ministry of Defence,Defence Support Group,24/05/2010,Dividends Payable,Corporate,THE ACCOUNTING OFFIC,424845,4500000
Ministry of Defence,Ministry of Defence,21/05/2010,Medical treatment & stores and welfare services.,Central TLB,SERVICES SOUND & VISION CORPORATION,638204,4178491
Ministry of Defence,Ministry of Defence,26/05/2010,Estate management,Defence Estates,CARILLIONENTERPRISE LIMITED,640547,3830985.13
Ministry of Defence,Ministry of Defence,07/05/2010,Food and clothing,Defence Equipment & Support,PURPLE FOODSERVICE SOLUTIONS LIMITED,630801,3816924.2
Ministry of Defence,Ministry of Defence,05/05/2010,Estate management,Defence Estates,TURNER ESTATE SOLUTIONS LIMITED,629163,3751522
Ministry of Defence,Ministry of Defence,21/05/2010,Property leases,Defence Estates,COAST TO COAST WATER LTD,637701,3396287.38
Ministry of Defence,Ministry of Defence,19/05/2010,Fees for professional services,Land Forces,HP ENTERPRISE SERVICES DEFENCE & SECURITY UK LIMITED,636404,3324829
Ministry of Defence,Ministry of Defence,19/05/2010,Payments made in advance,Land Forces,ASPIRE DEFENCE LIMITED,636179,3152518.32
Ministry of Defence,Ministry of Defence,17/05/2010,Transport hire charges,Air Command,FBS LIMITED,634954,3020274.58
Ministry of Defence,Ministry of Defence,12/05/2010,Insurance,Central TLB,GALLAGHER BASSETT INTERNATIONAL LTD.,632687,2998557.02
Ministry of Defence,Ministry of Defence,20/05/2010,Property leases,Defence Estates,BREY UTILITIES LIMITED,636973,2747600.57
Ministry of Defence,Ministry of Defence,21/05/2010,Purchase of buildings and military equipment ,Defence Equipment & Support,DEVONPORT ROYAL DOCKYARD LIMITED,637737,2625102.9
Ministry of Defence,Ministry of Defence,12/05/2010,Property leases,Defence Estates,BREY UTILITIES LIMITED,632525,2599085.28
Ministry of Defence,Ministry of Defence,07/05/2010,Property leases,Defence Estates,COAST TO COAST WATER LTD,630278,2572699.45
Ministry of Defence,Ministry of Defence,26/05/2010,Rent and rates,Defence Estates,BimA,AP2,2508744.37
Ministry of Defence,Ministry of Defence,17/05/2010,Transport hire charges,Land Forces,VT LAND (WHITEFLEET MANAGEMENT) LTD,635452,2401326.05
Ministry of Defence,Ministry of Defence,05/05/2010,Design services and minor equipment purchases,Air Command,SERCO LIMITED,629078,2206610.75
Ministry of Defence,Ministry of Defence,12/05/2010,Fees for professional services,Central TLB,DEFENCE MANAGEMENT (WATCHFIELD) LIMITED,632614,2205437.16
Ministry of Defence,Ministry of Defence,24/05/2010,Estate management,Defence Estates,BABCOCK DYNCORP LIMITED,638439,2205251.16
Ministry of Defence,Ministry of Defence,21/05/2010,Estate management,Defence Estates,INTERSERVE (DEFENCE) LTD,5000035285,2168716.65
Ministry of Defence,Ministry of Defence,13/05/2010,Purchase of buildings and military equipment ,Defence Estates,DEBUT SERVICES LIMITED,633366,2113567.56
Ministry of Defence,Ministry of Defence,25/05/2010,Purchase of buildings and military equipment ,Land Forces,NATO,5000035517,2003780.72
Ministry of Defence,Ministry of Defence,17/05/2010,Transport hire charges,Air Command,VT LAND (WHITEFLEET MANAGEMENT) LTD,635452,1836995.2
Ministry of Defence,Ministry of Defence,13/05/2010,Estate management,Command Joint Operations,SODEXO LTD,5000034922,1831080.88
Ministry of Defence,Ministry of Defence,10/05/2010,Food and clothing,Defence Equipment & Support,PURPLE FOODSERVICE SOLUTIONS LIMITED,631553,1828353.09
Ministry of Defence,Ministry of Defence,18/05/2010,Medical treatment & stores and welfare services.,Central TLB,UNIVERSITY HOSPITAL BIRMINGHAM NHS FOUNDATION TRUST,636108,1802538.48
Ministry of Defence,Ministry of Defence,04/05/2010,"Purchase of munitions, other inventory or fuel",Defence Equipment & Support,BP OIL INTERNATIONAL LIMITED,2000008107,1683970.46
Ministry of Defence,Defence Science and Technology Laboratory,21/05/2010,Facility Management Costs,Infrastructure,SERCO LIMITED,V - 9000123102 - 00081456,1654236.04
Ministry of Defence,Ministry of Defence,14/05/2010,Medical treatment & stores and welfare services.,Central TLB,UNIVERSITY HOSPITAL BIRMINGHAM NHS FOUNDATION TRUST,634679,1635812.84
Ministry of Defence,Ministry of Defence,27/05/2010,Purchase of buildings and military equipment ,Defence Estates,DEBUT SERVICES LIMITED,641367,1626994.04
Ministry of Defence,Defence Science and Technology Laboratory,07/05/2010,Facility Management Costs,Infrastructure,SERCO LIMITED,V - 9000122678 - 00079619,1626664.69
Ministry of Defence,Ministry of Defence,28/05/2010,Grants to Reserves Forces and Cadets Association.,Defence Estates,COUNCIL OF RESERVE FORCES' AND CADETS' ASSOCIATIONS,642030,1525530.21
Ministry of Defence,Ministry of Defence,14/05/2010,Transport hire charges,Air Command,VT AEROSPACE LIMITED,634696,1523011
Ministry of Defence,Ministry of Defence,21/05/2010,Fees for professional services,Central TLB,HP ENTERPRISE SERVICES DEFENCE & SECURITY UK LIMITED,637837,1479802.63
Ministry of Defence,Ministry of Defence,26/05/2010,Estate management,Defence Estates,PRIDE (SERP) LTD,641004,1469259.86
Ministry of Defence,Ministry of Defence,12/05/2010,Design services and minor equipment purchases,Defence Equipment & Support,VECTOR AEROSPACE INTERNATIONAL  LIMITED,633169,1387948.99
Ministry of Defence,Ministry of Defence,18/05/2010,Externally delivered education and training.,Central TLB,CRANFIELD UNIVERSITY,635617,1343526.83
Ministry of Defence,Ministry of Defence,21/05/2010,Payment of utilities,Land Forces,TOTAL GAS & POWER LIMITED,638312,1318560.28
Ministry of Defence,Ministry of Defence,07/05/2010,Property leases,Defence Equipment & Support,FALCON SUPPORT SERVICES LIMITED,630380,1299871.76
Ministry of Defence,Ministry of Defence,06/05/2010,Food and clothing,Defence Equipment & Support,PURPLE FOODSERVICE SOLUTIONS LIMITED,629824,1259316.37
Ministry of Defence,Ministry of Defence,14/05/2010,Purchase of buildings and military equipment ,Defence Estates,CARILLIONENTERPRISE LIMITED,634057,1250282.1
Ministry of Defence,Ministry of Defence,19/05/2010,Fees for professional services,Central TLB,SERCO LIMITED,636740,1237743.68
Ministry of Defence,Ministry of Defence,18/05/2010,Rent and rates,Central TLB,BAKER & MCKENZIE LLP,635533,1225950
Ministry of Defence,Ministry of Defence,19/05/2010,Purchase of buildings and military equipment ,Defence Estates,DEBUT SERVICES LIMITED,636284,1206028.96
Ministry of Defence,Ministry of Defence,17/05/2010,Estate management,Defence Estates,TURNER ESTATE SOLUTIONS LIMITED,635431,1170155.02
Ministry of Defence,Ministry of Defence,06/05/2010,Purchase of buildings and military equipment ,Defence Estates,INTERSERVE (DEFENCE) LTD,629569,1147952.77
Ministry of Defence,Ministry of Defence,07/05/2010,Estate management,Defence Estates,BABCOCK DYNCORP LIMITED,630155,1133035
Ministry of Defence,Ministry of Defence,19/05/2010,Insurance,Central TLB,ROYAL & SUN ALLIANCE INSURANCE  PLC,636714,1130687.83
Ministry of Defence,Ministry of Defence,14/05/2010,Property leases,Defence Estates,VEOLIA WATER NEVIS LIMITED,634690,1128033.82
Ministry of Defence,Ministry of Defence,04/05/2010,Design services and minor equipment purchases,Air Command,SERCO LIMITED,628413,1088879.06
Ministry of Defence,Ministry of Defence,26/05/2010,Estate management,Defence Estates,TURNER ESTATE SOLUTIONS LIMITED,641158,1072646.06
Ministry of Defence,Ministry of Defence,05/05/2010,Estate management,Defence Estates,MODERN HOUSING SOLUTIONS (PRIME)LIMITED,628843,1057468.44
Ministry of Defence,Ministry of Defence,21/05/2010,Purchase of buildings and military equipment ,Land Forces,HOLDFAST TRAINING SERVICES LTD,637832,1046077.29
Ministry of Defence,Ministry of Defence,25/05/2010,Estate management,Defence Estates,BABCOCK DYNCORP LIMITED,639767,1033247.48
Ministry of Defence,Ministry of Defence,27/05/2010,Fees for professional services,Central TLB,IBM UNITED KINGDOM LIMITED,641488,1029894
Ministry of Defence,Ministry of Defence,06/05/2010,Purchase of buildings and military equipment ,Defence Estates,DEBUT SERVICES LIMITED,629396,1019232.3
Ministry of Defence,Ministry of Defence,18/05/2010,Property leases,Central TLB,MINERVA EDUCATION AND TRAINING  LIMITED,635795,1018956.82
Ministry of Defence,Ministry of Defence,05/05/2010,Purchase of general transport equipment,Defence Equipment & Support,TERBERG DTS (UK) LIMITED,629119,1007389.32
Ministry of Defence,Ministry of Defence,26/05/2010,Design services and minor equipment purchases,Defence Equipment & Support,VECTOR AEROSPACE INTERNATIONAL  LIMITED,641174,995733.83
Ministry of Defence,Ministry of Defence,11/05/2010,Externally delivered education and training.,Air Command,VT LAND LIMITED,632401,987917.75
Ministry of Defence,Ministry of Defence,19/05/2010,Government Procurement Card,MOD,Barclays Bank PLC,10649,979254.86
Ministry of Defence,Defence Science and Technology Laboratory,28/05/2010,Repairs & Maintenance,Infrastructure,SERCO LIMITED,V - 9000123284 - 00082216,964915.42
Ministry of Defence,Ministry of Defence,27/05/2010,Payment of utilities,Land Forces,SSE ENERGY SUPPLY LIMITED,641781,957031.33
Ministry of Defence,Ministry of Defence,21/05/2010,Purchase of buildings and military equipment ,Defence Estates,DEBUT SERVICES LIMITED,637729,950181.28
Ministry of Defence,Ministry of Defence,27/05/2010,Purchase of buildings and military equipment ,Defence Estates,TRANT CONSTRUCTION LTD,641830,922940.86
Ministry of Defence,Ministry of Defence,05/05/2010,Estate management,Defence Estates,INTERSERVE (DEFENCE) LTD,5000034385,915760.62
Ministry of Defence,Ministry of Defence,10/05/2010,Payment of utilities,Defence Equipment & Support,DEVONPORT ROYAL DOCKYARD LIMITED,631173,897381.27
Ministry of Defence,Ministry of Defence,13/05/2010,Purchase of buildings and military equipment ,Defence Estates,CARILLIONENTERPRISE LIMITED,633316,880861.1
Ministry of Defence,Defence Science and Technology Laboratory,28/05/2010,IT Hardware,Infrastructure,SERCO LIMITED,V - 9000123284 - 00082062,869783.4
Ministry of Defence,Ministry of Defence,07/05/2010,Payment of utilities,Land Forces,SSE ENERGY SUPPLY LIMITED,630898,867111.75
Ministry of Defence,Ministry of Defence,17/05/2010,Transport hire charges,Land Forces,FBS LIMITED,634954,851490.12
Ministry of Defence,Ministry of Defence,05/05/2010,Design services and minor equipment purchases,Defence Equipment & Support,VT AEROSPACE LIMITED,629183,834099.44
Ministry of Defence,Ministry of Defence,17/05/2010,Estate management,Defence Estates,German Construction Authority,AP2,824622.39
Ministry of Defence,Ministry of Defence,05/05/2010,Purchase of buildings and military equipment ,Defence Estates,TRANT CONSTRUCTION LTD,629158,811862.14
Ministry of Defence,Ministry of Defence,10/05/2010,Purchase of buildings and military equipment ,Defence Equipment & Support,QINETIQ LIMITED,631556,801102
Ministry of Defence,Ministry of Defence,07/05/2010,Estate management,Air Command,TURNER FACILITIES MANAGEMENT LTD,630972,798908.68
Ministry of Defence,Ministry of Defence,26/05/2010,Payment of utilities,Land Forces,TOTAL GAS & POWER LIMITED,641147,790616.35
Ministry of Defence,Ministry of Defence,11/05/2010,Payment of utilities,Land Forces,SSE ENERGY SUPPLY LIMITED,632317,775161.4
Ministry of Defence,Ministry of Defence,11/05/2010,Purchase of buildings and military equipment ,Defence Estates,DEBUT SERVICES LIMITED,631923,769837
Ministry of Defence,Ministry of Defence,14/05/2010,Rent and rates,Defence Estates,THE HIGHLAND COUNCIL,634644,760508
Ministry of Defence,Met Office,10/05/2010,Services,Government Business,Logica Uk Limited,291176,753745.22
Ministry of Defence,Defence Science and Technology Laboratory,21/05/2010,Sub Contracted Work,Programme Office,EPSRC,V - 9000122944 - 00081770,750626.82
Ministry of Defence,Ministry of Defence,18/05/2010,Estate management,Defence Equipment & Support,BABCOCK MARINE (ROSYTH) LTD,635518,750052.88
Ministry of Defence,Ministry of Defence,07/05/2010,Medical treatment & stores and welfare services.,Land Forces,SSAFA GSTT CARE LLP,630896,747985.7
Ministry of Defence,Ministry of Defence,25/05/2010,Estate management,Air Command,TURNER FACILITIES MANAGEMENT LTD,640371,747252.31
Ministry of Defence,Ministry of Defence,20/05/2010,Estate management,Defence Estates,INTERSERVE (DEFENCE) LTD,5000035178,745838.98
Ministry of Defence,Defence Science and Technology Laboratory,14/05/2010,IS Support Service,Infrastructure,SERCO LIMITED,V - 9000122901 - 00080689,739727.39
Ministry of Defence,Ministry of Defence,19/05/2010,Estate management,Defence Estates,MODERN HOUSING SOLUTIONS (PRIME)LIMITED,636483,733031.83
Ministry of Defence,Ministry of Defence,07/05/2010,Property leases,Defence Estates,TRICOMM HOUSING LIMITED,630967,727187.43
Ministry of Defence,Defence Science and Technology Laboratory,07/05/2010,Sub Contracted Research,Programme Office,QINETIQ LIMITED,V - 9000122676 - 00080526,725000
Ministry of Defence,Ministry of Defence,26/05/2010,Estate management,Command Joint Operations,SERCO LIMITED,641063,718369.1
Ministry of Defence,Ministry of Defence,21/05/2010,Rent and rates,Defence Estates,WILTSHIRE COUNCIL,638383,712656.66
Ministry of Defence,Ministry of Defence,11/05/2010,Estate management,Defence Estates,PRIDE (SERP) LTD,632238,712224
Ministry of Defence,Ministry of Defence,11/05/2010,Purchase of buildings and military equipment ,Defence Estates,PRIDE (SERP) LTD,632238,708617
Ministry of Defence,Ministry of Defence,04/05/2010,Estate management,Land Forces,SODEXO LTD,628426,707337.51
Ministry of Defence,Ministry of Defence,05/05/2010,Purchase of buildings and military equipment ,Defence Estates,MODERN HOUSING SOLUTIONS (PRIME)LIMITED,628843,698540.07
Ministry of Defence,Ministry of Defence,04/05/2010,Purchase of buildings and military equipment ,Defence Estates,VSM ESTATES LIMITED,628485,681477.68
Ministry of Defence,Ministry of Defence,14/05/2010,Payment of utilities,Defence Equipment & Support,SSE ENERGY SUPPLY LIMITED,634610,677378.26
Ministry of Defence,Ministry of Defence,25/05/2010,Estate management,Air Command,VT FLAGSHIP LTD,640388,676955.78
Ministry of Defence,Ministry of Defence,19/05/2010,Purchase of buildings and military equipment ,Defence Estates,DEBUT SERVICES (SOUTH WEST)LIMITED,636283,675916.74
Ministry of Defence,Ministry of Defence,06/05/2010,Purchase of buildings and military equipment ,Defence Estates,DEBUT SERVICES (SOUTH WEST)LIMITED,629395,670703.37
Ministry of Defence,Ministry of Defence,24/05/2010,Food and clothing,Land Forces,ARAMARK LTD,638427,666470.82
Ministry of Defence,Ministry of Defence,12/05/2010,Purchase of buildings and military equipment ,Defence Estates,CARILLIONENTERPRISE LIMITED,632558,650593.58
Ministry of Defence,Ministry of Defence,17/05/2010,Purchase of buildings and military equipment ,Defence Estates,DEBUT SERVICES (SOUTH WEST)LIMITED,634887,618299.14
Ministry of Defence,Ministry of Defence,06/05/2010,Payment of utilities,Land Forces,TOTAL GAS & POWER LIMITED,629986,589045.99
Ministry of Defence,Ministry of Defence,26/05/2010,Purchase of buildings and military equipment ,Defence Estates,TURNER ESTATE SOLUTIONS LIMITED,641158,589041.01
Ministry of Defence,Ministry of Defence,28/05/2010,Fees for professional services,Land Forces,CENTRAL OFFICE OF INFORMATION,2.00E+11,572554.04
Ministry of Defence,Ministry of Defence,11/05/2010,Property leases,Land Forces,ASPIRE DEFENCE LIMITED,631811,567483.57
Ministry of Defence,Ministry of Defence,11/05/2010,Fees for professional services,Land Forces,VT LAND LIMITED,632401,566737.71
Ministry of Defence,Ministry of Defence,11/05/2010,Estate management,Defence Estates,SERCO LIMITED,632289,566157.42
Ministry of Defence,Ministry of Defence,27/05/2010,"Public relations, including marketing and advertising.",Navy Command,CENTRAL OFFICE OF INFORMATION,2.00E+11,565000
Ministry of Defence,Ministry of Defence,05/05/2010,Externally delivered education and training.,Land Forces,VT TRAINING LIMITED,135073,547932.63
Ministry of Defence,Ministry of Defence,27/05/2010,IT and communication services,Land Forces,AIRWAVE SOLUTIONS LIMITED,641229,541287.97
Ministry of Defence,Ministry of Defence,07/05/2010,Purchase of inventory and services ,Defence Equipment & Support,ITURRI SA,3000004169,533019.93
Ministry of Defence,Ministry of Defence,19/05/2010,Purchase of buildings and military equipment ,Defence Estates,MODERN HOUSING SOLUTIONS (PRIME)LIMITED,636482,531348.95
Ministry of Defence,Defence Science and Technology Laboratory,28/05/2010,Sub Contracted Work,Programme Office,PHOTONIS FRANCE SAS,V - 0000000496 - 00082591,524304.63
Ministry of Defence,Ministry of Defence,13/05/2010,Payment of utilities,Air Command,TOTAL GAS & POWER LIMITED,633879,524118.25
Ministry of Defence,Ministry of Defence,06/05/2010,Purchase of buildings and military equipment ,Defence Estates,MODERN HOUSING SOLUTIONS (PRIME)LIMITED,629667,522944.79
Ministry of Defence,Met Office,21/05/2010,06 Accommodation,Chief Financial Officer,Stratus Integrated  Ltd,292179,516081.55
Ministry of Defence,Ministry of Defence,14/05/2010,Food and clothing,Land Forces,COMPASS CONTRACT SERVICES (U K)LIMITED,634091,509788.51
Ministry of Defence,Ministry of Defence,11/05/2010,Estate management,Defence Estates,TURNER ESTATE SOLUTIONS LIMITED,632381,509121.82
Ministry of Defence,Ministry of Defence,19/05/2010,Estate management,Air Command,TURNER FACILITIES MANAGEMENT LTD,636833,504820.58
Ministry of Defence,Ministry of Defence,25/05/2010,Fuel for military use,Land Forces,ARVAL UK LTD,639749,498030.3
Ministry of Defence,Ministry of Defence,06/05/2010,Estate management,Land Forces,SODEXO LTD,629907,497481.31
Ministry of Defence,Ministry of Defence,07/05/2010,Estate management,Defence Estates,TURNER ESTATE SOLUTIONS LIMITED,630971,494761.08
Ministry of Defence,Ministry of Defence,28/05/2010,Payment of utilities,Land Forces,STADTWERKE GUETERSLOH GMBH,5000035769,494523.14
Ministry of Defence,Ministry of Defence,14/05/2010,Payment of utilities,Land Forces,TOTAL GAS & POWER LIMITED,634658,482706.93
Ministry of Defence,Ministry of Defence,20/05/2010,Design services and minor equipment purchases,Air Command,COMPASS GROUP UK AND IRELAND LIMITED,637026,480769.92
Ministry of Defence,Ministry of Defence,07/05/2010,Design services and minor equipment purchases,Air Command,SERCO LIMITED,630858,473061.57
Ministry of Defence,Ministry of Defence,04/05/2010,Externally delivered education and training.,Land Forces,WILTSHIRE AND SOMERSET   COLLEGES PARTNERSHIP LIMITED,628495,472382.01
Ministry of Defence,Ministry of Defence,27/05/2010,Design services and minor equipment purchases,Air Command,SERCO LIMITED,641741,448535
Ministry of Defence,Ministry of Defence,18/05/2010,Purchase of buildings and military equipment ,Defence Estates,CARILLIONENTERPRISE LIMITED,635579,446860.09
Ministry of Defence,Ministry of Defence,12/05/2010,Fuel for military use,Land Forces,ARVAL UK LTD,632471,446194.26
Ministry of Defence,Ministry of Defence,17/05/2010,Transport hire charges,Defence Equipment & Support,VT LAND (WHITEFLEET MANAGEMENT) LTD,635452,441701.36
Ministry of Defence,Ministry of Defence,05/05/2010,Purchase of buildings and military equipment ,Defence Estates,PRIDE (SERP) LTD,629021,434346.98
Ministry of Defence,Ministry of Defence,25/05/2010,Rent and rates,Defence Estates,THE HEREFORDSHIRE COUNCIL,640342,425656.02
Ministry of Defence,Ministry of Defence,06/05/2010,Design services and minor equipment purchases,Air Command,BABCOCK SUPPORT SERVICES LIMITED,629272,425611.17
Ministry of Defence,Met Office,07/05/2010,Services,Science And Technology,Bt Plc,291295,419992.48
Ministry of Defence,Defence Science and Technology Laboratory,14/05/2010,Sub Contracted Research,Programme Office,QINETIQ LIMITED,V - 9000122900 - 00080748,419909.45
Ministry of Defence,Ministry of Defence,19/05/2010,Estate management,Central TLB,MODUS SERVICES LIMITED,636484,411203.67
Ministry of Defence,Ministry of Defence,18/05/2010,Medical treatment & stores and welfare services.,Central TLB,PETERBOROUGH AND STAMFORD  HOSPITALS NHS FOUNDATION TRUST,635945,404763.46
Ministry of Defence,Ministry of Defence,21/05/2010,Estate management,Land Forces,COMPASS CONTRACT SERVICES (U K)LIMITED,637704,402759.46
Ministry of Defence,Ministry of Defence,06/05/2010,Food and clothing,Land Forces,ISS MEDICLEAN LTD,629570,402667.81
Ministry of Defence,Ministry of Defence,21/05/2010,Rent and rates,Central TLB,CITY OF WESTMINSTER,637694,399731.99
Ministry of Defence,Ministry of Defence,21/05/2010,Estate management,Defence Estates,TURNER ESTATE SOLUTIONS LIMITED,638324,394226.85
Ministry of Defence,Ministry of Defence,20/05/2010,Estate management,Defence Estates,SERCO LIMITED,637394,391719.22
Ministry of Defence,Ministry of Defence,13/05/2010,Estate management,Defence Estates,DEBUT SERVICES LIMITED,633366,389871.21
Ministry of Defence,Ministry of Defence,06/05/2010,Estate management,Defence Estates,MODERN HOUSING SOLUTIONS (PRIME)LIMITED,629667,385263.6
Ministry of Defence,Ministry of Defence,05/05/2010,Fees for professional services,Central TLB,TNT UK LIMITED,629151,381006.83
Ministry of Defence,Ministry of Defence,25/05/2010,Design services and minor equipment purchases,Air Command,VT FLAGSHIP LTD,640388,377997.37
Ministry of Defence,Ministry of Defence,19/05/2010,Food and clothing,Land Forces,ARAMARK LTD,636174,377805.31
Ministry of Defence,Ministry of Defence,27/05/2010,Estate management,Defence Estates,INTERSERVE (DEFENCE) LTD,5000035643,377720.91
Ministry of Defence,Ministry of Defence,27/05/2010,Fees for professional services,Defence Estates,IMSERV EUROPE LIMITED,641493,377494.28
Ministry of Defence,Ministry of Defence,17/05/2010,Externally delivered education and training.,Land Forces,DEFLOG VQ TRUST LIMITED,634892,375588.98
Ministry of Defence,Ministry of Defence,11/05/2010,Estate management,Land Forces,ARAMARK LTD,631805,374407
Ministry of Defence,Ministry of Defence,20/05/2010,Purchase of buildings and military equipment ,Defence Estates,PRIDE (SERP) LTD,637352,360682
Ministry of Defence,Ministry of Defence,11/05/2010,Purchase of inventory and services ,Defence Equipment & Support,BOC LIMITED,631848,359766.93
Ministry of Defence,Ministry of Defence,14/05/2010,Property leases,Defence Estates,COVESEA LIMITED,634100,359693.88
Ministry of Defence,Ministry of Defence,05/05/2010,Payment of utilities,Air Command,SSE ENERGY SUPPLY LIMITED,629100,359569.93
Ministry of Defence,Ministry of Defence,07/05/2010,Payment of utilities,Air Command,SSE ENERGY SUPPLY LIMITED,630898,349589.89
Ministry of Defence,Ministry of Defence,10/05/2010,Purchase of inventory and services ,Defence Equipment & Support,ITURRI SA,3000004175,347456.18
Ministry of Defence,Ministry of Defence,18/05/2010,Design services and minor equipment purchases,Air Command,SERCO LIMITED,636019,346088.67
Ministry of Defence,Ministry of Defence,06/05/2010,Purchase of buildings and military equipment ,Defence Estates,PRIDE (SERP) LTD,629820,335310.73
Ministry of Defence,Ministry of Defence,06/05/2010,Estate management,Defence Estates,MODERN HOUSING SOLUTIONS (PRIME)LIMITED,629668,333891.39
Ministry of Defence,Ministry of Defence,14/05/2010,Payment of utilities,Air Command,SSE ENERGY SUPPLY LIMITED,634610,326629.25
Ministry of Defence,Ministry of Defence,05/05/2010,Purchase of plant and machinery,Defence Equipment & Support,LEICA GEOSYSTEMS LTD,628803,318726.66
Ministry of Defence,Ministry of Defence,07/05/2010,Estate management,Defence Estates,INTERSERVE (DEFENCE) LTD,630474,318674.72
Ministry of Defence,Ministry of Defence,20/05/2010,Estate management,Land Forces,ASPIRE DEFENCE LIMITED,636922,314882.87
Ministry of Defence,Ministry of Defence,17/05/2010,Transport hire charges,Navy Command,VT LAND (WHITEFLEET MANAGEMENT) LTD,635452,314051.94
Ministry of Defence,Ministry of Defence,06/05/2010,Purchase of inventory and services ,Defence Equipment & Support,HESCO BASTION LTD,629544,312638.36
Ministry of Defence,Ministry of Defence,14/05/2010,Payment of utilities,Air Command,TOTAL GAS & POWER LIMITED,634658,312373.1
Ministry of Defence,Ministry of Defence,14/05/2010,Medical treatment & stores and welfare services.,Central TLB,PLYMOUTH HOSPITALS NHS TRUST,634522,311667
Ministry of Defence,Ministry of Defence,07/05/2010,Payment of utilities,Land Forces,NEW ENERGIE GMBH,5000034591,306647.43
Ministry of Defence,Ministry of Defence,07/05/2010,Medical treatment & stores and welfare services.,Land Forces,SSAFA GSTT CARE LLP,5000034602,301052.63
Ministry of Defence,Ministry of Defence,21/05/2010,Medical treatment & stores and welfare services.,Central TLB,PETERBOROUGH AND STAMFORD  HOSPITALS NHS FOUNDATION TRUST,638111,299968
Ministry of Defence,Ministry of Defence,24/05/2010,Estate management,Land Forces,ARAMARK LTD,638427,299791.65
Ministry of Defence,Ministry of Defence,14/05/2010,Food and clothing,Land Forces,AVENANCE PLC,633983,297490.75
Ministry of Defence,Ministry of Defence,05/05/2010,Purchase of buildings and military equipment ,Defence Estates,TURNER ESTATE SOLUTIONS LIMITED,629163,297178
Ministry of Defence,Ministry of Defence,19/05/2010,Payments made in advance,Defence Equipment & Support,DEVONPORT ROYAL DOCKYARD LIMITED,636291,294945
Ministry of Defence,Ministry of Defence,28/05/2010,Estate management,Land Forces,HOLDFAST TRAINING SERVICES LTD,642155,294783.68
Ministry of Defence,Ministry of Defence,14/05/2010,Rent and rates,Defence Estates,SOUTH HAMS DISTRICT COUNCIL,634599,294441.37
Ministry of Defence,Ministry of Defence,14/05/2010,Property leases,Land Forces,ASPIRE DEFENCE LIMITED,633976,294257.56
Ministry of Defence,Ministry of Defence,06/05/2010,Purchase of inventory and services ,Defence Equipment & Support,TURNER VIRR & CO. LTD,630003,292934.91
Ministry of Defence,Ministry of Defence,07/05/2010,Externally delivered education and training.,Land Forces,TQ EDUCATION AND TRAINING  LIMITED,630964,292110
Ministry of Defence,Ministry of Defence,10/05/2010,Design services and minor equipment purchases,Air Command,T.G. POWER LTD,631686,290305.23
Ministry of Defence,Ministry of Defence,19/05/2010,International contributions,Defence Equipment & Support,NAMSA,5000035117,289043.48
Ministry of Defence,Ministry of Defence,12/05/2010,Property leases,Defence Estates,BANNOCKBURN HOMES LIMITED,632497,285701.63
Ministry of Defence,Ministry of Defence,07/05/2010,Externally delivered education and training.,Land Forces,WILTSHIRE AND SOMERSET   COLLEGES PARTNERSHIP LIMITED,631006,281527.14
Ministry of Defence,Ministry of Defence,25/05/2010,Estate management,Land Forces,SODEXO LTD,640286,276964.75
Ministry of Defence,Ministry of Defence,05/05/2010,Payments made in advance,Defence Equipment & Support,DEVONPORT ROYAL DOCKYARD LIMITED,628681,276678
Ministry of Defence,Ministry of Defence,11/05/2010,Purchase of buildings and military equipment ,Defence Equipment & Support,ASPIRE DEFENCE LIMITED,631811,271084.2
Ministry of Defence,Ministry of Defence,24/05/2010,Food and clothing,Land Forces,AVENANCE PLC,638435,269102.4
Ministry of Defence,Ministry of Defence,27/05/2010,Payment of utilities,Air Command,TOTAL GAS & POWER LIMITED,641829,261294.8
Ministry of Defence,Ministry of Defence,26/05/2010,Externally delivered education and training.,Air Command,FORSVARETS MATERIELVERK,5000035553,260869.57
Ministry of Defence,Ministry of Defence,25/05/2010,Rent and rates,Defence Equipment & Support,TATUNG (U.K.) LTD,640319,259968.75
Ministry of Defence,Ministry of Defence,11/05/2010,Purchase of buildings and military equipment ,Land Forces,ASPIRE DEFENCE LIMITED,631811,259151.85
Ministry of Defence,Defence Science and Technology Laboratory,21/05/2010,Sub Contracted Research,Programme Office,QINETIQ LIMITED,V - 9000123101 - 00081843,258300
Ministry of Defence,Ministry of Defence,18/05/2010,Food and clothing,Land Forces,COMPASS SERVICES (U.K.) LIMITED,635604,256552.25
Ministry of Defence,Ministry of Defence,14/05/2010,Externally delivered education and training.,Land Forces,ROYAL ARTILLERY CENTRE FOR PERSONAL DEVELOPMENT,634557,254318.94
Ministry of Defence,Ministry of Defence,28/05/2010,Payment of utilities,Land Forces,STADTWERKE BOEHMETAL GMBH,5000035768,251233.05
Ministry of Defence,Defence Support Group,26/05/2010,Equipment Support-Projects,Large Aircraft,OPCO LIMITED,10113655,250792.95
Ministry of Defence,Ministry of Defence,05/05/2010,Purchase of buildings and military equipment ,Defence Estates,DEBUT SERVICES (SOUTH WEST)LIMITED,628675,250091.37
Ministry of Defence,Ministry of Defence,21/05/2010,Property leases,Defence Estates,TRICOMM HOUSING (PORTSMOUTH) LIMITED,638318,246445.16
Ministry of Defence,Ministry of Defence,12/05/2010,Estate management,Defence Estates,INTERSERVE (DEFENCE) LTD,5000034807,244804.22
Ministry of Defence,Ministry of Defence,05/05/2010,Purchase of inventory and services ,Defence Equipment & Support,BLAKLEY ELECTRICS LTD,628598,244328.77
Ministry of Defence,Defence Science and Technology Laboratory,21/05/2010,Sub Contracted Work,Operations,LOCKHEED MARTIN UK INSYS LIMITED,V - 9000122948 - 00076584,244209.53
Ministry of Defence,Ministry of Defence,04/05/2010,Purchase of inventory and services ,Defence Equipment & Support,TEAM SIMOCO LIMITED,628449,244061.84
Ministry of Defence,Ministry of Defence,07/05/2010,Payment of utilities,Air Command,TOTAL GAS & POWER LIMITED,630962,243373.27
Ministry of Defence,Ministry of Defence,21/05/2010,Rent and rates,Defence Estates,RUSHMOOR BOROUGH COUNCIL,638174,241869.24
Ministry of Defence,Ministry of Defence,10/05/2010,Food and clothing,Land Forces,NAVY ARMY AND AIR FORCE INSTITUES (THE),5000034655,240203.89
Ministry of Defence,Ministry of Defence,12/05/2010,Payment of utilities,Air Command,SSE ENERGY SUPPLY LIMITED,633089,238786.45
Ministry of Defence,Ministry of Defence,21/05/2010,Rent and rates,Defence Estates,RICHMONDSHIRE DISTRICT COUNCIL,638152,238146.27
Ministry of Defence,Ministry of Defence,27/05/2010,Medical treatment & stores and welfare services.,Central TLB,SOUTH STAFFORDSHIRE & SHROPSHIRE HEALTHCARE NHS FOUNDATION TRUST,641766,237755
Ministry of Defence,Ministry of Defence,24/05/2010,Purchase of inventory and services ,Land Forces,FORBO FLOORING UK LIMITED,638579,237019.12
Ministry of Defence,Defence Science and Technology Laboratory,07/05/2010,Materials & Equipment,Programme Office,SELEX SENSORS & AIRBORNE SYSTEMS LIMITED,V - 9000122632 - 00075841,235796.65
Ministry of Defence,Defence Science and Technology Laboratory,14/05/2010,IT Software,Infrastructure,ORACLE CORPORATION UK LIMITED,V - 9000122781 - 00080261,234292.43
Ministry of Defence,Ministry of Defence,07/05/2010,Purchase of inventory and services ,Defence Equipment & Support,ANIXTER LIMITED,630122,234138.79
Ministry of Defence,Ministry of Defence,10/05/2010,Medical treatment & stores and welfare services.,Command Joint Operations,NATS (SERVICES) LIMITED,135202,232962.5
Ministry of Defence,Ministry of Defence,26/05/2010,Rent and rates,Central TLB,DEPARTMENT FOR WORK AND PENSIONS,640627,226756.5
Ministry of Defence,Ministry of Defence,20/05/2010,Estate management,Defence Estates,German Construction Authority,AP2,226480.44
Ministry of Defence,Ministry of Defence,07/05/2010,Interest paid PFIs and finance leases,Defence Equipment & Support,FALCON SUPPORT SERVICES LIMITED,630380,226430.46
Ministry of Defence,Ministry of Defence,04/05/2010,"Transportation of personnel, freight and travel expenses",Defence Equipment & Support,DHL GLOBAL FORWARDING (UK)  LIMITED,628145,223482.66
Ministry of Defence,Ministry of Defence,19/05/2010,Transport hire charges,Land Forces,VT LAND (WHITEFLEET MANAGEMENT) LTD,636861,217709.46
Ministry of Defence,Ministry of Defence,18/05/2010,Externally delivered education and training.,Navy Command,VT FLAGSHIP LTD,636124,216594
Ministry of Defence,Ministry of Defence,25/05/2010,Estate management,Air Command,SERCO LIMITED,640278,216119.15
Ministry of Defence,Ministry of Defence,14/05/2010,Transport hire charges,Land Forces,VT LAND (WHITEFLEET MANAGEMENT) LTD,634697,216004.31
Ministry of Defence,Ministry of Defence,19/05/2010,Externally delivered education and training.,Land Forces,WILTSHIRE AND SOMERSET   COLLEGES PARTNERSHIP LIMITED,636874,215571.64
Ministry of Defence,Defence Science and Technology Laboratory,14/05/2010,IT Software,Programme Office,ORACLE CORPORATION UK LIMITED,V - 9000122781 - 00079985,213728.15
Ministry of Defence,Ministry of Defence,05/05/2010,Estate management,Air Command,TURNER FACILITIES MANAGEMENT LTD,629164,213668.99
Ministry of Defence,Defence Science and Technology Laboratory,28/05/2010,Capital Asset expenditure,Infrastructure,SERCO LIMITED,V - 9000123284 - 00082191,212241
Ministry of Defence,Ministry of Defence,13/05/2010,Design services and minor equipment purchases,Air Command,VT AEROSPACE LIMITED,633910,209520.92
Ministry of Defence,Ministry of Defence,10/05/2010,Purchase of buildings and military equipment ,Defence Estates,MORGAN ASHURST PLC,631371,209146.78
Ministry of Defence,Ministry of Defence,04/05/2010,Estate management,Navy Command,SODEXO LTD,628426,209080.26
Ministry of Defence,Ministry of Defence,13/05/2010,Medical treatment & stores and welfare services.,Air Command,SSAFA FAMILY HEALTH SERVICES,633823,208130.5
Ministry of Defence,Ministry of Defence,27/05/2010,IT and communication services,Central TLB,IBM UNITED KINGDOM LIMITED,641488,205690
Ministry of Defence,Ministry of Defence,17/05/2010,Property leases,Defence Estates,WESTERN CHALLENGE HOUSING ASSOCIATION LIMITED,635458,202781.84
Ministry of Defence,Ministry of Defence,06/05/2010,Payments made in advance,Defence Equipment & Support,DEVONPORT ROYAL DOCKYARD LIMITED,629403,202269.81
Ministry of Defence,Ministry of Defence,18/05/2010,Estates - Equipment/Works,Defence Estate - SSG,NORBAIN SD LTD                  ,PMT - 004,202013.77
Ministry of Defence,Ministry of Defence,06/05/2010,Purchase of buildings and military equipment ,Defence Equipment & Support,POYRY ENERGY LIMITED,629815,201558.8
Ministry of Defence,Ministry of Defence,27/05/2010,Payment of utilities,Land Forces,STADTWERKE DETMOLD GMBH,5000035670,200000
Ministry of Defence,Defence Science and Technology Laboratory,28/05/2010,Professional Services,Programme Office,MBDA UK LIMITED,V - 9000123166 - 00076833,199125
Ministry of Defence,Ministry of Defence,20/05/2010,Estate management,Air Command,TURNER FACILITIES MANAGEMENT LTD,637493,197769.98
Ministry of Defence,Ministry of Defence,06/05/2010,Estate management,Command Joint Operations,VEOLIA ES (UK) LIMITED,630040,197589.18
Ministry of Defence,Ministry of Defence,05/05/2010,Purchase of buildings and military equipment ,Defence Estates,MODERN HOUSING SOLUTIONS (PRIME)LIMITED,628842,196343.67
Ministry of Defence,Ministry of Defence,20/05/2010,IT and communication services,Land Forces,QINETIQ LIMITED,637356,195404
Ministry of Defence,Ministry of Defence,20/05/2010,Medical treatment & stores and welfare services.,Central TLB,BMI HEALTHCARE LIMITED,636965,193700
Ministry of Defence,Defence Science and Technology Laboratory,28/05/2010,Sub Contracted Work,Operations,QINETIQ LIMITED,V - 9000123283 - 00081430,193078.47
Ministry of Defence,Ministry of Defence,20/05/2010,Estate management,Defence Estates,INTERSERVE (DEFENCE) LTD,637148,192406.32
Ministry of Defence,Defence Science and Technology Laboratory,14/05/2010,Communications,Infrastructure,BT - DFTS,V - 9000122762 - 00080752,191831.51
Ministry of Defence,Ministry of Defence,19/05/2010,Insurance,Central TLB,GALLAGHER BASSETT INTERNATIONAL LTD.,636362,186150
Ministry of Defence,Ministry of Defence,07/05/2010,IT and communication services,Defence Equipment & Support,GREENROAD TECHNOLOGIES UK  LIMITED,630421,184462.32
Ministry of Defence,Ministry of Defence,07/05/2010,Fees for professional services,Land Forces,HAYMARKET NETWORK LIMITED,630435,184432.35
Ministry of Defence,Ministry of Defence,21/05/2010,Payment of utilities,Land Forces,STADTWERKE BIELEFELD GMBH,5000035335,184328.7
Ministry of Defence,Ministry of Defence,19/05/2010,Estate management,Defence Estates,CARILLIONENTERPRISE LIMITED,636244,182983.44
Ministry of Defence,Ministry of Defence,13/05/2010,Estate management,Defence Estates,SERCO LIMITED,633785,182866.68
Ministry of Defence,Defence Science and Technology Laboratory,14/05/2010,Sub Contracted Work,Programme Office,DETICA LIMITED,V - 9000122748 - 00081047,179540.38
Ministry of Defence,Ministry of Defence,19/05/2010,Purchase of buildings and military equipment ,Central TLB,THE COLT CAR COMPANY LIMITED,636803,178766.19
Ministry of Defence,Ministry of Defence,21/05/2010,Food and clothing,Land Forces,AVENANCE PLC,637581,178695.74
Ministry of Defence,Ministry of Defence,18/05/2010,Estate management,Navy Command,SODEXO LTD,636035,174012.9
Ministry of Defence,Ministry of Defence,21/05/2010,Payment of utilities,Land Forces,STADTWERKE BOEHMETAL GMBH,5000035336,173872.65
Ministry of Defence,Met Office,14/05/2010,06 Accommodation,Chief Financial Officer,Scottish Hydro-Electric,292774,173154.83
Ministry of Defence,Ministry of Defence,18/05/2010,Fees for professional services,Central TLB,DEPARTMENT FOR WORK AND PENSIONS,635635,170068.02
Ministry of Defence,Ministry of Defence,26/05/2010,Payment of utilities,Air Command,SSE ENERGY SUPPLY LIMITED,641089,169918.2
Ministry of Defence,Ministry of Defence,13/05/2010,Estate management,Air Command,SERCO LIMITED,633785,169906.12
Ministry of Defence,Ministry of Defence,13/05/2010,"Purchase of munitions, other inventory or fuel",Air Command,TOTAL UK LIMITED,633881,168591.22
Ministry of Defence,Ministry of Defence,27/05/2010,Medical treatment & stores and welfare services.,Central TLB,DEPARTMENT FOR WORK AND PENSIONS,641376,167015.5
Ministry of Defence,Ministry of Defence,24/05/2010,Estate management,Defence Estates,TURNER ESTATE SOLUTIONS LIMITED,638939,162105.52
Ministry of Defence,Ministry of Defence,11/05/2010,Food and clothing,Defence Equipment & Support,PURPLE FOODSERVICE SOLUTIONS LIMITED,632241,160927.23
Ministry of Defence,Met Office,07/05/2010,Procurement Card,Other,Barclaycard Commercial,291873,159865.88
Ministry of Defence,Ministry of Defence,04/05/2010,Estate management,Air Command,SERCO LIMITED,628413,158807.66
Ministry of Defence,Ministry of Defence,07/05/2010,Fuel for military use,Land Forces,GB OILS LIMITED,630405,157559.51
Ministry of Defence,Ministry of Defence,27/05/2010,Transport hire charges,Land Forces,VT LAND (WHITEFLEET MANAGEMENT) LTD,641860,157534.6
Ministry of Defence,Ministry of Defence,10/05/2010,Design services and minor equipment purchases,Land Forces,SERCO LIMITED,631618,156815.09
Ministry of Defence,Ministry of Defence,06/05/2010,Estate management,Defence Estates,PRIDE (SERP) LTD,629820,156793
Ministry of Defence,Ministry of Defence,18/05/2010,Payment of utilities,Land Forces,STADTWERKE GUETERSLOH GMBH,5000035072,155937.91
Ministry of Defence,Ministry of Defence,07/05/2010,Purchase of inventory and services ,Defence Equipment & Support,THISTLE GARMENTS LTD,630958,155141.27
Ministry of Defence,Ministry of Defence,13/05/2010,Estate management,Defence Estates,SCHAL INTERNATIONAL MANAGEMENT LIMITED,633775,154489.24
Ministry of Defence,Ministry of Defence,25/05/2010,"Transporation of personnel, freight and travel expenses",Defence Equipment & Support,CARTUS LTD,639820,154351.2
Ministry of Defence,Ministry of Defence,19/05/2010,Externally delivered education and training.,Central TLB,COMMUNICAID GROUP LIMITED,636259,154343.85
Ministry of Defence,Ministry of Defence,18/05/2010,Design services and minor equipment purchases,Land Forces,SERCO LIMITED,636019,154133.85
Ministry of Defence,Defence Science and Technology Laboratory,07/05/2010,Capital Asset expenditure,Infrastructure,SERCO LIMITED,V - 9000122691 - 00080394,154094.98
Ministry of Defence,Ministry of Defence,10/05/2010,Payment of utilities,Air Command,SSE ENERGY SUPPLY LIMITED,631671,153564.22
Ministry of Defence,Ministry of Defence,06/05/2010,Estate management,Defence Estates,DEBUT SERVICES LIMITED,629396,153474.32
Ministry of Defence,Ministry of Defence,05/05/2010,Design services and minor equipment purchases,Air Command,BABCOCK SUPPORT SERVICES LIMITED,628564,153115.03
Ministry of Defence,Defence Science and Technology Laboratory,28/05/2010,Repairs & Maintenance,Infrastructure,TARMAC LIMITED,V - 9000123287 - 00080653,152452.2
Ministry of Defence,Defence Science and Technology Laboratory,21/05/2010,Repairs & Maintenance,Infrastructure,TARMAC LIMITED,V - 9000123105 - 00080654,152312.55
Ministry of Defence,Ministry of Defence,07/05/2010,Design services and minor equipment purchases,Defence Equipment & Support,AGH SOFTWARE SOLUTIONS LIMITED,630101,150282.5
Ministry of Defence,Defence Science and Technology Laboratory,07/05/2010,Sub Contracted Research,Programme Office,SYSTEMS ENGINEERING & ASSESSMENT LIMITED,V - 9000122593 - 00080539,150000
Ministry of Defence,Ministry of Defence,10/05/2010,Payment of utilities,Land Forces,NEW ENERGIE GMBH,5000034657,148674.94
Ministry of Defence,Ministry of Defence,14/05/2010,Medical treatment & stores and welfare services.,Land Forces,WRVS SERVICES WELFARE LIMITED,634720,147281.9
Ministry of Defence,Ministry of Defence,26/05/2010,Purchase of buildings and military equipment ,Defence Estates,PRIDE (SERP) LTD,641004,145899.62
Ministry of Defence,Ministry of Defence,18/05/2010,Payment of utilities,Air Command,GB OILS LIMITED,635693,145494.53
Ministry of Defence,Defence Science and Technology Laboratory,14/05/2010,Energy & Utility,Infrastructure,PUBLIC SUB ACCOUNT HMG 4780,V - 9000122804 - 00080868,145108.64
Ministry of Defence,Ministry of Defence,24/05/2010,Food and clothing,Air Command,AVENANCE PLC,638435,143891.04
Ministry of Defence,Defence Science and Technology Laboratory,21/05/2010,Capital Asset expenditure,Infrastructure,SERCO LIMITED,V - 9000123122 - 00081636,143380
Ministry of Defence,Defence Science and Technology Laboratory,28/05/2010,Energy & Utility,Infrastructure,SCOTTISH HYDRO ELECTRIC GAS LIMITED,V - 9000123282 - 00081898,143351.83
Ministry of Defence,Ministry of Defence,13/05/2010,Fees for professional services,Defence Estates,ENTEC U K LTD,633417,142733.44
Ministry of Defence,Ministry of Defence,26/05/2010,Estate management,Air Command,TURNER FACILITIES MANAGEMENT LTD,641159,140930.41
Ministry of Defence,Ministry of Defence,21/05/2010,Rent and rates,Defence Estates,VALE OF WHITE HORSE DISTRICT COUNCIL,638346,140045.68
Ministry of Defence,Ministry of Defence,18/05/2010,Payment of utilities,Air Command,TOTAL GAS & POWER LIMITED,636095,139509.95
Ministry of Defence,Ministry of Defence,05/05/2010,Estate management,Defence Estates,BALFOUR BEATTY GROUP LIMITED,628584,138565.93
Ministry of Defence,Ministry of Defence,12/05/2010,Fees for professional services,Air Command,METEOROLOGICAL OFFICE,632816,138501.27
Ministry of Defence,Ministry of Defence,21/05/2010,Payment of utilities,Air Command,TOTAL GAS & POWER LIMITED,638312,137307.75
Ministry of Defence,Defence Science and Technology Laboratory,14/05/2010,Professional Services,Operations,EXCHEM DEFENCE SYSTEMS LIMITED,V - 9000122854 - 00079802,136684
Ministry of Defence,Ministry of Defence,10/05/2010,Rent and rates,Air Command,COMPASS CONTRACT SERVICES (U K)LIMITED,631149,136184
Ministry of Defence,Ministry of Defence,13/05/2010,Payment of utilities,Navy Command,TOTAL GAS & POWER LIMITED,633879,135832.02
Ministry of Defence,Ministry of Defence,19/05/2010,Estate management,Defence Estates,TURNER ESTATE SOLUTIONS LIMITED,636832,135804.28
Ministry of Defence,Ministry of Defence,10/05/2010,Purchase of inventory and services ,Defence Equipment & Support,DAF TRUCKS N.V.,631161,135692.62
Ministry of Defence,Ministry of Defence,19/05/2010,Design services and minor equipment purchases,Air Command,BAE SYSTEMS (OPERATIONS) LIMITED,636198,134888.3
Ministry of Defence,Ministry of Defence,17/05/2010,IT and communication services,Central TLB,IBM UNITED KINGDOM LIMITED,635010,134788
Ministry of Defence,Ministry of Defence,17/05/2010,Rent and rates,Defence Estates,THE MORAY COUNCIL,635412,134666.29
Ministry of Defence,Ministry of Defence,21/05/2010,Rent and rates,Defence Estates,THE MORAY COUNCIL,638297,134666.29
Ministry of Defence,Ministry of Defence,28/05/2010,Payment of utilities,Land Forces,SVO GMBH,5000035771,134421.22
Ministry of Defence,Ministry of Defence,11/05/2010,Estate management,Defence Estates,MODERN HOUSING SOLUTIONS (PRIME)LIMITED,632112,134264.21
Ministry of Defence,Ministry of Defence,07/05/2010,Transport hire charges,Land Forces,VT LAND (WHITEFLEET MANAGEMENT) LTD,630994,134179.89
Ministry of Defence,Ministry of Defence,05/05/2010,Purchase of inventory and services ,Defence Equipment & Support,THALES UNDERWATER SYSTEMS LIMITED,629128,134091.84
Ministry of Defence,Ministry of Defence,21/05/2010,Rent and rates,Defence Estates,WEST OXFORDSHIRE DISTRICT  COUNCIL,638372,131647.42
Ministry of Defence,Ministry of Defence,07/05/2010,Payments for PFI projects,Defence Equipment & Support,FALCON SUPPORT SERVICES LIMITED,630380,131274.38
Ministry of Defence,Ministry of Defence,27/05/2010,Fees for professional services,Central TLB,JACK MORTON WORLDWIDE LTD,641509,130904.15
Ministry of Defence,Ministry of Defence,10/05/2010,"Purchase of munitions, other inventory or fuel",Defence Equipment & Support,FUCHS LUBRICANTS (UK) PLC,631243,130896.35
Ministry of Defence,Ministry of Defence,19/05/2010,Fees for professional services,Central TLB,CORPORATE DOCUMENT SERVICES  LIMITED,636270,130848.3
Ministry of Defence,Ministry of Defence,25/05/2010,Purchase of buildings and military equipment ,Defence Estates,DEBUT SERVICES (SOUTH WEST)LIMITED,639860,129775.62
Ministry of Defence,Ministry of Defence,19/05/2010,Miscellaneous Administration Costs,Air Command,TNT UK LIMITED,636825,129250
Ministry of Defence,Ministry of Defence,25/05/2010,Estate management,Central TLB,BIRMINGHAM CITY UNIVERSITY,639787,128855.83
Ministry of Defence,Ministry of Defence,06/05/2010,Estate management,Land Forces,ISS MEDICLEAN LTD,629570,128767.33
Ministry of Defence,Defence Science and Technology Laboratory,21/05/2010,Sub Contracted Work,Programme Office,CRANFIELD UNIVERSITY,V - 9000122993 - 00077791,128000
Ministry of Defence,Ministry of Defence,21/05/2010,Rent and rates,Defence Estates,WYCOMBE DISTRICT COUNCIL,638394,126947.47
Ministry of Defence,Royal Hospital Chelsea ,06/05/2010,Property Management,Royal Hospital Chelsea GIA,Norland Managed Services,PIN116864,126900
Ministry of Defence,Ministry of Defence,13/05/2010,Rent and rates,Defence Estates,TOUCHSTONE CORPORATE PROPERTY SERVICES LIMITED,633882,126272.75
Ministry of Defence,Met Office,26/05/2010,10 Equipment Maintenance,Science And Technology,Hewlett Packard Ltd,292991,126261.96
Ministry of Defence,Ministry of Defence,06/05/2010,Estate management,Land Forces,HUMBERSIDE AGGREGATES & EXCAVATIONS LIMITED,629560,125668.31
Ministry of Defence,Ministry of Defence,19/05/2010,Payment of utilities,Land Forces,TOTAL GAS & POWER LIMITED,636826,124572.62
Ministry of Defence,Defence Science and Technology Laboratory,07/05/2010,IS Development,Programme Office,DETICA LIMITED,V - 9000122588 - 00078461,124162.24
Ministry of Defence,Ministry of Defence,06/05/2010,Fees for professional services,Air Command,DEFENCE SCIENCE & TECHNOLOGY LABORATORY,629398,123403.24
Ministry of Defence,Ministry of Defence,05/05/2010,Payment of utilities,Navy Command,SSE ENERGY SUPPLY LIMITED,629100,123055.89
Ministry of Defence,Ministry of Defence,07/05/2010,Payment of utilities,Navy Command,SSE ENERGY SUPPLY LIMITED,630898,122911.63
Ministry of Defence,Ministry of Defence,14/05/2010,Design services and minor equipment purchases,Air Command,COMPASS GROUP UK AND IRELAND LIMITED,634092,122902.03
Ministry of Defence,Ministry of Defence,21/05/2010,Estate management,Land Forces,AVENANCE PLC,637581,122463.74
Ministry of Defence,Ministry of Defence,11/05/2010,Purchase of inventory and services ,Defence Equipment & Support,HESCO BASTION LTD,632030,122316.56
Ministry of Defence,Ministry of Defence,18/05/2010,Payment of utilities,Defence Equipment & Support,TOTAL GAS & POWER LIMITED,636095,122120.52
Ministry of Defence,Ministry of Defence,05/05/2010,Fuel for military use,Land Forces,GB OILS LIMITED,628743,121181.49
Ministry of Defence,Ministry of Defence,18/05/2010,Estate management,Air Command,TURNER FACILITIES MANAGEMENT LTD,636099,120856.48
Ministry of Defence,Defence Science and Technology Laboratory,14/05/2010,IS Support Service,Infrastructure,SERCO LIMITED,V - 9000122901 - 00080705,120292.06
Ministry of Defence,Ministry of Defence,24/05/2010,Medical treatment & stores and welfare services.,Central TLB,PLYMOUTH HOSPITALS NHS TRUST,638806,120000
Ministry of Defence,Ministry of Defence,11/05/2010,Estate management,Defence Estates,MODERN HOUSING SOLUTIONS (PRIME)LIMITED,632113,119760.86
Ministry of Defence,Defence Science and Technology Laboratory,28/05/2010,Sub Contracted Work,Operations,QINETIQ LIMITED,V - 9000123283 - 00081568,119346.06
Ministry of Defence,Ministry of Defence,24/05/2010,Food and clothing,Air Command,ARAMARK LTD,638427,118922.08
Ministry of Defence,Ministry of Defence,05/05/2010,Fuel for military use,Air Command,SHELL U.K. OIL PRODUCTS LTD,629083,118624.39
Ministry of Defence,Ministry of Defence,21/05/2010,Rent and rates,Defence Estates,GOSPORT BOROUGH COUNCIL,637803,116437.01
Ministry of Defence,Ministry of Defence,10/05/2010,Design services and minor equipment purchases,Defence Equipment & Support,GE AVIATION SYSTEMS LIMITED,631251,115863.6
Ministry of Defence,Ministry of Defence,18/05/2010,Estate management,Land Forces,COMPASS SERVICES (U.K.) LIMITED,635604,115795.69
Ministry of Defence,Ministry of Defence,21/05/2010,Design services and minor equipment purchases,Air Command,SERCO LIMITED,638201,115789.72
Ministry of Defence,Defence Science and Technology Laboratory,07/05/2010,Energy & Utility,Infrastructure,TOTAL GAS & POWER,V - 9000122670 - 00080244,115654.41
Ministry of Defence,Defence Science and Technology Laboratory,28/05/2010,Sub Contracted Work,Operations,AUBURN UNIVERSITY,V - 0000000410 - 00082087,115644.06
Ministry of Defence,Ministry of Defence,07/05/2010,Payment of utilities,Defence Equipment & Support,SSE ENERGY SUPPLY LIMITED,630898,115615.61
Ministry of Defence,Ministry of Defence,27/05/2010,"Transporation of personnel, freight and travel expenses",Land Forces,RAIL SETTLEMENT PLAN LIMITED,641696,115253.75
Ministry of Defence,Defence Science and Technology Laboratory,21/05/2010,Capital Asset expenditure,Infrastructure,SERCO LIMITED,V - 9000123122 - 00081633,114408.74
Ministry of Defence,Ministry of Defence,17/05/2010,Rent and rates,Defence Estates,LONDON BOROUGH OF HILLINGDON,635059,114112.52
Ministry of Defence,Ministry of Defence,21/05/2010,Rent and rates,Defence Estates,LONDON BOROUGH OF HILLINGDON,637888,114112.52
Ministry of Defence,Ministry of Defence,21/05/2010,Rent and rates,Defence Estates,COLCHESTER BOROUGH COUNCIL,637703,113896.22
Ministry of Defence,Ministry of Defence,05/05/2010,Fees for professional services,Air Command,M.P.I. AVIATION LTD,628818,113648.78
Ministry of Defence,Defence Science and Technology Laboratory,14/05/2010,Energy & Utility,Infrastructure,TOTAL GAS & POWER,V - 9000122886 - 00080740,113012.43
Ministry of Defence,Defence Support Group,19/05/2010,GPC Control,Corporate,BARCLAYCARD,426414,111662.41
Ministry of Defence,Ministry of Defence,17/05/2010,Transport hire charges,Defence Estates,VT LAND (WHITEFLEET MANAGEMENT) LTD,635452,110857.72
Ministry of Defence,Ministry of Defence,12/05/2010,Purchase of buildings and military equipment ,Defence Estates,PRIDE (SERP) LTD,633004,110821.27
Ministry of Defence,Ministry of Defence,12/05/2010,Payment of utilities,Land Forces,NEW ENERGIE GMBH,5000034828,110324.16
Ministry of Defence,Ministry of Defence,12/05/2010,"Transporation of personnel, freight and travel expenses",Air Command,DHL GLOBAL FORWARDING (UK)  LIMITED,632622,109812.55
Ministry of Defence,Ministry of Defence,12/05/2010,Design services and minor equipment purchases,Air Command,BABCOCK SUPPORT SERVICES LIMITED,632485,109750.25
Ministry of Defence,Ministry of Defence,25/05/2010,Estate management,Defence Estates,DEBUT SERVICES (SOUTH WEST)LIMITED,639860,108613.38
Ministry of Defence,Ministry of Defence,06/05/2010,Estate management,Defence Estates,TURNER FACILITIES MANAGEMENT LTD,630002,108473.96
Ministry of Defence,Ministry of Defence,06/05/2010,Design services and minor equipment purchases,Air Command,DEFENCE SCIENCE & TECHNOLOGY LABORATORY,629398,108320.7
Ministry of Defence,Ministry of Defence,21/05/2010,Rent and rates,Defence Estates,SHROPSHIRE COUNCIL,638213,108257.57
Ministry of Defence,Ministry of Defence,21/05/2010,Payment of utilities,Central TLB,TOTAL GAS & POWER LIMITED,638312,107988.61
Ministry of Defence,Ministry of Defence,20/05/2010,Estate management,Air Command,VINCI CONSTRUCTION UK LTD,637510,107765.17
Ministry of Defence,Ministry of Defence,24/05/2010,Estate management,Land Forces,AVENANCE PLC,638435,107464.35
Ministry of Defence,Ministry of Defence,05/05/2010,IT and communication services,Defence Equipment & Support,BRITISH TELECOMMUNICATIONS PUBLIC LIMITED COMPANY,628612,107263.75
Ministry of Defence,Defence Science and Technology Laboratory,14/05/2010,Sub Contracted Work,Operations,QINETIQ LIMITED,V - 9000122900 - 00079913,106886.45
Ministry of Defence,Ministry of Defence,11/05/2010,Design services and minor equipment purchases,Defence Estates,TURNER FACILITIES MANAGEMENT LTD,632382,106542.59
Ministry of Defence,Ministry of Defence,04/05/2010,"Transportation of personnel, freight and travel expenses",Air Command,DHL GLOBAL FORWARDING (UK)  LIMITED,628145,105931.25
Ministry of Defence,Ministry of Defence,26/05/2010,Purchase of inventory and services ,Air Command,COMMUNICATIONS & POWER INDUSTRIES EUROPE LIMITED,640592,105597.25
Ministry of Defence,Ministry of Defence,12/05/2010,Research and development,Defence Equipment & Support,ROLLS-ROYCE MARINE ELECTRICAL SYSTEMS LIMITED,633028,105225
Ministry of Defence,Ministry of Defence,04/05/2010,Payment of utilities,Land Forces,TOTAL GAS & POWER LIMITED,628469,105051.76
Ministry of Defence,Ministry of Defence,13/05/2010,Property leases,Land Forces,ASPIRE DEFENCE LIMITED,633244,104872.82
Ministry of Defence,Ministry of Defence,19/05/2010,Estate management,Land Forces,ARAMARK LTD,636174,104374.34
Ministry of Defence,Ministry of Defence,06/05/2010,"Transportation of personnel, freight and travel expenses",Land Forces,DHL GLOBAL FORWARDING (UK)  LIMITED,629404,103959.2
Ministry of Defence,Ministry of Defence,25/05/2010,Estate management,Defence Equipment & Support,ARAMARK LTD,639745,103781.85
Ministry of Defence,Ministry of Defence,10/05/2010,Purchase of inventory and services ,Defence Equipment & Support,T B DAVIES (UK) LIMITED,631685,103749
Ministry of Defence,Defence Science and Technology Laboratory,28/05/2010,Repairs & Maintenance,Infrastructure,SERCO LIMITED,V - 9000123284 - 00081648,103362
Ministry of Defence,Ministry of Defence,27/05/2010,Fees for professional services,Land Forces,CORPORATE DOCUMENT SERVICES  LIMITED,641357,102972.48
Ministry of Defence,Ministry of Defence,07/05/2010,Externally delivered education and training.,Land Forces,PDM TRAINING & CONSULTANCY  LIMITED,630768,102498.84
Ministry of Defence,Ministry of Defence,11/05/2010,Purchase of inventory and services ,Defence Equipment & Support,L WHITAKER & SONS (1983) LIMITED,632067,102465.48
Ministry of Defence,Ministry of Defence,13/05/2010,Medical treatment & stores and welfare services.,Central TLB,DR MARTIN ERRINGTON T/A ERRINGTON ASSOCIATES,633391,101847
Ministry of Defence,Defence Science and Technology Laboratory,28/05/2010,Capital Asset expenditure,Infrastructure,TARMAC LIMITED,V - 9000123287 - 00081922,101655.7
Ministry of Defence,Ministry of Defence,27/05/2010,Estate management,Defence Estates,SERCO LIMITED,641741,101146.83
Ministry of Defence,Ministry of Defence,07/05/2010,Estate management,Air Command,SERCO LIMITED,630858,100328.52
Ministry of Defence,Ministry of Defence,17/05/2010,Rent and rates,Defence Estates,NORTH KESTEVEN DISTRICT COUNCIL,635222,100261.15
Ministry of Defence,Ministry of Defence,21/05/2010,Rent and rates,Defence Estates,NORTH KESTEVEN DISTRICT COUNCIL,638069,100261.15
Ministry of Defence,Ministry of Defence,12/05/2010,Design services and minor equipment purchases,Central TLB,AGFA HEALTHCARE UK LIMITED,632447,99120.06
Ministry of Defence,Ministry of Defence,25/05/2010,Transport hire charges,Land Forces,VT LAND (WHITEFLEET MANAGEMENT) LTD,640389,99086.22
Ministry of Defence,Ministry of Defence,27/05/2010,Estate management,Air Command,TURNER FACILITIES MANAGEMENT LTD,641833,99005.83
Ministry of Defence,Ministry of Defence,14/05/2010,IT and communication services,Land Forces,L.A. INTERNATIONAL COMPUTER  CONSULTANTS LIMITED,634274,98912.21
Ministry of Defence,Defence Science and Technology Laboratory,28/05/2010,Repairs & Maintenance,Infrastructure,TARMAC LIMITED,V - 9000123287 - 00080650,98834.97
Ministry of Defence,Ministry of Defence,24/05/2010,Design services and minor equipment purchases,Land Forces,THE AUTOMOBILE ASSOCIATION LIMITED,135797,98504.72
Ministry of Defence,Ministry of Defence,21/05/2010,Rent and rates,Defence Estates,CENTRAL BEDFORDSHIRE COUNCIL,637676,98400.82
Ministry of Defence,Ministry of Defence,04/05/2010,Purchase of plant and machinery,Navy Command,VT FLAGSHIP LTD,628486,98212.63
Ministry of Defence,Ministry of Defence,04/05/2010,Purchase of inventory and services ,Defence Equipment & Support,ACCLIMATISE LIMITED,628011,98187.85
Ministry of Defence,Ministry of Defence,11/05/2010,"Transportation of personnel, freight and travel expenses",Land Forces,RYDER DEUTSCHLAND GMBH,5000034734,97758.64
Ministry of Defence,Ministry of Defence,10/05/2010,Transport hire charges,Land Forces,VT LAND (WHITEFLEET MANAGEMENT) LTD,631748,97689.72
Ministry of Defence,Ministry of Defence,04/05/2010,Purchase of inventory and services ,Defence Equipment & Support,BOC LIMITED,628069,97590
Ministry of Defence,Defence Science and Technology Laboratory,14/05/2010,Contracted out Office Services,Operations,RISKAWARE LIMITED,V - 9000122806 - 00080134,97282.38
Ministry of Defence,Ministry of Defence,21/05/2010,Rent and rates,Defence Estates,HAMBLETON DISTRICT COUNCIL,637813,97204.7
Ministry of Defence,Ministry of Defence,25/05/2010,Fuel for military use,Air Command,ARVAL UK LTD,639749,97153
Ministry of Defence,Ministry of Defence,28/05/2010,Fees for professional services,Land Forces,LEGION FM LTD,642210,96262.8
Ministry of Defence,Ministry of Defence,20/05/2010,Property leases,Land Forces,ASPIRE DEFENCE LIMITED,636922,95966.04
Ministry of Defence,Ministry of Defence,21/05/2010,Rent and rates,Defence Estates,HART DISTRICT COUNCIL,637816,95819.83
Ministry of Defence,Ministry of Defence,19/05/2010,Food and clothing,Central TLB,SODEXO LTD,636753,95777.74
Ministry of Defence,Ministry of Defence,07/05/2010,Design services and minor equipment purchases,Defence Equipment & Support,FLUID TRANSFER INTERNATIONAL  LIMITED,630391,94798.15
Ministry of Defence,Ministry of Defence,07/05/2010,Fuel for military use,Land Forces,PRAX PETROLEUM LTD,630793,94143.87
Ministry of Defence,Ministry of Defence,25/05/2010,Estate management,Land Forces,ARAMARK LTD,639745,94061.24
Ministry of Defence,Ministry of Defence,19/05/2010,Estate management,Navy Command,VT FLAGSHIP LTD,636860,94058.1
Ministry of Defence,Ministry of Defence,11/05/2010,Design services and minor equipment purchases,Defence Equipment & Support,SOARING (OXFORD) LTD,632301,93851.34
Ministry of Defence,Ministry of Defence,06/05/2010,Fuel for military use,Land Forces,PACE FUELCARE LIMITED,629780,93332.16
Ministry of Defence,Defence Science and Technology Laboratory,21/05/2010,Sub Contracted Work,Programme Office,AWE,V - 9000123001 - 00079941,93148.38
Ministry of Defence,Ministry of Defence,28/05/2010,Fees for professional services,Land Forces,MIND PROFESSIONALS LTD,642248,92893.31
Ministry of Defence,Ministry of Defence,11/05/2010,Transport hire charges,Land Forces,VT LAND (WHITEFLEET MANAGEMENT) LTD,632400,92881.23
Ministry of Defence,Ministry of Defence,21/05/2010,Medical treatment & stores and welfare services.,Central TLB,SPIRE HEALTHCARE LTD,638246,92723.64
Ministry of Defence,Ministry of Defence,14/05/2010,Estate management,Land Forces,AVENANCE PLC,633983,92689.08
Ministry of Defence,Ministry of Defence,06/05/2010,Design services and minor equipment purchases,Air Command,SERCO LIMITED,629887,92566.88
Ministry of Defence,Ministry of Defence,05/05/2010,Fuel for military use,Air Command,SHELL AVIATION LTD,629082,92495.97
Ministry of Defence,Ministry of Defence,14/05/2010,Payment of utilities,Navy Command,TOTAL GAS & POWER LIMITED,634658,92379.86
Ministry of Defence,Ministry of Defence,06/05/2010,Food and clothing,Central TLB,ISS MEDICLEAN LTD,629570,92122.71
Ministry of Defence,Defence Support Group,26/05/2010,IT Software,Corporate,NORTHGATEARINSO  UK,427553,92000
Ministry of Defence,Defence Support Group,26/05/2010,IT Software,Corporate,NORTHGATEARINSO  UK,427553,92000
Ministry of Defence,Defence Support Group,26/05/2010,IT Software,Corporate,NORTHGATEARINSO  UK,427553,92000
Ministry of Defence,Defence Science and Technology Laboratory,14/05/2010,Repairs & Maintenance,Infrastructure,SERCO LIMITED,V - 9000122901 - 00080664,91326.9
Ministry of Defence,Ministry of Defence,14/05/2010,Payment of utilities,Defence Equipment & Support,TOTAL GAS & POWER LIMITED,634658,90586.22
Ministry of Defence,Ministry of Defence,21/05/2010,Estate management,Air Command,EMCOR FACILITIES SERVICES LTD,637775,90488.2
Ministry of Defence,Ministry of Defence,21/05/2010,Medical treatment & stores and welfare services.,Land Forces,WRVS SERVICES WELFARE LIMITED,638392,90359.14
Ministry of Defence,Ministry of Defence,17/05/2010,Payment of utilities,Air Command,TOTAL GAS & POWER LIMITED,635422,90241.01
Ministry of Defence,Ministry of Defence,21/05/2010,Rent and rates,Defence Estates,CITY OF EDINBURGH COUNCIL,637692,90064.85
Ministry of Defence,Ministry of Defence,21/05/2010,Rent and rates,Defence Estates,SOUTH OXFORDSHIRE DISTRICT  COUNCIL,638236,89752.42
Ministry of Defence,Ministry of Defence,12/05/2010,Purchase of inventory and services ,Land Forces,FORBO FLOORING UK LIMITED,632680,89639.22
Ministry of Defence,Ministry of Defence,13/05/2010,Purchase of buildings and military equipment ,Defence Equipment & Support,JACOBS U.K. LTD,633513,89171.67
Ministry of Defence,Ministry of Defence,14/05/2010,Payment of utilities,Land Forces,SSE ENERGY SUPPLY LIMITED,634610,88995.21
Ministry of Defence,Ministry of Defence,10/05/2010,Purchase of inventory and services ,Defence Equipment & Support,STELLA-META  LIMITED,631674,88773.6
Ministry of Defence,Ministry of Defence,04/05/2010,Estate management,Defence Estates,TURNER FACILITIES MANAGEMENT LTD,628472,88739.31
Ministry of Defence,Ministry of Defence,24/05/2010,Fees for professional services,Land Forces,FRONTIER MEDICAL SERVICES  LIMITED,638581,88585
Ministry of Defence,Ministry of Defence,21/05/2010,Rent and rates,Defence Estates,PORTSMOUTH CITY COUNCIL,638122,88399.82
Ministry of Defence,Ministry of Defence,11/05/2010,Purchase of inventory and services ,Defence Equipment & Support,SALT SEPARATION SERVICES LIMITED,632276,88373.65
Ministry of Defence,Ministry of Defence,06/05/2010,Purchase of inventory and services ,Defence Equipment & Support,BABCOCK INTERNATIONAL GROUP PLC,629268,87980.05
Ministry of Defence,Ministry of Defence,12/05/2010,Property leases,Defence Estates,WESTERN CHALLENGE HOUSING ASSOCIATION LIMITED,633190,87923.87
Ministry of Defence,Ministry of Defence,12/05/2010,Design services and minor equipment purchases,Land Forces,GENERAL DYNAMICS UNITED KINGDOM LIMITED,632695,87870.03
Ministry of Defence,Ministry of Defence,13/05/2010,Payment of utilities,Land Forces,NEW ENERGIE GMBH,5000034909,87597.66
Ministry of Defence,Ministry of Defence,28/05/2010,Transport hire charges,Land Forces,VT LAND (WHITEFLEET MANAGEMENT) LTD,642620,87317.74
Ministry of Defence,Ministry of Defence,27/05/2010,Payment of utilities,Air Command,SSE ENERGY SUPPLY LIMITED,641781,87259.36
Ministry of Defence,Met Office,14/05/2010,10 Equipment Maintenance,Science And Technology,Hewlett Packard Ltd,290871,87183.6
Ministry of Defence,Ministry of Defence,11/05/2010,"Transportation of personnel, freight and travel expenses",Defence Equipment & Support,CARTUS LTD,631890,87100.48
Ministry of Defence,Ministry of Defence,27/05/2010,Estate management,Navy Command,LEGION FM LTD,641525,86871.75
Ministry of Defence,Ministry of Defence,06/05/2010,Purchase of inventory and services ,Defence Equipment & Support,SCA PACKAGING LIMITED,629874,86391.89
Ministry of Defence,Ministry of Defence,06/05/2010,Fees for professional services,Central TLB,THE INTRAINING GROUP LTD,629966,86297.62
Ministry of Defence,Ministry of Defence,27/05/2010,Fees for professional services,Central TLB,THE INTRAINING GROUP LTD,641812,86297.62
Ministry of Defence,Met Office,10/05/2010,Plant And Equipment,Operations,Cse Servelec Ltd,288718,85504.28
Ministry of Defence,Ministry of Defence,17/05/2010,Fees for professional services,Air Command,M.P.I. AVIATION LTD,635069,84481.83
Ministry of Defence,Ministry of Defence,12/05/2010,Fuel for military use,Air Command,ARVAL UK LTD,632471,84446.61
Ministry of Defence,Ministry of Defence,04/05/2010,Purchase of inventory and services ,Defence Equipment & Support,SCA PACKAGING LIMITED,628404,84360.41
Ministry of Defence,Ministry of Defence,04/05/2010,Purchase of inventory and services ,Defence Equipment & Support,BLAKLEY ELECTRICS LTD,628068,84271.82
Ministry of Defence,Ministry of Defence,14/05/2010,Medical treatment & stores and welfare services.,Central TLB,NUFFIELD ORTHOPAEDIC CENTRE NHS  TRUST,634484,84067
Ministry of Defence,Ministry of Defence,26/05/2010,Externally delivered education and training.,Land Forces,COMPLETE WORLD TRAVEL LIMITED,640596,83992
Ministry of Defence,Ministry of Defence,26/05/2010,Payments made in advance,Defence Equipment & Support,DEVONPORT ROYAL DOCKYARD LIMITED,640630,83877.88
Ministry of Defence,Ministry of Defence,14/05/2010,Externally delivered education and training.,Land Forces,COMPLETE WORLD TRAVEL LIMITED,634093,83611
Ministry of Defence,Met Office,14/05/2010,08 Software Licences,Government Business,"Ibl Software Engineering, Spol S.R.O.",292770,83431
Ministry of Defence,Ministry of Defence,25/05/2010,Grants to NDPBs,Navy Command,THE NATIONAL MUSEUM OF THE ROYAL NAVY,640348,83356
Ministry of Defence,Defence Support Group,19/05/2010,Barclaycard Control a/c,Corporate,Barclays Bank ( Visa),10113614,83118.9
Ministry of Defence,Ministry of Defence,11/05/2010,"Transportation of personnel, freight and travel expenses",Central TLB,CARTUS LTD,631890,83048.01
Ministry of Defence,Ministry of Defence,05/05/2010,Fees for professional services,Land Forces,BOWLES SECURITY SERVICES (UK)  LIMITED,628602,82877.76
Ministry of Defence,Ministry of Defence,20/05/2010,Externally delivered education and training.,Land Forces,THE BRITISH SCHOOL OF MOTORING LIMITED,637450,82770.94
Ministry of Defence,Ministry of Defence,05/05/2010,Design services and minor equipment purchases,Defence Equipment & Support,AERONAUTICAL & GENERAL INSTRUMENTS LIMITED,628519,82656.82
Ministry of Defence,Ministry of Defence,07/05/2010,"Purchase of munitions, other inventory or fuel",Defence Equipment & Support,VALPRO LTD,3000004172,82631.64
Ministry of Defence,Ministry of Defence,28/05/2010,Purchase of buildings and military equipment ,Defence Estates,RIDER LEVETT BUCKNALL UK LIMITED,642450,82562.57
Ministry of Defence,Ministry of Defence,21/05/2010,Rent and rates,Defence Estates,RUTLAND COUNTY COUNCIL  DISTRICT COUNCIL,638176,82406.2
Ministry of Defence,Defence Science and Technology Laboratory,21/05/2010,Sub Contracted Research,Programme Office,QINETIQ LIMITED,V - 9000123101 - 00081506,82346
Ministry of Defence,Ministry of Defence,07/05/2010,Estate management,Defence Estates,LANDMARC SUPPORT SERVICES LIMITED,630502,81383.14
Ministry of Defence,Ministry of Defence,18/05/2010,Payment of utilities,Land Forces,GB OILS LIMITED,635693,81197.55
Ministry of Defence,Ministry of Defence,10/05/2010,Estate management,Defence Estates,EMCOR FACILITIES SERVICES LTD,631221,81091.13
Ministry of Defence,Ministry of Defence,19/05/2010,Externally delivered education and training.,Land Forces,COMPLETE WORLD TRAVEL LIMITED,636265,80934
Ministry of Defence,Ministry of Defence,26/05/2010,Payment of utilities,Air Command,TOTAL GAS & POWER LIMITED,641147,80552.68
Ministry of Defence,Defence Science and Technology Laboratory,28/05/2010,Sub Contracted Work,Operations,CORDA LIMITED,V - 9000123241 - 00080258,80402.76
Ministry of Defence,Ministry of Defence,21/05/2010,Rent and rates,Defence Estates,TEST VALLEY BOROUGH COUNCIL,638284,80338.8
Ministry of Defence,Ministry of Defence,27/05/2010,Payment of utilities,Land Forces,GB OILS LIMITED,641454,80228.01
Ministry of Defence,Defence Science and Technology Laboratory,14/05/2010,Professional Services,Programme Office,UNIVERSITY OF ST ANDREWS,V - 9000122775 - 00080570,80081.18
Ministry of Defence,Ministry of Defence,18/05/2010,Design services and minor equipment purchases,Defence Equipment & Support,TURBOMECA UK LTD,636098,79922.33
Ministry of Defence,Defence Science and Technology Laboratory,21/05/2010,Sub Contracted Work,Operations,ROKE MANOR RESEARCH LIMITED,V - 9000122982 - 00077944,79820
Ministry of Defence,Ministry of Defence,20/05/2010,"Transporation of personnel, freight and travel expenses",Air Command,DHL GLOBAL FORWARDING (UK)  LIMITED,637051,79801.46
Ministry of Defence,Ministry of Defence,05/05/2010,Design services and minor equipment purchases,Defence Equipment & Support,CATERPILLAR REMANUFACTURING LIMITED,628637,79516.87
Ministry of Defence,Ministry of Defence,19/05/2010,Fees for professional services,Navy Command,HP ENTERPRISE SERVICES DEFENCE & SECURITY UK LIMITED,636404,79502
Ministry of Defence,Ministry of Defence,10/05/2010,Design services and minor equipment purchases,Defence Equipment & Support,HAROLD L. SMITH (TRANSMISSIONS) LTD,631273,78481.95
Ministry of Defence,Ministry of Defence,28/05/2010,General services and support,Air Command,SELEX GALILEO LTD,642486,78156
Ministry of Defence,Ministry of Defence,24/05/2010,Estate management,Air Command,ARAMARK LTD,638427,78152.94
Ministry of Defence,Ministry of Defence,21/05/2010,Rent and rates,Defence Estates,HARROGATE BOROUGH COUNCIL,637814,77777.44
Ministry of Defence,Ministry of Defence,05/05/2010,Estate management,Land Forces,SODEXO LTD,629092,77649.76
Ministry of Defence,Defence Science and Technology Laboratory,28/05/2010,Energy & Utility,Infrastructure,TOTAL GAS & POWER,V - 9000123272 - 00082280,77545.74
Ministry of Defence,Ministry of Defence,19/05/2010,Payment of utilities,Land Forces,SSE ENERGY SUPPLY LIMITED,636771,77183.55
Ministry of Defence,Ministry of Defence,27/05/2010,Food and clothing,Land Forces,LIFE FITNESS (U K) LTD,641529,76521.6
Ministry of Defence,Ministry of Defence,25/05/2010,Medical treatment & stores and welfare services.,Central TLB,DR MARTIN ERRINGTON T/A ERRINGTON ASSOCIATES,639875,76365
Ministry of Defence,Ministry of Defence,24/05/2010,Payment of utilities,Command Joint Operations,SSE ENERGY SUPPLY LIMITED,638890,76149.75
Ministry of Defence,Ministry of Defence,27/05/2010,Fees for professional services,Navy Command,CORPORATE DOCUMENT SERVICES  LIMITED,641357,76112.44
Ministry of Defence,Ministry of Defence,28/05/2010,"Transporation of personnel, freight and travel expenses",Land Forces,ROYAL BRUNEI AIRLINES SDN BHD,642458,75900.66
Ministry of Defence,Ministry of Defence,13/05/2010,Purchase of inventory and services ,Land Forces,AAH PHARMACEUTICALS LTD,633214,75819.54
Ministry of Defence,Ministry of Defence,10/05/2010,Purchase of inventory and services ,Defence Equipment & Support,3M UNITED KINGDOM PUBLIC LIMITED COMPANY,631021,75801.6
Ministry of Defence,Ministry of Defence,21/05/2010,Rent and rates,Defence Estates,SURREY HEATH BOROUGH COUNCIL,638264,75697.52
Ministry of Defence,Ministry of Defence,24/05/2010,Estate management,Air Command,AVENANCE PLC,638435,75642.84
Ministry of Defence,Ministry of Defence,18/05/2010,Estate management,Defence Estates,SECURITY SERVICES GROUP,2.00E+11,75492.52
Ministry of Defence,Ministry of Defence,04/05/2010,Design services and minor equipment purchases,Defence Equipment & Support,HIGGINS & HEWINS LIMITED,628225,75244.95
Ministry of Defence,Ministry of Defence,11/05/2010,Fees for professional services,Defence Estates,BABCOCK DYNCORP LIMITED,631822,75100.61
Ministry of Defence,Met Office,07/05/2010,Software Licences,Science And Technology,Insight Direct (Uk) Ltd,291621,75009
Ministry of Defence,Defence Science and Technology Laboratory,21/05/2010,Sub Contracted Work,Operations,INAZONE LIMITED,V - 9000123076 - 00078885,74750
Ministry of Defence,Ministry of Defence,05/05/2010,Purchase of inventory and services ,Defence Equipment & Support,BABCOCK INTERNATIONAL GROUP PLC,628560,74540.93
Ministry of Defence,Ministry of Defence,10/05/2010,Purchase of inventory and services ,Defence Equipment & Support,BABCOCK INTERNATIONAL GROUP PLC,631073,73845.7
Ministry of Defence,Defence Science and Technology Laboratory,21/05/2010,Materials & Equipment,Operations,BARCLAYCARD,G - 9000123135 - 00082571,73433.03
Ministry of Defence,Ministry of Defence,18/05/2010,Estate management,Defence Estates,TURNER FACILITIES MANAGEMENT LTD,636099,72315.97
Ministry of Defence,Ministry of Defence,27/05/2010,Fees for professional services,Central TLB,CORPORATE DOCUMENT SERVICES  LIMITED,641357,72200.85
Ministry of Defence,Ministry of Defence,05/05/2010,Fuel for military use,Air Command,GB OILS LIMITED,628743,72047.61
Ministry of Defence,Ministry of Defence,04/05/2010,Fees for professional services,Land Forces,RMPA SERVICES PLC,628383,71708
Ministry of Defence,Ministry of Defence,21/05/2010,Rent and rates,Defence Estates,FIFE COUNCIL,637788,71237.12
Ministry of Defence,Ministry of Defence,28/05/2010,Food and clothing,Air Command,TURNER VIRR & CO. LTD,642596,71210.33
Ministry of Defence,Ministry of Defence,24/05/2010,Medical treatment & stores and welfare services.,Central TLB,SPIRE HEALTHCARE LTD,638887,71081.96
Ministry of Defence,Ministry of Defence,05/05/2010,Externally delivered education and training.,Air Command,WESTLAND HELICOPTERS LIMITED,629193,70763
Ministry of Defence,Defence Science and Technology Laboratory,14/05/2010,IT Software,Programme Office,ORACLE CORPORATION UK LIMITED,V - 9000122781 - 00079983,70601.4
Ministry of Defence,Ministry of Defence,19/05/2010,"Transporation of personnel, freight and travel expenses",Land Forces,RAIL SETTLEMENT PLAN LIMITED,636691,70384.65
Ministry of Defence,Defence Science and Technology Laboratory,07/05/2010,Sub Contracted Work,Operations,ATKINS LIMITED,V - 9000122587 - 00078495,70379.82
Ministry of Defence,Ministry of Defence,26/05/2010,Payment of utilities,Land Forces,ESSO PETROLEUM COMPANY LIMITED,640679,70325.39
Ministry of Defence,Ministry of Defence,06/05/2010,Fuel for military use,Defence Equipment & Support,PACE FUELCARE LIMITED,629780,70284.1
Ministry of Defence,Defence Science and Technology Laboratory,28/05/2010,Sub Contracted Work,Operations,QINETIQ LIMITED,V - 9000123283 - 00082261,69980
Ministry of Defence,National Museum of the Royal Navy,01/05/2010,GIA payments,National Museum of the Royal Navy,RNM,452,69715
Ministry of Defence,Ministry of Defence,18/05/2010,Payment of utilities,Central TLB,GB OILS LIMITED,635693,69665.69
Ministry of Defence,Ministry of Defence,21/05/2010,Rent and rates,Defence Estates,ARGYLL & BUTE COUNCIL,637573,69411.1
Ministry of Defence,Ministry of Defence,12/05/2010,Payment of utilities,Land Forces,NVV AG / NEW ENERGIE GMBH,5000034830,69401.73
Ministry of Defence,Defence Science and Technology Laboratory,07/05/2010,Consumable Materials,Operations,VISION RESEARCH LIMITED,V - 9000122659 - 00078170,69241.38
Ministry of Defence,Defence Science and Technology Laboratory,21/05/2010,Sub Contracted Work,Operations,LOCKHEED MARTIN UK INSYS LIMITED,V - 9000122948 - 00078738,69124
Ministry of Defence,Ministry of Defence,18/05/2010,Fuel for military use,Air Command,EXXONMOBIL PETROLEUM & CHEMICAL BVBA,2000008241,69100.63
Ministry of Defence,Ministry of Defence,26/05/2010,Design services and minor equipment purchases,Defence Equipment & Support,ULTRA ELECTRONICS LIMITED,641162,69023.53
Ministry of Defence,Ministry of Defence,13/05/2010,Payment of utilities,Land Forces,STADTWERKE HAMELN,5000034923,68932.17
Ministry of Defence,Ministry of Defence,07/05/2010,Payment of utilities,Land Forces,TOTAL GAS & POWER LIMITED,630962,68905.87
Ministry of Defence,Ministry of Defence,26/05/2010,Payment of utilities,Land Forces,MABANAFT DEUTSCHLAND GMBH,5000035573,68440.05
Ministry of Defence,Ministry of Defence,18/05/2010,Design services and minor equipment purchases,Air Command,COMPASS GROUP UK AND IRELAND LIMITED,635603,68359.16
Ministry of Defence,Ministry of Defence,19/05/2010,Purchase of inventory and services ,Air Command,FORBO FLOORING UK LIMITED,636353,68146.29
Ministry of Defence,Defence Science and Technology Laboratory,07/05/2010,Sub Contracted Work,Operations,DETICA LIMITED,V - 9000122588 - 00078284,67973.69
Ministry of Defence,Ministry of Defence,21/05/2010,Payment of utilities,Central TLB,SSE ENERGY SUPPLY LIMITED,638247,67611.79
Ministry of Defence,Ministry of Defence,06/05/2010,Design services and minor equipment purchases,Defence Equipment & Support,HIGGINS & HEWINS LIMITED,629545,67427.87
Ministry of Defence,Ministry of Defence,19/05/2010,Externally delivered education and training.,Air Command,UNIVERSITY OF LINCOLN,636845,67426
Ministry of Defence,Ministry of Defence,17/05/2010,Fuel for military use,Land Forces,SHELL AVIATION LTD,635357,67209.5
Ministry of Defence,Ministry of Defence,21/05/2010,Rent and rates,Defence Estates,CORNWALL COUNCIL,135727,67143.13
Ministry of Defence,Defence Science and Technology Laboratory,28/05/2010,Repairs & Maintenance,Infrastructure,SERCO LIMITED,V - 9000123284 - 00082196,66734.83
Ministry of Defence,Ministry of Defence,11/05/2010,Purchase of inventory and services ,Defence Equipment & Support,DUNLOP AIRCRAFT TYRES LTD,631958,66708.32
Ministry of Defence,Defence Science and Technology Laboratory,14/05/2010,IT Software,Infrastructure,ORACLE CORPORATION UK LIMITED,V - 9000122781 - 00080462,66624.35
Ministry of Defence,Ministry of Defence,12/05/2010,Purchase of inventory and services ,Central TLB,THE ROYAL MINT,633133,66472.58
Ministry of Defence,Ministry of Defence,05/05/2010,Design services and minor equipment purchases,Defence Equipment & Support,ATLANTIC INERTIAL SYSTEMS  LIMITED,628549,66450
Ministry of Defence,Ministry of Defence,10/05/2010,Design services and minor equipment purchases,Land Forces,VT LAND (WHITEFLEET MANAGEMENT) LTD,631748,66412.41
Ministry of Defence,Ministry of Defence,20/05/2010,Externally delivered education and training.,Land Forces,PDM TRAINING & CONSULTANCY  LIMITED,637332,66411.73
Ministry of Defence,Defence Science and Technology Laboratory,14/05/2010,Sub Contracted Work,Operations,GILL RESEARCH & DEVELOPMENT LIMITED,V - 9000122811 - 00080875,66137
Ministry of Defence,Ministry of Defence,10/05/2010,"Transportation of personnel, freight and travel expenses",Defence Equipment & Support,CARTUS LTD,631122,65786.77
Ministry of Defence,Ministry of Defence,06/05/2010,Purchase of inventory and services ,Defence Equipment & Support,HAMWORTHY WATER SYSTEMS LIMITED,629528,65751.67
Ministry of Defence,Ministry of Defence,06/05/2010,Food and clothing,Land Forces,MITIE CATERING SERVICES LTD,629662,65582.63
Ministry of Defence,Ministry of Defence,27/05/2010,Externally delivered education and training.,Land Forces,ARMY CATERING TRAINING TRUST,641249,65473.48
Ministry of Defence,Ministry of Defence,12/05/2010,IT and communication services,Air Command,MATRIX DISPLAY SYSTEMS LTD,632804,65466.3
Ministry of Defence,Ministry of Defence,06/05/2010,Food and clothing,Navy Command,TURNER VIRR & CO. LTD,630003,65338.72
Ministry of Defence,Ministry of Defence,19/05/2010,Fees for professional services,Land Forces,CORPORATE DOCUMENT SERVICES  LIMITED,636270,65032.76
Ministry of Defence,Ministry of Defence,17/05/2010,Estate management,Defence Estates,German Construction Authority,BMQN000217,64818.8
Ministry of Defence,Ministry of Defence,17/05/2010,Payment of utilities,Air Command,SSE ENERGY SUPPLY LIMITED,635376,64779
Ministry of Defence,Defence Science and Technology Laboratory,07/05/2010,Sub Contracted Work,Operations,QINETIQ LIMITED,V - 9000122631 - 00080544,64714
Ministry of Defence,Defence Science and Technology Laboratory,28/05/2010,Energy & Utility,Infrastructure,THAMES WATER UTILITIES LIMITED,V - 9000123298 - 00081170,64651.12
Ministry of Defence,Ministry of Defence,17/05/2010,Rent and rates,Defence Estates,BOROUGH COUNCIL OF KINGS LYNN & WEST NORFOLK,634812,64309.89
Ministry of Defence,Ministry of Defence,21/05/2010,Rent and rates,Defence Estates,BOROUGH COUNCIL OF KINGS LYNN & WEST NORFOLK,637621,64309.89
Ministry of Defence,Ministry of Defence,19/05/2010,Fees for professional services,Air Command,HP ENTERPRISE SERVICES DEFENCE & SECURITY UK LIMITED,636404,64130
Ministry of Defence,Ministry of Defence,20/05/2010,Estate management,Defence Estates,German Construction Authority,ARTA001249,64110.79
Ministry of Defence,Ministry of Defence,18/05/2010,Payment of utilities,Navy Command,TOTAL GAS & POWER LIMITED,636095,64058.53
Ministry of Defence,Ministry of Defence,21/05/2010,Rent and rates,Defence Estates,AYLESBURY VALE DISTRICT COUNCIL,637584,64054.83
Ministry of Defence,Defence Science and Technology Laboratory,28/05/2010,Energy & Utility,Infrastructure,SCOTTISH HYDRO ELECTRIC GAS LIMITED,V - 9000123282 - 00081902,64011.68
Ministry of Defence,Ministry of Defence,11/05/2010,Estate management,Air Command,COMPASS SERVICES (U.K.) LIMITED,631908,64009.45
Ministry of Defence,Ministry of Defence,21/05/2010,Rent and rates,Defence Estates,GUILDFORD BOROUGH COUNCIL,637806,63656.68
Ministry of Defence,Ministry of Defence,17/05/2010,Purchase of inventory and services ,Land Forces,BUNZL UK LIMITED,634832,63604.29
Ministry of Defence,Ministry of Defence,14/05/2010,Fees for professional services,Land Forces,L.A. INTERNATIONAL COMPUTER  CONSULTANTS LIMITED,634274,63575
Ministry of Defence,Ministry of Defence,19/05/2010,Purchase of inventory and services ,Land Forces,FORBO FLOORING UK LIMITED,636353,63255.13
Ministry of Defence,Ministry of Defence,26/05/2010,Estates - Equipment,Defence Estate - SSG,KABA UK LTD                     ,PMT - 022,63143.09
Ministry of Defence,Ministry of Defence,27/05/2010,Payment of utilities,Defence Estates,SSE ENERGY SUPPLY LIMITED,641781,63064.64
Ministry of Defence,Ministry of Defence,07/05/2010,Purchase of inventory and services ,Defence Equipment & Support,GE AVIATION SYSTEMS LIMITED,630408,62897.57
Ministry of Defence,Ministry of Defence,19/05/2010,Estate management,Defence Estates,INTERSERVE (DEFENCE) LTD,5000035103,62884.59
Ministry of Defence,Ministry of Defence,28/05/2010,Purchase of inventory and services ,Land Forces,WF ELECTRICAL PLC,642627,62804.94
Ministry of Defence,Ministry of Defence,05/05/2010,"Purchase of munitions, other inventory or fuel",Defence Equipment & Support,ROLLS-ROYCE POWER ENGINEERING PLC,629059,62574.32
Ministry of Defence,Ministry of Defence,26/05/2010,Purchase of inventory and services ,Land Forces,AAH PHARMACEUTICALS LTD,640418,62565.07
Ministry of Defence,Ministry of Defence,21/05/2010,Rent and rates,Defence Estates,NORTH DORSET DISTRICT COUNCIL,638067,62458.95
Ministry of Defence,Ministry of Defence,17/05/2010,Rent and rates,Defence Estates,NORTH DORSET DISTRICT COUNCIL,635221,62458.93
Ministry of Defence,Ministry of Defence,19/05/2010,IT and communication services,Air Command,JEPPESEN U.K. LIMITED,636431,62455.83
Ministry of Defence,Ministry of Defence,18/05/2010,Other Transport - Owned,Defence Estate - SSG,FORD MOTOR COMPANY LTD          ,PMT - 023,62368.56
Ministry of Defence,Ministry of Defence,17/05/2010,Estate management,Defence Estates,German Construction Authority,PBAB000929,62339.13
Ministry of Defence,Ministry of Defence,14/05/2010,Property leases,Land Forces,VEOLIA WATER PROJECTS LTD,634691,61825.14
Ministry of Defence,Ministry of Defence,19/05/2010,Payment of utilities,Defence Equipment & Support,TOTAL GAS & POWER LIMITED,636826,61781.96
Ministry of Defence,Ministry of Defence,05/05/2010,Fuel for military use,Defence Equipment & Support,GB OILS LIMITED,628743,61525.5
Ministry of Defence,Defence Science and Technology Laboratory,07/05/2010,Materials & Equipment,Programme Office,THALES RESEARCH & TECHNOLOGY (UK) LIMITED,V - 9000122595 - 00077604,61438
Ministry of Defence,United Kingdom Hydrographic Office,27/05/2010,SDRA Productionisation - Start Up,Print & Supply,BAE Systems,5100077964,61131.34
Ministry of Defence,Ministry of Defence,06/05/2010,Design services and minor equipment purchases,Defence Equipment & Support,CONWAY PACKING SERVICES LTD,629375,60709.5
Ministry of Defence,Ministry of Defence,17/05/2010,Estate management,Defence Estates,German Construction Authority,GTPR000559,60478.26
Ministry of Defence,Ministry of Defence,26/05/2010,Estate management,Central TLB,MODUS SERVICES LIMITED,640840,60271.69
Ministry of Defence,Ministry of Defence,25/05/2010,Purchase of inventory and services ,Land Forces,XMA LTD,640411,60155.52
Ministry of Defence,Ministry of Defence,21/05/2010,Fees for professional services,Air Command,M.P.I. AVIATION LTD,637900,60074.28
Ministry of Defence,Ministry of Defence,19/05/2010,Fees for professional services,Central TLB,HP ENTERPRISE SERVICES DEFENCE & SECURITY UK LIMITED,636404,60000
Ministry of Defence,Ministry of Defence,26/05/2010,Research and development,Central TLB,DEFENCE SCIENCE & TECHNOLOGY LABORATORY,640619,60000
Ministry of Defence,Ministry of Defence,18/05/2010,Development costs for military equipment.,Land Forces,QINETIQ LIMITED,635970,59971.28
Ministry of Defence,Ministry of Defence,21/05/2010,Rent and rates,Defence Estates,WINDSOR AND MAIDENHEAD ROYAL BOROUGH COUNCIL,638387,59954.01
Ministry of Defence,Ministry of Defence,20/05/2010,IT and communication services,Land Forces,L.A. INTERNATIONAL COMPUTER  CONSULTANTS LIMITED,637178,59908.33
Ministry of Defence,Defence Science and Technology Laboratory,28/05/2010,Repairs & Maintenance,Infrastructure,SERCO LIMITED,V - 9000123284 - 00082200,59844.49
Ministry of Defence,Defence Science and Technology Laboratory,21/05/2010,Sub Contracted Work,Programme Office,E2V TECHNOLOGIES (UK) LIMITED,V - 9000122945 - 00078067,59716
Ministry of Defence,Ministry of Defence,18/05/2010,Payment of utilities,Land Forces,ESSO PETROLEUM COMPANY LIMITED,635678,59433.17
Ministry of Defence,Ministry of Defence,04/05/2010,Externally delivered education and training.,Land Forces,PDM TRAINING & CONSULTANCY  LIMITED,628339,59173
Ministry of Defence,Ministry of Defence,07/05/2010,Estate management,Defence Estates,TURNER FACILITIES MANAGEMENT LTD,630972,59159.54
Ministry of Defence,Defence Science and Technology Laboratory,07/05/2010,Sub Contracted Work,Programme Office,PRANALYTICA INC,V - 0000001102 - 00078630,59100
Ministry of Defence,Ministry of Defence,07/05/2010,Estate management,Land Forces,CHUBB SECURITY PERSONNEL LIMITED,630268,59017.34
Ministry of Defence,Ministry of Defence,07/05/2010,Fuel for military use,Air Command,GB OILS LIMITED,630405,58983.77
Ministry of Defence,Defence Science and Technology Laboratory,14/05/2010,Sub Contracted Work,Operations,BLASTECH LIMITED,V - 9000122864 - 00078557,58777.8
Ministry of Defence,Ministry of Defence,07/05/2010,Transport hire charges,Defence Equipment & Support,VT LAND (WHITEFLEET MANAGEMENT) LTD,630994,58686.86
Ministry of Defence,Ministry of Defence,20/05/2010,Fuel for military use,Air Command,SHELL U.K. OIL PRODUCTS LTD,637401,58263.27
Ministry of Defence,Ministry of Defence,10/05/2010,Purchase of inventory and services ,Defence Equipment & Support,AEROFLEX HOSE AND ENGINEERING  LIMITED,631030,58100.16
Ministry of Defence,Ministry of Defence,25/05/2010,Fuel for military use,Navy Command,ARVAL UK LTD,639749,57876.16
Ministry of Defence,Ministry of Defence,19/05/2010,Medical treatment & stores and welfare services.,Central TLB,QUEEN ELIZABETHS FOUNDATION FOR DISABLED PEOPLE,636687,57832.42
Ministry of Defence,Ministry of Defence,10/05/2010,Design services and minor equipment purchases,Defence Equipment & Support,TERBERG DTS (UK) LIMITED,631697,57817
Ministry of Defence,Ministry of Defence,06/05/2010,Fees for professional services,Land Forces,LGC LTD,629608,57386.64
Ministry of Defence,Ministry of Defence,11/05/2010,Design services and minor equipment purchases,Land Forces,VT LAND (WHITEFLEET MANAGEMENT) LTD,632400,57180.66
Ministry of Defence,Defence Support Group,12/05/2010,IT Telecoms,Corporate,BRITISH TELECOMMUNIC,424127,57087.04
Ministry of Defence,Defence Science and Technology Laboratory,21/05/2010,Repairs & Maintenance,Infrastructure,SERCO LIMITED,V - 9000123102 - 00081654,56995.15
Ministry of Defence,Ministry of Defence,10/05/2010,Purchase of inventory and services ,Air Command,CANON (UK) LIMITED,631113,56850.31
Ministry of Defence,Ministry of Defence,17/05/2010,Estate management,Air Command,WYG MANAGEMENT SERVICES LIMITED,635467,56755.48
Ministry of Defence,Ministry of Defence,20/05/2010,Estate management,Defence Estates,German Construction Authority,ELJB000594,56724.46
Ministry of Defence,Ministry of Defence,11/05/2010,IT and communication services,Defence Equipment & Support,THE SALAMANDER ORGANIZATION LIMITED,632364,56602.5
Ministry of Defence,Ministry of Defence,21/05/2010,Rent and rates,Defence Estates,SOUTH SOMERSET DISTRICT COUNCIL,638237,56420.78
Ministry of Defence,Ministry of Defence,27/05/2010,Rent and rates,Land Forces,Cycads Properties Ltd,Pv 239,56240.36
Ministry of Defence,Ministry of Defence,20/05/2010,Medical treatment & stores and welfare services.,Central TLB,BOOTS UK LTD,636967,56135.52
Ministry of Defence,Ministry of Defence,21/05/2010,Rent and rates,Defence Estates,SHEPWAY DISTRICT COUNCIL,638210,56093.29
Ministry of Defence,Ministry of Defence,13/05/2010,Payment of utilities,Defence Equipment & Support,TOTAL GAS & POWER LIMITED,633879,56000.36
Ministry of Defence,Ministry of Defence,06/05/2010,Purchase of buildings and military equipment ,Air Command,TAMDOWN REGENERATION LIMITED,629945,55700
Ministry of Defence,Defence Science and Technology Laboratory,14/05/2010,Local Authority Rates,Infrastructure,SEVENOAKS DISTRICT COUNCIL,V - 9000122821 - 00080747,55476
Ministry of Defence,Defence Science and Technology Laboratory,21/05/2010,Repairs & Maintenance,Infrastructure,SERCO LIMITED,V - 9000123102 - 00081453,55469.03
Ministry of Defence,Ministry of Defence,12/05/2010,Food and clothing,Land Forces,ARAMARK LTD,632469,55202.16
Ministry of Defence,Ministry of Defence,07/05/2010,Food and clothing,Air Command,ARAMARK LTD,630127,55201.72
Ministry of Defence,Ministry of Defence,12/05/2010,Rent and rates,Central TLB,SKYPARK UNIT TRUST,633066,55055.43
Ministry of Defence,Ministry of Defence,17/05/2010,Fuel for military use,Air Command,CEPSA GIBRALTAR LTD,3000004210,55027.76
Ministry of Defence,Defence Science and Technology Laboratory,14/05/2010,Sub Contracted Work,Operations,BAE SYSTEMS (OPERATIONS) LIMITED,V - 9000122740 - 00080571,55000
Ministry of Defence,Defence Science and Technology Laboratory,14/05/2010,Sub Contracted Work,Operations,RISKAWARE LIMITED,V - 9000122806 - 00080133,54972.88
Ministry of Defence,Ministry of Defence,17/05/2010,Fees for professional services,Land Forces,THE TREASURY SOLICITOR,635417,54804.66
Ministry of Defence,Defence Science and Technology Laboratory,21/05/2010,Sub Contracted Work,Operations,RJD TECHNOLOGY LIMITED,V - 9000123089 - 00075898,54667.5
Ministry of Defence,Ministry of Defence,27/05/2010,Insurance,Central TLB,AXA CORPORATE SOLUTIONS SERVICES UK LTD,641263,54623.71
Ministry of Defence,Ministry of Defence,25/05/2010,Fuel for military use,Central TLB,ARVAL UK LTD,639749,54477.29
Ministry of Defence,Defence Science and Technology Laboratory,28/05/2010,IT Hardware,Operations,DRIVEN TECHNOLOGIES INC,V - 0000000413 - 00082383,54340.71
Ministry of Defence,Ministry of Defence,26/05/2010,Payment of utilities,Defence Equipment & Support,ESSO PETROLEUM COMPANY LIMITED,640679,54239.74
Ministry of Defence,Ministry of Defence,14/05/2010,Externally delivered education and training.,Land Forces,WBL SERVICES LIMITED,634704,54100.22
Ministry of Defence,Ministry of Defence,21/05/2010,Rent and rates,Defence Estates,EAST HAMPSHIRE DISTRICT COUNCIL,637759,53978.15
Ministry of Defence,Ministry of Defence,10/05/2010,Purchase of inventory and services ,Defence Equipment & Support,SALT SEPARATION SERVICES LIMITED,631595,53946.57
Ministry of Defence,Ministry of Defence,12/05/2010,Fuel for military use,Navy Command,ARVAL UK LTD,632471,53822.59
Ministry of Defence,Met Office,19/05/2010,08 Software Licences,Science And Technology,Esri (Uk) Ltd,292979,53716.27
Ministry of Defence,Ministry of Defence,27/05/2010,Fuel for military use,Land Forces,R.H. Devani Ltd,Pv 262,53656.89
Ministry of Defence,Ministry of Defence,25/05/2010,Rent and rates,Land Forces,TRUSTEES OF THE MICHAEL J FIELD SIPPS P & B RACKIND TRUST ACCT,640368,53609.38
Ministry of Defence,Defence Science and Technology Laboratory,21/05/2010,Sub Contracted Work,Programme Office,QINETIQ LIMITED,V - 9000123034 - 00078036,53448.02
Ministry of Defence,Ministry of Defence,06/05/2010,Purchase of inventory and services ,Defence Equipment & Support,KASHKET & PARTNERS LIMITED,629591,53359.89
Ministry of Defence,Defence Support Group,19/05/2010,Electricity,Businesss Stream 1,Scottish Hydro- Electric,10113596,53282.68
Ministry of Defence,Ministry of Defence,07/05/2010,Design services and minor equipment purchases,Defence Equipment & Support,CONWAY PACKING SERVICES LTD,630283,53243.93
Ministry of Defence,Defence Science and Technology Laboratory,21/05/2010,Repairs & Maintenance,Infrastructure,SERCO LIMITED,V - 9000123102 - 00081638,53072
Ministry of Defence,Ministry of Defence,19/05/2010,Fuel for military use,Air Command,WORLD FUEL SERVICES EUROPE  LTD.,2000008266,53011.91
Ministry of Defence,Ministry of Defence,06/05/2010,"Transportation of personnel, freight and travel expenses",Defence Equipment & Support,DHL GLOBAL FORWARDING (UK)  LIMITED,629404,52950.65
Ministry of Defence,Ministry of Defence,27/05/2010,Payment of utilities,Land Forces,TOTAL GAS & POWER LIMITED,641829,52936.03
Ministry of Defence,Ministry of Defence,25/05/2010,Fees for professional services,Air Command,MOUCHEL MANAGEMENT CONSULTING LTD,640052,52597
Ministry of Defence,Ministry of Defence,17/05/2010,Rent and rates,Defence Estates,HUNTINGDONSHIRE DISTRICT COUNCIL,635007,52563.26
Ministry of Defence,Ministry of Defence,21/05/2010,Rent and rates,Defence Estates,HUNTINGDONSHIRE DISTRICT COUNCIL,637840,52563.26
Ministry of Defence,Defence Science and Technology Laboratory,28/05/2010,IT Hardware,Operations,IMPACT MARCOM LIMITED,V - 9000123154 - 00078323,52558
Ministry of Defence,Ministry of Defence,10/05/2010,Estate management,Air Command,CARILLION (AMBS) LIMITED,631118,52193.82
Ministry of Defence,Ministry of Defence,24/05/2010,Estate management,Land Forces,BOWLES SECURITY SERVICES (UK)  LIMITED,638459,52070.4
Ministry of Defence,Ministry of Defence,21/05/2010,Estate management,Central TLB,DELOITTE LLP,637734,51906.38
Ministry of Defence,Ministry of Defence,14/05/2010,Payment of utilities,Defence Estates,SSE ENERGY SUPPLY LIMITED,634610,51840.56
Ministry of Defence,Defence Science and Technology Laboratory,21/05/2010,Publications/Subscriptions,Infrastructure,BARCLAYCARD,G - 9000123135 - 00082571,51821.81
Ministry of Defence,Ministry of Defence,25/05/2010,Rent and rates,Land Forces,BAMFORDS TRUST PLC,639783,51773.44
Ministry of Defence,Ministry of Defence,18/05/2010,Estate management,Defence Estates,FACILITY CARE AG,5000035042,51753.94
Ministry of Defence,Ministry of Defence,28/05/2010,Purchase of buildings and military equipment ,Defence Estates,COUNCIL OF RESERVE FORCES' AND CADETS' ASSOCIATIONS,642030,51640.85
Ministry of Defence,Defence Support Group,05/05/2010,IT Software,Corporate,CAPGEMINI,422693,51584.12
Ministry of Defence,Ministry of Defence,20/05/2010,Payment of utilities,Land Forces,STADTWERKE BIELEFELD GMBH,5000035218,51298.35
Ministry of Defence,Ministry of Defence,12/05/2010,Purchase of buildings and military equipment ,Defence Estates,PCG GROUP,632978,51169.55
Ministry of Defence,Ministry of Defence,25/05/2010,Rent and rates,Land Forces,CB RICHARD ELLIS LIMITED,639824,50965.63
Ministry of Defence,Ministry of Defence,18/05/2010,Purchase of buildings and military equipment ,Air Command,MOUCHEL MANAGEMENT CONSULTING LTD,135553,50959
Ministry of Defence,Ministry of Defence,26/05/2010,Estates - Stores/Equipment,Defence Estate - SSG,PIONEER WELDING CO LTD          ,PMT - 027,50915.5
Ministry of Defence,Ministry of Defence,25/05/2010,Medical treatment & stores and welfare services.,Central TLB,QUEEN ELIZABETHS FOUNDATION FOR DISABLED PEOPLE,640225,50900.49
Ministry of Defence,Ministry of Defence,21/05/2010,Payment of utilities,Defence Estates,TOTAL GAS & POWER LIMITED,638312,50847.1
Ministry of Defence,Ministry of Defence,19/05/2010,Medical treatment & stores and welfare services.,Central TLB,ALLIANCE MEDICAL LIMITED,636164,50517.5
Ministry of Defence,Ministry of Defence,25/05/2010,Purchase of buildings and military equipment ,Air Command,MOUCHEL MANAGEMENT CONSULTING LTD,135833,50355.56
Ministry of Defence,Ministry of Defence,21/05/2010,Rent and rates,Defence Estates,SOUTH CAMBRIDGESHIRE DISTRICT COUNCIL,638230,50064.2
Ministry of Defence,Defence Science and Technology Laboratory,14/05/2010,Professional Services,Operations,EXCHEM DEFENCE SYSTEMS LIMITED,V - 9000122854 - 00079803,50050
Ministry of Defence,Met Office,05/05/2010,Plant And Equipment,Chief Financial Officer,Ibm United Kingdom Ltd,291622,50000
Ministry of Defence,Defence Science and Technology Laboratory,07/05/2010,Sub Contracted Work,Operations,IC CONSULTANTS LIMITED,V - 9000122569 - 00078141,50000
Ministry of Defence,Defence Science and Technology Laboratory,07/05/2010,Sub Contracted Work,Operations,LOGICA UK LIMITED,V - 9000122586 - 00080415,50000
Ministry of Defence,Ministry of Defence,20/05/2010,"Transporation of personnel, freight and travel expenses",Land Forces,Easy Coach Ltd,Pv 183,49867.32
Ministry of Defence,Ministry of Defence,27/05/2010,Payment of utilities,Air Command,GB OILS LIMITED,641454,49829.92
Ministry of Defence,Ministry of Defence,05/05/2010,Medical treatment & stores and welfare services.,Air Command,BAE SYSTEMS (OPERATIONS) LIMITED,628572,49826
Ministry of Defence,Ministry of Defence,12/05/2010,Purchase of inventory and services ,Defence Equipment & Support,DEVONPORT ROYAL DOCKYARD LIMITED,632621,49765.21
Ministry of Defence,Ministry of Defence,25/05/2010,IT and communication services,Land Forces,L.A. INTERNATIONAL COMPUTER  CONSULTANTS LIMITED,640003,49745
Ministry of Defence,Defence Science and Technology Laboratory,14/05/2010,Sub Contracted Work,Programme Office,OWLSTONE LIMITED,V - 9000122865 - 00081202,49592
Ministry of Defence,Ministry of Defence,21/05/2010,Rent and rates,Defence Estates,PURBECK DISTRICT COUNCIL,638133,49348.7
Ministry of Defence,Ministry of Defence,20/05/2010,Transport hire charges,Land Forces,VT LAND (WHITEFLEET MANAGEMENT) LTD,637513,49268.62
Ministry of Defence,Ministry of Defence,06/05/2010,Purchase of inventory and services ,Defence Equipment & Support,SYKES GLOBAL SERVICES LTD,629935,49226.98
Ministry of Defence,Ministry of Defence,06/05/2010,Payment of utilities,Defence Equipment & Support,TOTAL GAS & POWER LIMITED,629986,49129.65
Ministry of Defence,Ministry of Defence,20/05/2010,Estate management,Defence Estates,German Construction Authority,CEFQ000822,49126.96
Ministry of Defence,Ministry of Defence,17/05/2010,Fees for professional services,Land Forces,SYSTEMS CONSULTANTS SERVICES  LIMITED,635388,48942.81
Ministry of Defence,Ministry of Defence,05/05/2010,Payment of utilities,Defence Equipment & Support,SSE ENERGY SUPPLY LIMITED,629100,48930.42
Ministry of Defence,Ministry of Defence,14/05/2010,Purchase of inventory and services ,Land Forces,AAH PHARMACEUTICALS LTD,633944,48929.94
Ministry of Defence,Ministry of Defence,21/05/2010,Rent and rates,Defence Estates,WINCHESTER CITY COUNCIL,638386,48896.82
Ministry of Defence,National Army Museum,11/05/2010,Manned Security monthly charge for April,Bill Payment,S2 SECURITIES LTD,PO1009884,48880.21
Ministry of Defence,Ministry of Defence,17/05/2010,Transport hire charges,Central TLB,VT LAND (WHITEFLEET MANAGEMENT) LTD,635452,48826.32
Ministry of Defence,Ministry of Defence,13/05/2010,Estate management,Land Forces,DEFENCE SUPPORT GROUP  (DSG),633368,48779.36
Ministry of Defence,Ministry of Defence,07/05/2010,"Purchase of munitions, other inventory or fuel",Defence Equipment & Support,GBR TECHNOLOGY LIMITED,630407,48599.08
Ministry of Defence,Ministry of Defence,14/05/2010,Purchase of inventory and services ,Land Forces,XMA LTD,634723,48583.13
Ministry of Defence,Ministry of Defence,14/05/2010,"Transporation of personnel, freight and travel expenses",Land Forces,BROKMAN BUSREISEN GMBH,5000034944,48521.75
Ministry of Defence,Ministry of Defence,12/05/2010,Fuel for military use,Central TLB,ARVAL UK LTD,632471,48440.19
Ministry of Defence,Defence Science and Technology Laboratory,14/05/2010,Sub Contracted Work,Operations,THALES UK LIMITED,V - 9000122754 - 00081196,48382
Ministry of Defence,Defence Science and Technology Laboratory,07/05/2010,Sub Contracted Work,Operations,ULTRA ELECTRONICS LIMITED PMES,V - 9000122609 - 00077829,48182
Ministry of Defence,Defence Science and Technology Laboratory,14/05/2010,Facility Management Costs,Infrastructure,GBS RE TREASURY SOLICITOR CLIENT MONIES,S - 9000122933 - 00081210,47995.9
Ministry of Defence,Ministry of Defence,06/05/2010,Estate management,Land Forces,MITIE CATERING SERVICES LTD,629662,47956.67
Ministry of Defence,Ministry of Defence,28/05/2010,Food and clothing,Navy Command,TURNER VIRR & CO. LTD,642596,47898.81
Ministry of Defence,Defence Science and Technology Laboratory,07/05/2010,Capital Asset expenditure,Infrastructure,SERCO LIMITED,V - 9000122691 - 00080398,47898.55
Ministry of Defence,United Kingdom Hydrographic Office,26/05/2010,Raw Materials - Plates,Print & Supply,FUJIFILM UK Ltd,5100077936,47685.87
Ministry of Defence,Ministry of Defence,28/05/2010,Building maintenance and accommodation stores,Air Command,INVIRON LTD,642173,47613.63
Ministry of Defence,Ministry of Defence,21/05/2010,Rent and rates,Defence Estates,ST EDMUNDSBURY BOROUGH COUNCIL,638248,47594.83
Ministry of Defence,Ministry of Defence,04/05/2010,Food and clothing,Land Forces,NAVY ARMY AND AIR FORCE INSTITUES (THE),5000034284,47304.42
Ministry of Defence,Ministry of Defence,14/05/2010,Rent and rates,Defence Estates,MIDLOTHIAN COUNCIL,634326,46923.8
Ministry of Defence,Ministry of Defence,07/05/2010,Purchase of buildings and military equipment ,Navy Command,VT FLAGSHIP LTD,630993,46789.64
Ministry of Defence,Ministry of Defence,17/05/2010,Rent and rates,Defence Estates,PETERBOROUGH CITY COUNCIL,635268,46604.07
Ministry of Defence,Ministry of Defence,21/05/2010,Rent and rates,Defence Estates,PETERBOROUGH CITY COUNCIL,638112,46604.07
Ministry of Defence,Ministry of Defence,14/05/2010,Externally delivered education and training.,Land Forces,PDM TRAINING & CONSULTANCY  LIMITED,634504,46545
Ministry of Defence,Ministry of Defence,17/05/2010,Estate management,Defence Estates,German Construction Authority,GTPR000543,46520.1
Ministry of Defence,Ministry of Defence,27/05/2010,Estate management,Land Forces,HUMBERSIDE AGGREGATES & EXCAVATIONS LIMITED,641485,46498.36
Ministry of Defence,Ministry of Defence,28/05/2010,"Transporation of personnel, freight and travel expenses",Land Forces,DSV AIR & SEA LIMITED,642062,46469.51
Ministry of Defence,Ministry of Defence,25/05/2010,Fees for professional services,Land Forces,L.A. INTERNATIONAL COMPUTER  CONSULTANTS LIMITED,640003,46300
Ministry of Defence,Ministry of Defence,21/05/2010,Rent and rates,Defence Estates,FAREHAM BOROUGH COUNCIL,637786,46229.52
Ministry of Defence,Ministry of Defence,17/05/2010,Purchase of inventory and services ,Land Forces,AAH PHARMACEUTICALS LTD,634735,46071.3
Ministry of Defence,Defence Science and Technology Laboratory,07/05/2010,Sub Contracted Work,Operations,ATLAS ELEKTRONIK UK LIMITED,V - 9000122681 - 00080211,46000
Ministry of Defence,Ministry of Defence,27/05/2010,Payment of utilities,Land Forces,STADTWERKE MUENSTER,5000035671,45831.1
Ministry of Defence,Ministry of Defence,24/05/2010,Purchase of inventory and services ,Land Forces,GOODYEAR DUNLOP TYRES UK LTD,638585,45813.77
Ministry of Defence,Ministry of Defence,05/05/2010,"Transportation of personnel, freight and travel expenses",Defence Equipment & Support,AZCOM BUSINESS SOLUTIONS LIMITED,628556,45680
Ministry of Defence,Ministry of Defence,12/05/2010,Externally delivered education and training.,Land Forces,WBL SERVICES LIMITED,633186,45577.58
Ministry of Defence,Ministry of Defence,21/05/2010,Rent and rates,Defence Estates,WOKINGHAM DISTRICT COUNCIL,638389,45557.31
Ministry of Defence,Defence Science and Technology Laboratory,14/05/2010,Consumable Materials,Operations,MARACOM LIMITED,V - 9000122866 - 00078950,45510
Ministry of Defence,Ministry of Defence,17/05/2010,Rent and rates,Defence Estates,MEDWAY COUNCIL,635084,45396.09
Ministry of Defence,Ministry of Defence,21/05/2010,Rent and rates,Defence Estates,MEDWAY COUNCIL,637914,45396.09
Ministry of Defence,Defence Science and Technology Laboratory,21/05/2010,IS Development,Operations,HP ENTERPRISE SERVICES DEFENCE &,V - 9000122966 - 00072056,45346.08
Ministry of Defence,Ministry of Defence,19/05/2010,Rent and rates,Land Forces,Sportsman's Arms Hotel,Pv 148,45343.85
Ministry of Defence,Ministry of Defence,20/05/2010,Food and clothing,Land Forces,ARAMARK LTD,636920,45340.98
Ministry of Defence,Ministry of Defence,06/05/2010,Purchase of inventory and services ,Defence Equipment & Support,BABCOCK MARINE (ROSYTH) LTD,629270,45311.9
Ministry of Defence,Ministry of Defence,20/05/2010,Estate management,Defence Estates,German Construction Authority,FBLB000529,45126.09
Ministry of Defence,Ministry of Defence,05/05/2010,Purchase of inventory and services ,Defence Equipment & Support,AAH PHARMACEUTICALS LTD,628508,45019.68
Ministry of Defence,Defence Science and Technology Laboratory,14/05/2010,Materials & Equipment,Operations,SECTION 41 LIMITED,V - 9000122909 - 00080995,45000
Ministry of Defence,Ministry of Defence,19/05/2010,Fees for professional services,Defence Estates,GVA GRIMLEY LIMITED,636376,44980
Ministry of Defence,Defence Science and Technology Laboratory,28/05/2010,Materials & Equipment,Operations,HHV LIMITED,V - 9000123296 - 00082242,44950
Ministry of Defence,National Museum of the Royal Navy,01/05/2010,GIA payments,National Museum of the Royal Navy,RNSM,453,44936
Ministry of Defence,Ministry of Defence,17/05/2010,Estate management,Air Command,WIL-LEC ELECTRICAL CONTRACTORS LIMITED,135513,44901.06
Ministry of Defence,Defence Science and Technology Laboratory,21/05/2010,Sub Contracted Work,Operations,QINETIQ LIMITED,V - 9000123101 - 00080644,44839
Ministry of Defence,Ministry of Defence,14/05/2010,Design services and minor equipment purchases,Land Forces,VT LAND (WHITEFLEET MANAGEMENT) LTD,634697,44679.24
Ministry of Defence,Ministry of Defence,31/05/2010,Estates - Equipment/Works,Defence Estate - SSG,ALAN DURKAN & SONS              ,PMT - 034,44534.26
Ministry of Defence,Ministry of Defence,24/05/2010,Estate management,Defence Estates,CORDES & GRAEFE GMBH,5000035380,44497.51
Ministry of Defence,Ministry of Defence,21/05/2010,Rent and rates,Defence Estates,CITY OF YORK COUNCIL,637695,44359.51
Ministry of Defence,Ministry of Defence,06/05/2010,Externally delivered education and training.,Land Forces,MAINSTREAM TRAINING LIMITED,629632,44335
Ministry of Defence,Ministry of Defence,13/05/2010,Estate management,Air Command,Foster Refrigerator,149979,44300.51
Ministry of Defence,Defence Support Group,25/05/2010,Consultancy,Corporate,EQUINITI ICS LTD,426647,44300
Ministry of Defence,Ministry of Defence,11/05/2010,Design services and minor equipment purchases,Defence Equipment & Support,JRA AEROSPACE LTD,632059,44270.24
Ministry of Defence,Ministry of Defence,21/05/2010,Rent and rates,Defence Estates,WEST BERKSHIRE DISTRICT COUNCIL,638367,43995.66
Ministry of Defence,Ministry of Defence,17/05/2010,Fees for professional services,Land Forces,TEQUILA LONDON LTD,635396,43940.96
Ministry of Defence,Ministry of Defence,25/05/2010,Fees for professional services,Air Command,M.P.I. AVIATION LTD,640022,43817.39
Ministry of Defence,Defence Science and Technology Laboratory,07/05/2010,Capital Asset expenditure,Infrastructure,SERCO LIMITED,V - 9000122691 - 00080396,43802.68
Ministry of Defence,Ministry of Defence,07/05/2010,Purchase of inventory and services ,Defence Equipment & Support,BABCOCK INTERNATIONAL GROUP PLC,630156,43642.08
Ministry of Defence,Ministry of Defence,25/05/2010,Purchase of inventory and services ,Land Forces,AAH PHARMACEUTICALS LTD,639714,43627.29
Ministry of Defence,Ministry of Defence,10/05/2010,Purchase of inventory and services ,Defence Equipment & Support,BOC LIMITED,631094,43323.32
Ministry of Defence,Ministry of Defence,19/05/2010,Estate management,Central TLB,SERCO LIMITED,636740,43306.47
Ministry of Defence,Defence Science and Technology Laboratory,21/05/2010,Materials & Equipment,Operations,MARKES INTERNATIONAL LIMITED,V - 9000123003 - 00078726,43211
Ministry of Defence,Ministry of Defence,19/05/2010,IT and communication services,Defence Equipment & Support,COKER LOGISTICS SOLUTIONS INC,3000004223,43203.48
Ministry of Defence,Defence Science and Technology Laboratory,28/05/2010,Sub Contracted Work,Operations,QINETIQ LIMITED,V - 9000123227 - 00081631,43200
Ministry of Defence,Defence Science and Technology Laboratory,07/05/2010,Sub Contracted Work,Programme Office,QUEEN MARY & WESTFIELD COLLEGE,V - 9000122603 - 00080524,43137.84
Ministry of Defence,Ministry of Defence,20/05/2010,Design services and minor equipment purchases,Land Forces,VT LAND (WHITEFLEET MANAGEMENT) LTD,637513,43003.41
Ministry of Defence,Ministry of Defence,25/05/2010,Fuel for military use,Defence Estates,ARVAL UK LTD,639749,42894.89
Ministry of Defence,Ministry of Defence,26/05/2010,"Transporation of personnel, freight and travel expenses",Land Forces,Minolta Ltd,Pv 222,42824.75
Ministry of Defence,Ministry of Defence,10/05/2010,Estate management,Land Forces,LANKES ENTSORGUNG UND UMWELTSERVICE GMBH,5000034649,42690.45
Ministry of Defence,Ministry of Defence,12/05/2010,Payments on behalf of Defence Support Group,Central TLB,SSE ENERGY SUPPLY LIMITED,633089,42625.98
Ministry of Defence,Defence Science and Technology Laboratory,07/05/2010,Sub Contracted Work,Operations,DETICA LIMITED,V - 9000122588 - 00078461,42399.75
Ministry of Defence,Ministry of Defence,21/05/2010,IT and communication services,Central TLB,VEGA CONSULTING SERVICES LTD,638348,42322.5
Ministry of Defence,Ministry of Defence,04/05/2010,Purchase of inventory and services ,Defence Equipment & Support,ANIXTER LIMITED,628024,42256.73
Ministry of Defence,Ministry of Defence,06/05/2010,Food and clothing,Air Command,TURNER VIRR & CO. LTD,630003,42251.26
Ministry of Defence,Ministry of Defence,11/05/2010,Research and development,Air Command,QINETIQ LIMITED,632243,42229
Ministry of Defence,Ministry of Defence,31/05/2010,Estates - Equipment/Works,Defence Estate - SSG,SAFETECH SYSTEMS LTD            ,PMT - 036,42099.34
Ministry of Defence,Ministry of Defence,06/05/2010,Purchase of inventory and services ,Defence Equipment & Support,DUNLOP AIRCRAFT TYRES LTD,629450,42035.63
Ministry of Defence,Ministry of Defence,18/05/2010,Estates - Equipment/Works,Defence Estate - SSG,BLUE HELIX LTD                  ,PMT - 037,42024.88
Ministry of Defence,Ministry of Defence,20/05/2010,Externally delivered education and training.,Central TLB,RIGHT MANAGEMENT LIMITED,637374,42014.82
Ministry of Defence,Defence Science and Technology Laboratory,07/05/2010,Sub Contracted Work,Operations,UNIVERSITY OF KENT,V - 9000122654 - 00079762,41964
Ministry of Defence,Ministry of Defence,19/05/2010,Transport hire charges,Air Command,VT LAND (WHITEFLEET MANAGEMENT) LTD,636861,41923.04
Ministry of Defence,Ministry of Defence,18/05/2010,Payment of utilities,Defence Estates,GB OILS LIMITED,635693,41846.86
Ministry of Defence,Ministry of Defence,05/05/2010,Design services and minor equipment purchases,Defence Equipment & Support,QINETIQ LIMITED,629028,41755
Ministry of Defence,Ministry of Defence,04/05/2010,Purchase of inventory and services ,Defence Equipment & Support,MULTIPART SOLUTIONS LIMITED,628285,41720
Ministry of Defence,Ministry of Defence,21/05/2010,Rent and rates,Defence Estates,SOUTH GLOUCESTERSHIRE COUNCIL,638232,41655.07
Ministry of Defence,Ministry of Defence,06/05/2010,Purchase of inventory and services ,Defence Equipment & Support,HALE HAMILTON (VALVES) LTD,629527,41635.68
Ministry of Defence,Ministry of Defence,07/05/2010,Design services and minor equipment purchases,Air Command,TURNER FACILITIES MANAGEMENT LTD,630972,41600
Ministry of Defence,Ministry of Defence,04/05/2010,"Transportation of personnel, freight and travel expenses",Air Command,CITYSPRINT (UK) LIMITED,628117,41493.97
Ministry of Defence,Met Office,28/05/2010,11 Services,Science And Technology,Norwegian Meteorological Inst,283520,41480
Ministry of Defence,Ministry of Defence,06/05/2010,IT and communication services,Air Command,MATRIX DISPLAY SYSTEMS LTD,629649,41457.18
Ministry of Defence,Ministry of Defence,21/05/2010,Rent and rates,Defence Estates,BRACKNELL FOREST BOROUGH COUNCIL,637627,41153.33
Ministry of Defence,Ministry of Defence,06/05/2010,Design services and minor equipment purchases,Defence Equipment & Support,B M T DEFENCE SERVICES LTD,629264,41146.61
Ministry of Defence,Ministry of Defence,10/05/2010,Fuel for military use,Defence Equipment & Support,WATSON PETROLEUM LTD,631756,41132.62
Ministry of Defence,Ministry of Defence,27/05/2010,Estate management,Defence Estates,LENGELING SERVICE GMBH UMWELTSERVICE GMBH,5000035649,41040.96
Ministry of Defence,Defence Science and Technology Laboratory,07/05/2010,Sub Contracted Work,Programme Office,AWE,V - 9000122615 - 00079031,40926.73
Ministry of Defence,Ministry of Defence,12/05/2010,Estate management,Navy Command,CORPS OF COMMISSIONAIRES  MANAGEMENT LIMITED,632596,40869.7
Ministry of Defence,Ministry of Defence,19/05/2010,Fees for professional services,Land Forces,CHUBB SECURITY PERSONNEL LIMITED,636251,40861.39
Ministry of Defence,Ministry of Defence,14/05/2010,Purchase of inventory and services ,Land Forces,FORBO FLOORING UK LIMITED,634196,40724.99
Ministry of Defence,Ministry of Defence,21/05/2010,Rent and rates,Defence Estates,HERTSMERE BOROUGH COUNCIL,637827,40601.53
Ministry of Defence,Ministry of Defence,06/05/2010,"Purchase of munitions, other inventory or fuel",Defence Equipment & Support,UNIVAR LIMITED,630012,40529.71
Ministry of Defence,Ministry of Defence,26/05/2010,Transport hire charges,Land Forces,EUROPCAR AUTOVERMIETUNG,5000035550,40496.81
Ministry of Defence,Ministry of Defence,24/05/2010,Externally delivered education and training.,Land Forces,ROYAL ARTILLERY CENTRE FOR PERSONAL DEVELOPMENT,638838,40396.11
Ministry of Defence,Ministry of Defence,21/05/2010,Rent and rates,Defence Estates,CHICHESTER DISTRICT COUNCIL,637686,40393.49
Ministry of Defence,Ministry of Defence,19/05/2010,Externally delivered education and training.,Air Command,STAFFORDSHIRE UNIVERSITY,636773,40362.5
Ministry of Defence,Ministry of Defence,31/05/2010,Medical treatment & stores and welfare services.,Central TLB,BJAB School,ESG28,40112.18
Ministry of Defence,Ministry of Defence,05/05/2010,Externally delivered education and training.,Land Forces,NORD ANGLIA VOCATIONAL EDUCATION AND TRAINING SERVICES LIMITED,135064,40012.62
Ministry of Defence,Defence Science and Technology Laboratory,07/05/2010,Sub Contracted Work,Operations,ALTA INNOVATIONS LIMITED,V - 9000122561 - 00078077,40000
Ministry of Defence,Ministry of Defence,13/05/2010,Estate management,Air Command,CARILLION (AMBS) LIMITED,633315,40000
Ministry of Defence,Ministry of Defence,25/05/2010,Design services and minor equipment purchases,Central TLB,ARVAL UK LTD,639749,39902.53
Ministry of Defence,Ministry of Defence,14/05/2010,Food and clothing,Land Forces,ISS MEDICLEAN LTD,634248,39666.81
Ministry of Defence,Ministry of Defence,04/05/2010,Food and clothing,Defence Equipment & Support,SERCO LIMITED,628413,39645.11
Ministry of Defence,Defence Science and Technology Laboratory,14/05/2010,Professional Services,Operations,CRANFIELD UNIVERSITY,V - 9000122785 - 00080933,39626
Ministry of Defence,Defence Science and Technology Laboratory,21/05/2010,Sub Contracted Work,Operations,ERA TECHNOLOGY LIMITED,V - 9000122949 - 00081840,39600
Ministry of Defence,Ministry of Defence,05/05/2010,Payments on behalf of Defence Support Group,Central TLB,SSE ENERGY SUPPLY LIMITED,629100,39493.99
Ministry of Defence,Defence Science and Technology Laboratory,07/05/2010,Sub Contracted Work,Operations,ATLAS ELEKTRONIK UK LIMITED,V - 9000122681 - 00078793,39491
Ministry of Defence,Ministry of Defence,21/05/2010,Food and clothing,Air Command,AVENANCE PLC,637581,39487.57
Ministry of Defence,Ministry of Defence,19/05/2010,IT and communication services,Central TLB,QUINTICA KENYA LTD ,58,39404.85
Ministry of Defence,Ministry of Defence,12/05/2010,Purchase of inventory and services ,Air Command,FORBO FLOORING UK LIMITED,632680,39358.84
Ministry of Defence,Ministry of Defence,06/05/2010,Purchase of inventory and services ,Defence Equipment & Support,TAUNTON AEROSPACE LIMITED,629947,39346.05
Ministry of Defence,Ministry of Defence,19/05/2010,Purchase of buildings and military equipment ,Defence Estates,GIFFORD LLP,636367,39345.53
Ministry of Defence,Defence Science and Technology Laboratory,21/05/2010,Capital Asset expenditure,Infrastructure,SERCO LIMITED,V - 9000123122 - 00081649,39306.45
Ministry of Defence,Ministry of Defence,05/05/2010,Fees for professional services,Land Forces,ENTEC U K LTD,628723,39305.77
Ministry of Defence,Ministry of Defence,07/05/2010,General services and support,Defence Equipment & Support,QINETIQ LIMITED,630802,39252
Ministry of Defence,Ministry of Defence,04/05/2010,General services and support,Command Joint Operations,CANON (UK) LIMITED,5000034168,39142.57
Ministry of Defence,Ministry of Defence,27/05/2010,Design services and minor equipment purchases,Land Forces,LIFE FITNESS (U K) LTD,641529,39132.46
Ministry of Defence,Ministry of Defence,10/05/2010,Purchase of inventory and services ,Defence Equipment & Support,CENTURION SAFETY PRODUCTS LTD,631133,39115.77
Ministry of Defence,Ministry of Defence,07/05/2010,Food and clothing,Land Forces,TECHNOGYM U K LIMITED,630924,39103.24
Ministry of Defence,Ministry of Defence,04/05/2010,Externally delivered education and training.,Land Forces,BLADERUNNER LTD,628067,38845
Ministry of Defence,Ministry of Defence,10/05/2010,Design services and minor equipment purchases,Defence Equipment & Support,BURDENS LIMITED,631109,38700
Ministry of Defence,Ministry of Defence,20/05/2010,Estate management,Land Forces,ARAMARK LTD,636920,38631.92
Ministry of Defence,Ministry of Defence,26/05/2010,Rent and rates,Defence Equipment & Support,AQUA COLDHARBOUR PARTNERSHIP LLP,640451,38628.13
Ministry of Defence,Ministry of Defence,26/05/2010,Rent and rates,Land Forces,MOUNT KENYA SAFARI CLUB,2000008338,38571.43
Ministry of Defence,Ministry of Defence,25/05/2010,Rent and rates,Defence Estates,WILTSHIRE COUNCIL,640399,38569.5
Ministry of Defence,Defence Science and Technology Laboratory,28/05/2010,Professional Services,Corporate,ATKINSADVANTAGE TECHNICAL CONSULTING LIMITED,V - 9000123305 - 00082010,38500.68
Ministry of Defence,Ministry of Defence,07/05/2010,Purchase of inventory and services ,Defence Equipment & Support,ROLLS-ROYCE POWER ENGINEERING PLC,630828,38496
Ministry of Defence,Ministry of Defence,19/05/2010,Transport hire charges,Defence Equipment & Support,VT LAND (WHITEFLEET MANAGEMENT) LTD,636861,38361.11
Ministry of Defence,Ministry of Defence,27/05/2010,Fees for professional services,Land Forces,ENTEC U K LTD,641418,38328.15
Ministry of Defence,Ministry of Defence,05/05/2010,Purchase of inventory and services ,Defence Equipment & Support,ANIXTER LIMITED,628535,38204.49
Ministry of Defence,Met Office,21/05/2010,Plant And Equipment,Chief Financial Officer,Agt  Electrical ( Exeter ) Limited,293048,38195
Ministry of Defence,Ministry of Defence,21/05/2010,Estate management,Air Command,CARILLION (AMBS) LIMITED,637668,38104.19
Ministry of Defence,Ministry of Defence,14/05/2010,"Transporation of personnel, freight and travel expenses",Land Forces,HOEBER-REISEN KG,5000034951,38042.16
Ministry of Defence,Defence Science and Technology Laboratory,21/05/2010,Sub Contracted Work,Operations,ATLAS ELEKTRONIK UK LIMITED,V - 9000123107 - 00078776,38000
Ministry of Defence,Ministry of Defence,20/05/2010,Estate management,Air Command,INVICTA AVIATION LIMITED,637149,37950
Ministry of Defence,Ministry of Defence,17/05/2010,Building maintenance and accommodation stores,Defence Equipment & Support,H MORRIS & CO LTD,GPC1,37946.39
Ministry of Defence,Ministry of Defence,05/05/2010,Medical treatment & stores and welfare services.,Air Command,COYLE PERSONNEL PLC,628665,37928.69
Ministry of Defence,National Museum of the Royal Navy,01/05/2010,GIA payments,National Museum of the Royal Navy,RMM,454,37868
Ministry of Defence,Ministry of Defence,21/05/2010,Externally delivered education and training.,Central TLB,NATIONAL SCHOOL OF GOVERNMENT,637952,37860
Ministry of Defence,National Museum of the Royal Navy,01/05/2010,GIA payments,National Museum of the Royal Navy,FAAM,455,37797
Ministry of Defence,Ministry of Defence,04/05/2010,Purchase of inventory and services ,Defence Equipment & Support,AAH PHARMACEUTICALS LTD,628009,37756.18
Ministry of Defence,Ministry of Defence,13/05/2010,Payment of utilities,Land Forces,ENERTEC HAMELN GMBH.,5000034885,37751.24
Ministry of Defence,Ministry of Defence,12/05/2010,Estate management,Air Command,MOUCHEL MANAGEMENT CONSULTING LTD,135324,37750.6
Ministry of Defence,Ministry of Defence,12/05/2010,Fuel for military use,Defence Estates,ARVAL UK LTD,632471,37657.45
Ministry of Defence,Ministry of Defence,13/05/2010,Design services and minor equipment purchases,Land Forces,TEAM LEYLAND INTERNATIONAL LIMITED,633852,37639.92
Ministry of Defence,Ministry of Defence,25/05/2010,Rent and rates,Land Forces,SAVILLS (L&P) LTD,640264,37539.36
Ministry of Defence,Ministry of Defence,06/05/2010,Payment of utilities,Defence Estates,TOTAL GAS & POWER LIMITED,629986,37486.45
Ministry of Defence,Ministry of Defence,04/05/2010,Purchase of inventory and services ,Defence Equipment & Support,ANIXTER LIMITED,628023,37359
Ministry of Defence,Ministry of Defence,14/05/2010,Estate management,Defence Equipment & Support,JACOBS ENGINEERING U.K. LIMITED,135415,37340
Ministry of Defence,United Kingdom Hydrographic Office,24/05/2010,Raw Materials - Paper,Print & Supply,Antalis McNaughton Group,5100077865,37330.84
Ministry of Defence,Ministry of Defence,11/05/2010,Purchase of inventory and services ,Defence Equipment & Support,CHUBB FIRE LTD,631902,37201.21
Ministry of Defence,Ministry of Defence,20/05/2010,Estate management,Defence Estates,TURNER ESTATE SOLUTIONS LIMITED,637492,37168
Ministry of Defence,Ministry of Defence,19/05/2010,"Transporation of personnel, freight and travel expenses",Navy Command,RAIL SETTLEMENT PLAN LIMITED,636691,37048
Ministry of Defence,Ministry of Defence,17/05/2010,Medical treatment & stores and welfare services.,Land Forces,THE LOCUM PRACTICE LIMITED,635408,37039.68
Ministry of Defence,Ministry of Defence,26/05/2010,Estates - Equipment/Works,Defence Estate - SSG,KNOTTY ASH WOODWORKING          ,PMT - 041,37025.91
Ministry of Defence,Ministry of Defence,10/05/2010,Purchase of inventory and services ,Defence Equipment & Support,JOSEPH GLEAVE & SON LTD,631319,36938.99
Ministry of Defence,Defence Science and Technology Laboratory,21/05/2010,Sub Contracted Work,Operations,THALES UK LIMITED,V - 9000122978 - 00077979,36925
Ministry of Defence,Ministry of Defence,06/05/2010,Estate management,Land Forces,VEOLIA UMWELTSERVICE NORD-WEST  GMBH,5000034537,36886.18
Ministry of Defence,Defence Support Group,12/05/2010,Electricity,Business Stream 1,THE ACCOUNTING OFFIC,424049,36852.36
Ministry of Defence,Ministry of Defence,27/05/2010,Transport hire charges,Air Command,VT LAND (WHITEFLEET MANAGEMENT) LTD,641860,36832.14
Ministry of Defence,Defence Science and Technology Laboratory,21/05/2010,Professional Services,Operations,EXPONENT INTERNATIONAL LIMITED,V - 9000123108 - 00076532,36755.06
Ministry of Defence,Ministry of Defence,05/05/2010,Estate management,Navy Command,CAPITA SYMONDS LTD,628630,36712
Ministry of Defence,Met Office,07/05/2010,Services,Science And Technology,Cable & Wireless Uk,291729,36670.8
Ministry of Defence,Ministry of Defence,27/05/2010,Medical treatment & stores and welfare services.,Air Command,SOUTHAMPTON UNIVERSITY HOSPITALS NHS TRUST,2.00E+11,36650.83
Ministry of Defence,Ministry of Defence,14/05/2010,Transport hire charges,Air Command,VT LAND (WHITEFLEET MANAGEMENT) LTD,634697,36560.46
Ministry of Defence,Ministry of Defence,12/05/2010,Fees for professional services,Land Forces,HONEYBEERECRUITMENT.COM LTD,135319,36558.37
Ministry of Defence,Ministry of Defence,13/05/2010,Fees for professional services,Central TLB,DEPARTMENT FOR WORK AND PENSIONS,633370,36507.51
Ministry of Defence,Ministry of Defence,19/05/2010,Design services and minor equipment purchases,Defence Equipment & Support,SFM TECHNOLOGY LIMITED,636743,36463.78
Ministry of Defence,Ministry of Defence,06/05/2010,General services and support,Defence Equipment & Support,QINETIQ LIMITED,629828,36442.09
Ministry of Defence,Ministry of Defence,28/05/2010,Design services and minor equipment purchases,Land Forces,VT LAND (WHITEFLEET MANAGEMENT) LTD,642620,36277.45
Ministry of Defence,Defence Science and Technology Laboratory,14/05/2010,Materials & Equipment,Operations,ALCOA EUROPE LIMITED,V - 9000122823 - 00078610,36252.6
Ministry of Defence,Ministry of Defence,05/05/2010,Design services and minor equipment purchases,Defence Equipment & Support,CONWAY PACKING SERVICES LTD,628659,36150.23
Ministry of Defence,Ministry of Defence,21/05/2010,Rent and rates,Defence Estates,TEWKESBURY BOROUGH COUNCIL,638285,36127
Ministry of Defence,Ministry of Defence,18/05/2010,Externally delivered education and training.,Land Forces,TQ EDUCATION AND TRAINING  LIMITED,636097,36095
Ministry of Defence,Ministry of Defence,06/05/2010,Purchase of inventory and services ,Land Forces,L WHITAKER & SONS (1983) LIMITED,629602,36086.63
Ministry of Defence,Defence Science and Technology Laboratory,07/05/2010,Sub Contracted Work,Operations,RAYTHEON SYSTEMS LIMITED,V - 9000122582 - 00077203,36000
Ministry of Defence,Defence Science and Technology Laboratory,21/05/2010,Sub Contracted Work,Operations,RISKAWARE LIMITED,V - 9000123016 - 00080209,36000
Ministry of Defence,Ministry of Defence,25/05/2010,"Transporation of personnel, freight and travel expenses",Central TLB,CARTUS LTD,639820,35977.04
Ministry of Defence,Ministry of Defence,21/05/2010,Payment of utilities,Land Forces,SSE ENERGY SUPPLY LIMITED,638247,35974.52
Ministry of Defence,Ministry of Defence,20/05/2010,Payment of utilities,Defence Equipment & Support,HENTY OIL LTD,637138,35937.02
Ministry of Defence,Ministry of Defence,11/05/2010,Medical treatment & stores and welfare services.,Air Command,LOCUM LINK (DIRECT) LIMITED,632080,35812.27
Ministry of Defence,Defence Science and Technology Laboratory,28/05/2010,Energy & Utility,Infrastructure,SCOTTISH HYDRO ELECTRIC GAS LIMITED,V - 9000123282 - 00081900,35805.15
Ministry of Defence,Ministry of Defence,14/05/2010,Estate management,Air Command,TURNER FACILITIES MANAGEMENT LTD,634669,35680.16
Ministry of Defence,Met Office,26/05/2010,07 Equipment,Operations,Meteo Modem.Com,10938,35672.33
Ministry of Defence,Ministry of Defence,19/05/2010,Transport hire charges,Central TLB,VT LAND (WHITEFLEET MANAGEMENT) LTD,636861,35649.57
Ministry of Defence,Ministry of Defence,07/05/2010,Fees for professional services,Land Forces,CHUBB SECURITY PERSONNEL LIMITED,630268,35649.37
Ministry of Defence,Ministry of Defence,27/05/2010,Purchase of inventory and services ,Land Forces,FORBO FLOORING UK LIMITED,641440,35598.53
Ministry of Defence,Ministry of Defence,21/05/2010,Rent and rates,Defence Estates,CHERWELL DISTRICT COUNCIL,637683,35514.42
Ministry of Defence,Defence Science and Technology Laboratory,07/05/2010,Sub Contracted Work,Programme Office,QINETIQ LIMITED,V - 9000122631 - 00080550,35417
Ministry of Defence,Ministry of Defence,07/05/2010,Fuel for military use,Air Command,PRAX PETROLEUM LTD,630793,35406.26
Ministry of Defence,Ministry of Defence,20/05/2010,Estate management,Defence Estates,German Construction Authority,HOHI000769,35356.52
Ministry of Defence,Ministry of Defence,06/05/2010,"Transportation of personnel, freight and travel expenses",Air Command,DHL GLOBAL FORWARDING (UK)  LIMITED,629404,35355.21
Ministry of Defence,Ministry of Defence,21/05/2010,Property leases,Defence Estates,BREY UTILITIES LIMITED,637634,35149
Ministry of Defence,Ministry of Defence,24/05/2010,Payment of utilities,Navy Command,SSE ENERGY SUPPLY LIMITED,638891,35124.12
Ministry of Defence,Defence Support Group,06/05/2010,Equipment Support-Other,Large Aircraft,Specialist Computer Centres,10113354,34943.25
Ministry of Defence,United Kingdom Hydrographic Office,14/05/2010,Assets under constuction,Print & Supply,Oce UK Ltd,5100077695,34890
Ministry of Defence,Ministry of Defence,24/05/2010,Estate management,Defence Estates,LENGELING SERVICE GMBH UMWELTSERVICE GMBH,5000035442,34876.86
Ministry of Defence,Ministry of Defence,14/05/2010,"Transporation of personnel, freight and travel expenses",Land Forces,DSV AIR & SEA LIMITED,634161,34808.25
Ministry of Defence,Ministry of Defence,27/05/2010,Estate management,Land Forces,COMPASS CONTRACT SERVICES (U K)LIMITED,641350,34609.16
Ministry of Defence,Ministry of Defence,17/05/2010,Purchase of inventory and services ,Land Forces,L WHITAKER & SONS (1983) LIMITED,635044,34606.39
Ministry of Defence,Ministry of Defence,21/05/2010,Estate management,Command Joint Operations,VEOLIA ES (UK) LIMITED,638350,34568.82
Ministry of Defence,Ministry of Defence,27/05/2010,Payment of utilities,Land Forces,MABANAFT DEUTSCHLAND GMBH,5000035653,34526.99
Ministry of Defence,Defence Science and Technology Laboratory,14/05/2010,Professional Services,Programme Office,QINETIQ LIMITED,V - 9000122836 - 00080957,34525
Ministry of Defence,Ministry of Defence,17/05/2010,Rent and rates,Defence Estates,NORTH DEVON DISTRICT COUNCIL,635220,34472.52
Ministry of Defence,Ministry of Defence,21/05/2010,Rent and rates,Defence Estates,NORTH DEVON DISTRICT COUNCIL,638066,34472.46
Ministry of Defence,Defence Science and Technology Laboratory,28/05/2010,Energy & Utility,Infrastructure,SCOTTISH HYDRO ELECTRIC GAS LIMITED,V - 9000123282 - 00081899,34471.7
Ministry of Defence,Ministry of Defence,12/05/2010,Payment of utilities,Land Forces,NIERSVERBAND VIERSEN,5000034829,34327.82
Ministry of Defence,Ministry of Defence,14/05/2010,Fees for professional services,Land Forces,EMBRACING ENTERPRISE LTD T/A THE GARNETT FOUNDATION,634181,34320
Ministry of Defence,Ministry of Defence,25/05/2010,Rent and rates,Navy Command,MCR PROPERTY GROUP,640037,34304.71
Ministry of Defence,Ministry of Defence,06/05/2010,"Purchase of munitions, other inventory or fuel",Defence Equipment & Support,WESSEX PETROLEUM LTD,630059,34300.38
Ministry of Defence,Ministry of Defence,26/05/2010,Estates - Stores/Equipment,Defence Estate - SSG,C & D (SHEET METAL) ENG LTD     ,PMT - 043,34263.29
Ministry of Defence,Ministry of Defence,04/05/2010,Food and clothing,Land Forces,SODEXO LTD,628426,34227
Ministry of Defence,Defence Science and Technology Laboratory,14/05/2010,Sub Contracted Work,Operations,QINETIQ LIMITED,V - 9000122836 - 00079759,34196
Ministry of Defence,Defence Science and Technology Laboratory,14/05/2010,Communications,Infrastructure,VODAFONE CORPORATE LIMITED,V - 9000122790 - 00080058,34033.54
Ministry of Defence,Ministry of Defence,27/05/2010,Fuel for military use,Land Forces,SHELL AVIATION LTD,641747,34027.38
Ministry of Defence,Ministry of Defence,05/05/2010,Property leases,Defence Estates,COAST TO COAST WATER LTD,628652,33987.42
Ministry of Defence,RAF Museum,17/05/2010,Catering for Dinner,RAF Museum,Carte Blanch Catering,38519,33910.64
Ministry of Defence,Ministry of Defence,21/05/2010,Rent and rates,Defence Estates,VALE OF GLAMORGAN COUNCIL,638345,33903.01
Ministry of Defence,Ministry of Defence,21/05/2010,Rent and rates,Defence Estates,EAST LINDSEY BOROUGH COUNCIL,637760,33869.17
Ministry of Defence,Ministry of Defence,27/05/2010,Food and clothing,Land Forces,C V FITNESS LTD,641318,33848.69
Ministry of Defence,Defence Science and Technology Laboratory,07/05/2010,Sub Contracted Work,Operations,FLUID GRAVITY ENGINEERING LIMITED,V - 9000122628 - 00078858,33840
Ministry of Defence,Defence Science and Technology Laboratory,28/05/2010,Sub Contracted Work,Operations,MORF PRODUCTS LIMITED,V - 9000123236 - 00077373,33780.68
Ministry of Defence,Ministry of Defence,20/05/2010,Estate management,Defence Estates,German Construction Authority,WIFQ000217,33701.3
Ministry of Defence,Ministry of Defence,20/05/2010,Estate management,Defence Estates,German Construction Authority,CETB000827,33588.7
Ministry of Defence,National Army Museum  GIA,11/05/2010,Casual Security,Operations,S2 SECURITIES LTD,2460,33583.8
Ministry of Defence,Ministry of Defence,05/05/2010,Externally delivered education and training.,Land Forces,ACCIDON'T LIMITED,628514,33529.82
Ministry of Defence,Ministry of Defence,21/05/2010,Rent and rates,Defence Estates,BABERGH DISTRICT COUNCIL,637591,33501.75
Ministry of Defence,Ministry of Defence,17/05/2010,Estate management,Defence Estates,German Construction Authority,PBTA000924,33495.65
Ministry of Defence,Ministry of Defence,27/05/2010,Payment of utilities,Defence Equipment & Support,TOTAL GAS & POWER LIMITED,641829,33478.58
Ministry of Defence,Ministry of Defence,21/05/2010,Rent and rates,Defence Estates,THE HEREFORDSHIRE COUNCIL,638293,33401.11
Ministry of Defence,Ministry of Defence,11/05/2010,Purchase of information and communications technology,Defence Equipment & Support,ASPIRE DEFENCE LIMITED,631811,33393.7
Ministry of Defence,Ministry of Defence,18/05/2010,Food and clothing,Land Forces,COTSWOLD OUTDOOR LTD,635612,33349.92
Ministry of Defence,Ministry of Defence,28/05/2010,Fees for professional services,Air Command,GVA GRIMLEY LIMITED,642132,33325
Ministry of Defence,Ministry of Defence,05/05/2010,Fuel for military use,Defence Estates,GB OILS LIMITED,628743,33316.63
Ministry of Defence,Ministry of Defence,04/05/2010,Design services and minor equipment purchases,Defence Equipment & Support,ULTRA ELECTRONICS LIMITED,628473,33160.27
Ministry of Defence,Ministry of Defence,26/05/2010,Rent and rates,Central TLB,BIRMINGHAM RESEARCH PARK LIMITED,640508,33113.8
Ministry of Defence,Defence Science and Technology Laboratory,21/05/2010,IT Software,Operations,LIVERMORE SOFTWARE TECH CORP,V - 0000000403 - 00080049,33103.81
Ministry of Defence,Ministry of Defence,06/05/2010,Purchase of inventory and services ,Defence Equipment & Support,MULTIPART SOLUTIONS LIMITED,629694,33059.45
Ministry of Defence,Ministry of Defence,07/05/2010,Estate management,Air Command,INVIRON LTD,630475,33056.99
Ministry of Defence,Ministry of Defence,26/05/2010,Rent and rates,Land Forces,CHELSEA BUILDING SOCIETY,640570,33000
Ministry of Defence,Defence Science and Technology Laboratory,21/05/2010,IS Development,Programme Office,INFUSION DEVELOPMENT UK LIMITED,V - 9000123115 - 00078269,32875
Ministry of Defence,Defence Science and Technology Laboratory,21/05/2010,IS Development,Programme Office,INFUSION DEVELOPMENT UK LIMITED,V - 9000123115 - 00079978,32875
Ministry of Defence,Ministry of Defence,21/05/2010,Rent and rates,Defence Estates,BRECKLAND COUNCIL,637632,32845.48
Ministry of Defence,Ministry of Defence,04/05/2010,Purchase of inventory and services ,Defence Equipment & Support,ROLA-TRAC LTD,628390,32665.75
Ministry of Defence,Ministry of Defence,27/05/2010,Food and clothing,Land Forces,MITIE CATERING SERVICES LTD,641569,32645.78
Ministry of Defence,Defence Science and Technology Laboratory,21/05/2010,Materials & Equipment,Operations,IROBOT CORPORATION,V - 0000000406 - 00081070,32640.36
Ministry of Defence,Ministry of Defence,06/05/2010,Fees for professional services,Defence Equipment & Support,CORPORATE DOCUMENT SERVICES  LIMITED,629376,32639.59
Ministry of Defence,Met Office,07/05/2010,Contractors,Government Business,Mod Public Sub Acct Hmg 4780,291774,32585.2
Ministry of Defence,Ministry of Defence,28/05/2010,Rent and rates,Defence Estates,TOUCHSTONE CORPORATE PROPERTY SERVICES LIMITED,642583,32581.19
Ministry of Defence,Ministry of Defence,26/05/2010,Fuel for military use,Air Command,SHELL U.K. OIL PRODUCTS LTD,641066,32492.45
Ministry of Defence,Ministry of Defence,07/05/2010,Purchase of buildings and military equipment ,Defence Estates,INTERSERVE (DEFENCE) LTD,630474,32442.77
Ministry of Defence,Ministry of Defence,19/05/2010,Externally delivered education and training.,Land Forces,THE BRITISH SCHOOL OF MOTORING LIMITED,636801,32419.38
Ministry of Defence,Ministry of Defence,04/05/2010,Purchase of buildings and military equipment ,Defence Equipment & Support,HEMPEL UK LTD.,628223,32400
Ministry of Defence,Ministry of Defence,25/05/2010,Rent and rates,Defence Equipment & Support,SAVILLS (L&P) LTD,640264,32313.93
Ministry of Defence,Ministry of Defence,04/05/2010,Purchase of inventory and services ,Defence Equipment & Support,KARCHER (U.K.) LTD,628251,32306.99
Ministry of Defence,Ministry of Defence,12/05/2010,Transport hire charges,Land Forces,VT LAND (WHITEFLEET MANAGEMENT) LTD,633178,32213.62
Ministry of Defence,Ministry of Defence,18/05/2010,Food and clothing,Land Forces,BRISTOL MANAGED SERVICES LTD,635553,32029.28
Ministry of Defence,Ministry of Defence,06/05/2010,Purchase of inventory and services ,Land Forces,AAH PHARMACEUTICALS LTD,629212,32017.34
Ministry of Defence,Defence Science and Technology Laboratory,07/05/2010,Sub Contracted Work,Operations,QINETIQ LIMITED,V - 9000122631 - 00077323,32016
Ministry of Defence,Ministry of Defence,21/05/2010,Rent and rates,Defence Estates,CITY OF WESTMINSTER,637693,32004.9
Ministry of Defence,Ministry of Defence,07/05/2010,Estate management,Land Forces,SODEXO LTD,630874,31910.71
Ministry of Defence,Ministry of Defence,14/05/2010,Design services and minor equipment purchases,Land Forces,SERCO LIMITED,634577,31866
Ministry of Defence,Ministry of Defence,10/05/2010,Purchase of inventory and services ,Defence Equipment & Support,XMA LTD,631776,31814.93
Ministry of Defence,Ministry of Defence,27/05/2010,Transport hire charges,Navy Command,VT LAND (WHITEFLEET MANAGEMENT) LTD,641860,31798.45
Ministry of Defence,Ministry of Defence,13/05/2010,Fees for professional services,Land Forces,CAPITA SYMONDS LTD,633314,31773.77
Ministry of Defence,Ministry of Defence,25/05/2010,Fees for professional services,Land Forces,SYSTEMS CONSULTANTS SERVICES  LIMITED,640315,31756.38
Ministry of Defence,Ministry of Defence,07/05/2010,Purchase of inventory and services ,Air Command,BOC LIMITED,630191,31752.59
Ministry of Defence,Ministry of Defence,28/05/2010,Payment of utilities,Defence Estates,E.ON UK PLC,642068,31726.84
Ministry of Defence,Ministry of Defence,05/05/2010,Purchase of inventory and services ,Defence Equipment & Support,AIR AND GROUND AVIATION LIMITED,628521,31665.08
Ministry of Defence,Ministry of Defence,19/05/2010,"Transporation of personnel, freight and travel expenses",Defence Equipment & Support,CARTUS LTD,636245,31655
Ministry of Defence,Defence Support Group,12/05/2010,IT Software,Corporate,CAPGEMINI,424344,31637.35
Ministry of Defence,Ministry of Defence,20/05/2010,Estate management,Defence Estates,German Construction Authority,HOGS000808,31634.78
Ministry of Defence,Defence Science and Technology Laboratory,14/05/2010,Sub Contracted Work,Operations,MBDA UK LIMITED,V - 9000122745 - 00080277,31574
Ministry of Defence,Ministry of Defence,27/05/2010,Transport hire charges,Central TLB,VT LAND (WHITEFLEET MANAGEMENT) LTD,641860,31542.67
Ministry of Defence,Ministry of Defence,06/05/2010,Purchase of inventory and services ,Defence Equipment & Support,BOC LIMITED,629306,31527.62
Ministry of Defence,Defence Science and Technology Laboratory,21/05/2010,Materials & Equipment,Operations,ISS GROUP SERVICES LIMITED,V - 9000123085 - 00080921,31500
Ministry of Defence,Ministry of Defence,25/05/2010,Rent and rates,Defence Estates,FORESTRY COMMISSION,639924,31500
Ministry of Defence,Ministry of Defence,18/05/2010,Estate management,Defence Equipment & Support,DEBUT SERVICES (SOUTH WEST)LIMITED,635628,31498.93
Ministry of Defence,Ministry of Defence,06/05/2010,Fees for professional services,Land Forces,CORPORATE DOCUMENT SERVICES  LIMITED,629376,31413.21
Ministry of Defence,Ministry of Defence,26/05/2010,Payment of utilities,Defence Estates,TOTAL GAS & POWER LIMITED,641147,31321.17
Ministry of Defence,Ministry of Defence,24/05/2010,Purchase of inventory and services ,Land Forces,NAVAL MILITARY & AIR FORCE BIBLE SOCIETY,638690,31284
Ministry of Defence,Ministry of Defence,25/05/2010,Payment of utilities,Air Command,TOTAL GAS & POWER LIMITED,640362,31280.07
Ministry of Defence,Ministry of Defence,17/05/2010,Rent and rates,Defence Estates,MID SUFFOLK DISTRICT COUNCIL,635091,31269.89
Ministry of Defence,Ministry of Defence,21/05/2010,Rent and rates,Defence Estates,MID SUFFOLK DISTRICT COUNCIL,637921,31269.89
Ministry of Defence,Ministry of Defence,07/05/2010,Purchase of buildings and military equipment ,Defence Estates,TURNER ESTATE SOLUTIONS LIMITED,630971,31147.9
Ministry of Defence,Ministry of Defence,20/05/2010,Externally delivered education and training.,Land Forces,MAINSTREAM TRAINING LIMITED,637196,31030
Ministry of Defence,Ministry of Defence,26/05/2010,Payment of utilities,Air Command,ESSO PETROLEUM COMPANY LIMITED,640679,31024.04
Ministry of Defence,Ministry of Defence,10/05/2010,Purchase of inventory and services ,Defence Equipment & Support,FRANCIS SEARCHLIGHTS LTD,631239,30967.13
Ministry of Defence,Ministry of Defence,28/05/2010,Fees for professional services,Land Forces,HONEYBEERECRUITMENT.COM LTD,136033,30771.09
Ministry of Defence,Ministry of Defence,07/05/2010,Fees for professional services,Command Joint Operations,TEMPLAR COMPANY LIMITED,630928,30750.13
Ministry of Defence,Defence Science and Technology Laboratory,21/05/2010,Sub Contracted Work,Programme Office,DEPTARTMENT OF APPLIED MATHEMATICS,V - 9000123072 - 00080267,30648
Ministry of Defence,Defence Science and Technology Laboratory,14/05/2010,Sub Contracted Work,Operations,UNIVERSITY OF YORK,V - 9000122774 - 00080854,30556
Ministry of Defence,Defence Science and Technology Laboratory,14/05/2010,Sub Contracted Work,Operations,QINETIQ LIMITED,V - 9000122900 - 00079304,30542.85
Ministry of Defence,Ministry of Defence,26/05/2010,Rent and rates,Defence Equipment & Support,COLLIERS CRE PLC,135900,30506.23
Ministry of Defence,Ministry of Defence,26/05/2010,Purchase of buildings and military equipment ,Defence Estates,MODERN HOUSING SOLUTIONS (PRIME)LIMITED,640839,30482.03
Ministry of Defence,Ministry of Defence,07/05/2010,Estate management,Land Forces,REMONDIS GMBH & CO KG,5000034596,30333.15
Ministry of Defence,Ministry of Defence,13/05/2010,Property leases,Land Forces,ELECTROLUX PLC,633415,30272.13
Ministry of Defence,Ministry of Defence,13/05/2010,Design services and minor equipment purchases,Defence Equipment & Support,CLYDEPORT OPERATIONS LTD,633349,30136.52
Ministry of Defence,Ministry of Defence,26/05/2010,Rent and rates,Land Forces,ASHLEY MANAGEMENT LIMITED,640456,30109.38
Ministry of Defence,Defence Science and Technology Laboratory,28/05/2010,Sub Contracted Work,Operations,QINETIQ LIMITED,V - 9000123283 - 00081569,30063.38
Ministry of Defence,Ministry of Defence,10/05/2010,Purchase of inventory and services ,Defence Equipment & Support,BABCOCK MARINE (ROSYTH) LTD,631074,30020.99
Ministry of Defence,Ministry of Defence,14/05/2010,Fees for professional services,Land Forces,CHUBB SECURITY PERSONNEL LIMITED,634078,30002.18
Ministry of Defence,Defence Science and Technology Laboratory,07/05/2010,Sub Contracted Research,Programme Office,QINETIQ LIMITED,V - 9000122676 - 00080566,30000
Ministry of Defence,Ministry of Defence,26/05/2010,Miscellaneous Administration Costs,Land Forces,DRIVING STANDARDS AGENCY,640647,30000
Ministry of Defence,Ministry of Defence,27/05/2010,Medical treatment & stores and welfare services.,Central TLB,THE MINDWORKS MARKETING COMPANY LIMITED,641813,29995
Ministry of Defence,Ministry of Defence,13/05/2010,Payment of utilities,Land Forces,E.ON,5000034883,29966.43
Ministry of Defence,Ministry of Defence,13/05/2010,Fuel for military use,Land Forces,EXXONMOBIL PETROLEUM & CHEMICAL BVBA,2000008191,29956.06
Ministry of Defence,Ministry of Defence,17/05/2010,Rent and rates,Defence Estates,NEW FOREST DISTRICT COUNCIL,635119,29954.65
Ministry of Defence,Ministry of Defence,21/05/2010,Rent and rates,Defence Estates,NEW FOREST DISTRICT COUNCIL,637959,29954.65
Ministry of Defence,Ministry of Defence,26/05/2010,Payment of utilities,Land Forces,NVV AG / NEW ENERGIE GMBH,5000035581,29949.5
Ministry of Defence,United Kingdom Hydrographic Office,19/05/2010,Raw Materials - Paper,Print & Supply,Howard Smith Paper Group Ltd,5100077769,29906
Ministry of Defence,RAF Museum,20/05/2010,Maintenance Subcontract,RAF Museum,Mitie Engineering Maintenance,38616,29883.61
Ministry of Defence,RAF Museum,20/05/2010,Maintenance Subcontract,RAF Museum,Mitie Engineering Maintenance,210411503,29883.51
Ministry of Defence,Ministry of Defence,05/05/2010,Fees for professional services,Defence Estates,HYDER CONSULTING (UK) LIMITED,628773,29845.73
Ministry of Defence,Ministry of Defence,21/05/2010,Purchase of inventory and services ,Land Forces,AAH PHARMACEUTICALS LTD,637542,29773.73
Ministry of Defence,Ministry of Defence,11/05/2010,Externally delivered education and training.,Air Command,ATOS ORIGIN IT SERVICES UK LIMITED,631815,29713
Ministry of Defence,Ministry of Defence,25/05/2010,Estate management,Air Command,SECURITY SERVICES GROUP,2.00E+11,29709.84
Ministry of Defence,Ministry of Defence,17/05/2010,Rent and rates,Defence Estates,MIDLOTHIAN COUNCIL,635092,29585.88
Ministry of Defence,Ministry of Defence,21/05/2010,Rent and rates,Defence Estates,MIDLOTHIAN COUNCIL,637922,29585.88
Ministry of Defence,Ministry of Defence,07/05/2010,Estate management,Air Command,ISS MEDICLEAN LTD,630477,29571.25
Ministry of Defence,Ministry of Defence,28/05/2010,Estate management,Air Command,ISS MEDICLEAN LTD,642177,29571.25
Ministry of Defence,Ministry of Defence,07/05/2010,Fuel for military use,Defence Equipment & Support,GB OILS LIMITED,630405,29554.26
Ministry of Defence,Ministry of Defence,06/05/2010,Research and development,Defence Equipment & Support,UNIVERSITY OF SOUTHAMPTON,135138,29500
Ministry of Defence,Ministry of Defence,07/05/2010,Transport hire charges,Air Command,VT LAND (WHITEFLEET MANAGEMENT) LTD,630994,29499.52
Ministry of Defence,Ministry of Defence,27/05/2010,Estate management,Defence Estates,BLUM GMBH.,5000035609,29305.8
Ministry of Defence,Ministry of Defence,07/05/2010,Purchase of inventory and services ,Defence Equipment & Support,DANTHERM AIR HANDLING A/S,3000004168,29260
Ministry of Defence,Ministry of Defence,07/05/2010,Payment of utilities,Defence Estates,SSE ENERGY SUPPLY LIMITED,630898,29257.83
Ministry of Defence,Defence Science and Technology Laboratory,28/05/2010,Sub Contracted Work,Operations,QINETIQ LIMITED,V - 9000123283 - 00079305,29206
Ministry of Defence,Defence Science and Technology Laboratory,21/05/2010,Sub Contracted Work,Operations,UNIVERSITY OF BRISTOL,V - 9000122989 - 00080255,29159
Ministry of Defence,Ministry of Defence,11/05/2010,Purchase of inventory and services ,Land Forces,CARWOOD MOTOR UNITS LTD,631891,29152.8
Ministry of Defence,Ministry of Defence,05/05/2010,Medical treatment & stores and welfare services.,Air Command,DR R HAWKES & PARTNERS T/A CSMA,628706,29140
Ministry of Defence,Ministry of Defence,06/05/2010,Estate management,Air Command,SAFESKYS LTD,629870,29104.68
Ministry of Defence,Ministry of Defence,20/05/2010,Fees for professional services,Land Forces,L.A. INTERNATIONAL COMPUTER  CONSULTANTS LIMITED,637178,29070
Ministry of Defence,Ministry of Defence,07/05/2010,Payment of utilities,Defence Estates,BRITISH GAS TRADING LIMITED,630211,28976.85
Ministry of Defence,Ministry of Defence,26/05/2010,Rent and rates,Defence Estates,FIFTHSTREET MANAGEMENT LIMITED,640691,28919.37
Ministry of Defence,Ministry of Defence,27/05/2010,Payment of utilities,Command Joint Operations,ELECTRICITY AUTHORITY OF CYPRUS,4000004381,28907.98
Ministry of Defence,Ministry of Defence,17/05/2010,Rent and rates,Defence Estates,ROYAL BOROUGH OF KINGSTON  UPON THAMES,635327,28872.14
Ministry of Defence,Ministry of Defence,21/05/2010,Rent and rates,Defence Estates,ROYAL BOROUGH OF KINGSTON  UPON THAMES,638164,28872.14
Ministry of Defence,Ministry of Defence,24/05/2010,Payment of utilities,Land Forces,SOUTHERN ELECTRIC GAS LTD,638882,28865.29
Ministry of Defence,Ministry of Defence,07/05/2010,"Transportation of personnel, freight and travel expenses",Defence Equipment & Support,DB SCHENKER RAIL (UK) LTD,630295,28856.09
Ministry of Defence,Ministry of Defence,05/05/2010,Payment of utilities,Central TLB,SSE ENERGY SUPPLY LIMITED,629100,28837.71
Ministry of Defence,Ministry of Defence,27/05/2010,Purchase of inventory and services ,Land Forces,AAH PHARMACEUTICALS LTD,641216,28759.27
Ministry of Defence,Ministry of Defence,12/05/2010,Rent and rates,Central TLB,CAPITA BUSINESS SERVICES LTD,632552,28720.88
Ministry of Defence,Ministry of Defence,17/05/2010,Rent and rates,Defence Estates,MAIDSTONE BOROUGH COUNCIL,635072,28707.34
Ministry of Defence,Ministry of Defence,21/05/2010,Rent and rates,Defence Estates,MAIDSTONE BOROUGH COUNCIL,637903,28707.34
Ministry of Defence,Ministry of Defence,17/05/2010,Rent and rates,Defence Estates,NORTHUMBERLAND COUNTY COUNCIL,635227,28689.84
Ministry of Defence,Ministry of Defence,21/05/2010,Rent and rates,Defence Estates,NORTHUMBERLAND COUNTY COUNCIL,638077,28689.84
Ministry of Defence,Met Office,07/05/2010,Services,Government Business,Ecmwf,11039,28680.36
Ministry of Defence,Ministry of Defence,10/05/2010,Design services and minor equipment purchases,Air Command,VT LAND (WHITEFLEET MANAGEMENT) LTD,631748,28660.18
Ministry of Defence,Ministry of Defence,04/05/2010,Purchase of inventory and services ,Defence Equipment & Support,EATON AEROSPACE LIMITED,628164,28620.21
Ministry of Defence,Defence Science and Technology Laboratory,21/05/2010,Sub Contracted Work,Operations,QINETIQ LIMITED,V - 9000123101 - 00081329,28614
Ministry of Defence,Ministry of Defence,04/05/2010,Design services and minor equipment purchases,Central TLB,ARVAL UK LTD,628032,28605.27
Ministry of Defence,Ministry of Defence,19/05/2010,Estate management,Land Forces,TURNER FACILITIES MANAGEMENT LTD,636833,28600
Ministry of Defence,Ministry of Defence,10/05/2010,Purchase of inventory and services ,Defence Equipment & Support,ONTIC ENGINEERING &  MANUFACTURING UK LIMITED,631500,28497.8
Ministry of Defence,Ministry of Defence,21/05/2010,Rent and rates,Defence Estates,CANTERBURY CITY COUNCIL,637660,28462.12
Ministry of Defence,Ministry of Defence,25/05/2010,Medical treatment & stores and welfare services.,Central TLB,ROYAL HOSPITAL FOR NEURO-DISABILITY,640254,28455.72
Ministry of Defence,Ministry of Defence,26/05/2010,Rent and rates,Defence Estates,ACIS GROUP LIMITED,640424,28440
Ministry of Defence,Ministry of Defence,13/05/2010,Fees for professional services,Land Forces,A.A. SECURITIES LIMITED,633211,28362.88
Ministry of Defence,Defence Science and Technology Laboratory,14/05/2010,Sub Contracted Work,Operations,CRANFIELD UNIVERSITY,V - 9000122784 - 00076426,28341.07
Ministry of Defence,Ministry of Defence,21/05/2010,Fees for professional services,Defence Estates,WYG MANAGEMENT SERVICES LIMITED,638396,28317.26
Ministry of Defence,Ministry of Defence,07/05/2010,Design services and minor equipment purchases,Defence Equipment & Support,ROLLS-ROYCE POWER ENGINEERING PLC,630828,28233.54
Ministry of Defence,Ministry of Defence,07/05/2010,Design services and minor equipment purchases,Defence Equipment & Support,LOCKHEED MARTIN UK INTEGRATED SYSTEMS AND SOLUTIONS LIMITED,630518,28200
Ministry of Defence,Ministry of Defence,18/05/2010,Externally delivered education and training.,Air Command,GOODRICH PUMP & ENGINE CONTROL  SYSTEMS INC,2000008242,28181.82
Ministry of Defence,Met Office,21/05/2010,06 Accommodation,Chief Financial Officer,Gbs Re Scot Gov Gen Cash Acct 8501,292795,28092.77
Ministry of Defence,Ministry of Defence,14/05/2010,Payments on behalf of Defence Support Group,Central TLB,TOTAL GAS & POWER LIMITED,634658,28077.78
Ministry of Defence,Ministry of Defence,25/05/2010,General services and support,Land Forces,AMPLIVOX LTD,639737,27956.89
Ministry of Defence,Ministry of Defence,28/05/2010,Payment of utilities,Land Forces,MABANAFT DEUTSCHLAND GMBH,5000035742,27954.83
Ministry of Defence,Defence Science and Technology Laboratory,14/05/2010,IT Software,Corporate,DOCUMATION SOFTWARE LIMITED,V - 9000122829 - 00080952,27917.32
Ministry of Defence,Ministry of Defence,06/05/2010,Design services and minor equipment purchases,Defence Equipment & Support,DEFENCE SCIENCE & TECHNOLOGY LABORATORY,629398,27759.49
Ministry of Defence,Ministry of Defence,21/05/2010,Rent and rates,Defence Estates,UTTLESFORD DISTRICT COUNCIL,638342,27736.73
Ministry of Defence,Defence Support Group,20/05/2010,Travel & Subsistence,Business Stream 2,MEDICINE HAT LODGE,426209,27701.95
Ministry of Defence,Defence Science and Technology Laboratory,21/05/2010,Repairs & Maintenance,Infrastructure,SERCO LIMITED,V - 9000123102 - 00080399,27689.35
Ministry of Defence,Ministry of Defence,06/05/2010,Estate management,Central TLB,ISS MEDICLEAN LTD,629570,27636.15
Ministry of Defence,Ministry of Defence,07/05/2010,Externally delivered education and training.,Land Forces,ASHTON COURT GROUP LTD,630133,27594.4
Ministry of Defence,Ministry of Defence,20/05/2010,Estate management,Land Forces,COMPASS GROUP UK AND IRELAND LIMITED,637026,27564.28
Ministry of Defence,Ministry of Defence,04/05/2010,Estate management,Defence Equipment & Support,SODEXO LTD,628426,27557.04
Ministry of Defence,Ministry of Defence,21/05/2010,Design services and minor equipment purchases,Air Command,SAFESKYS LTD,638180,27469.67
Ministry of Defence,Ministry of Defence,13/05/2010,Purchase of inventory and services ,Air Command,AAH PHARMACEUTICALS LTD,633214,27446.35
Ministry of Defence,Defence Science and Technology Laboratory,14/05/2010,Sub Contracted Work,Programme Office,LASER OPTICAL ENGINEERING LIMITED,V - 9000122857 - 00080334,27400
Ministry of Defence,Ministry of Defence,20/05/2010,Estate management,Defence Estates,German Construction Authority,MSOB000332,27399.06
Ministry of Defence,Ministry of Defence,07/05/2010,Fees for professional services,Land Forces,QINETIQ LIMITED,630802,27393.95
Ministry of Defence,Ministry of Defence,28/05/2010,Medical treatment & stores and welfare services.,Air Command,HCL HEALTHCARE LIMITED,642142,27359.76
Ministry of Defence,Ministry of Defence,05/05/2010,Purchase of inventory and services ,Defence Equipment & Support,BURFIELD & CO. (GLOVES) LIMITED.,628618,27349.03
Ministry of Defence,Ministry of Defence,12/05/2010,Payment of utilities,Land Forces,MABANAFT DEUTSCHLAND GMBH,5000034816,27221.81
Ministry of Defence,Ministry of Defence,21/05/2010,Estate management,Air Command,INVIRON LTD,637858,27191.17
Ministry of Defence,Ministry of Defence,06/05/2010,Purchase of inventory and services ,Air Command,BOC LIMITED,629306,27162.31
Ministry of Defence,Ministry of Defence,20/05/2010,Estate management,Air Command,ARAMARK LTD,636920,27105.3
Ministry of Defence,Ministry of Defence,14/05/2010,Preparation of land & buildings for disposal,Defence Estates,TURNER ESTATE SOLUTIONS LIMITED,634667,26997.15
Ministry of Defence,Ministry of Defence,25/05/2010,Food and clothing,Land Forces,SODEXO LTD,640286,26992.43
Ministry of Defence,Ministry of Defence,19/05/2010,Purchase of inventory and services ,Land Forces,DALVIE STORAGE SYSTEMS LIMITED,135582,26977
Ministry of Defence,Ministry of Defence,14/05/2010,Fees for professional services,Central TLB,BUILDING DESIGN PARTNERSHIP  LIMITED,634041,26965.25
Ministry of Defence,Ministry of Defence,21/05/2010,Rent and rates,Defence Estates,STAFFORD BOROUGH COUNCIL,638251,26939.35
Ministry of Defence,Ministry of Defence,21/05/2010,Rent and rates,Defence Estates,FYLDE BOROUGH COUNCIL,637796,26848.93
Ministry of Defence,Ministry of Defence,07/05/2010,Payment of utilities,Defence Equipment & Support,TOTAL GAS & POWER LIMITED,630962,26770.82
Ministry of Defence,Ministry of Defence,06/05/2010,Purchase of inventory and services ,Defence Equipment & Support,L WHITAKER & SONS (1983) LIMITED,629602,26666.46
Ministry of Defence,Ministry of Defence,05/05/2010,Estate management,Land Forces,COMPASS CONTRACT SERVICES (U K)LIMITED,628655,26628.74
Ministry of Defence,Ministry of Defence,06/05/2010,Purchase of inventory and services ,Defence Equipment & Support,ANIXTER LIMITED,629245,26612.84
Ministry of Defence,Ministry of Defence,06/05/2010,Fuel for military use,Defence Estates,PACE FUELCARE LIMITED,629780,26609.93
Ministry of Defence,Ministry of Defence,07/05/2010,Design services and minor equipment purchases,Defence Equipment & Support,DAF TRUCKS N.V.,630291,26594.25
Ministry of Defence,Ministry of Defence,07/05/2010,"Transportation of personnel, freight and travel expenses",Defence Equipment & Support,CTS (GB) LIMITED,630289,26585.94
Ministry of Defence,Defence Science and Technology Laboratory,21/05/2010,Repairs & Maintenance,Infrastructure,KODAK LIMITED,V - 9000123074 - 00079419,26584
Ministry of Defence,Ministry of Defence,24/05/2010,Estate management,Defence Estates,KUECHE UND BAD,5000035439,26581.74
Ministry of Defence,Ministry of Defence,21/05/2010,Rent and rates,Defence Estates,HIGHLAND REGIONAL COUNCIL,637829,26530.94
Ministry of Defence,Ministry of Defence,20/05/2010,Medical treatment & stores and welfare services.,Command Joint Operations,WRVS SERVICES WELFARE LIMITED,637529,26428.51
Ministry of Defence,Ministry of Defence,04/05/2010,Purchase of inventory and services ,Defence Equipment & Support,FORBO FLOORING UK LIMITED,628194,26360.54
Ministry of Defence,Ministry of Defence,24/05/2010,Payment of utilities,Command Joint Operations,TOTAL GAS & POWER LIMITED,638929,26358.17
Ministry of Defence,Ministry of Defence,20/05/2010,Estate management,Defence Estates,German Construction Authority,ELJB000561,26274.6
Ministry of Defence,RAF Museum,11/05/2010,Monthly Cleaning Contract,RAF Museum,LPM Cleaning,38662,26262.27
Ministry of Defence,Defence Science and Technology Laboratory,14/05/2010,Contracted out Office Services,Corporate,FIRSTASSIST SERVICES LIMITED,V - 9000122910 - 00080745,26250
Ministry of Defence,Ministry of Defence,14/05/2010,Purchase of inventory and services ,Air Command,FORBO FLOORING UK LIMITED,634196,26231.91
Ministry of Defence,Ministry of Defence,21/05/2010,Rent and rates,Defence Estates,GREENWICH LOCAL BOROUGH COUNCIL,637804,26180.35
Ministry of Defence,Ministry of Defence,10/05/2010,Purchase of inventory and services ,Defence Equipment & Support,THYSSENKRUPP AEROSPACE UK LTD,631720,26174.12
Ministry of Defence,Ministry of Defence,21/05/2010,Rent and rates,Defence Estates,THREE RIVERS DISTRICT COUNCIL,638307,26159.32
Ministry of Defence,Ministry of Defence,21/05/2010,Externally delivered education and training.,Central TLB,SOUTH WEST STRATEGIC HEALTH AUTHORITY,638239,26155.44
Ministry of Defence,Ministry of Defence,26/05/2010,Rent and rates,Land Forces,CAPITAL SHOPPING CENTRES PLC,640544,26090.58
Ministry of Defence,Ministry of Defence,10/05/2010,Estate management,Air Command,SAFESKYS LTD,631592,26083.5
Ministry of Defence,Ministry of Defence,21/05/2010,Rent and rates,Defence Estates,SUFFOLK COASTAL DISTRICT COUNCIL,638261,26082.09
Ministry of Defence,Ministry of Defence,18/05/2010,Externally delivered education and training.,Land Forces,MAINSTREAM TRAINING LIMITED,635776,26070
Ministry of Defence,Ministry of Defence,17/05/2010,Estate management,Defence Estates,German Construction Authority,PBBH000879,26052.17
Ministry of Defence,Ministry of Defence,21/05/2010,Payment of utilities,Land Forces,MABANAFT DEUTSCHLAND GMBH,5000035298,26007.98
Ministry of Defence,Defence Science and Technology Laboratory,21/05/2010,Sub Contracted Work,Operations,ATLAS ELEKTRONIK UK LIMITED,V - 9000123107 - 00078773,26000
Ministry of Defence,Ministry of Defence,27/05/2010,Externally delivered education and training.,Air Command,FORSVARETS MATERIELVERK,3000004253,26000
Ministry of Defence,Ministry of Defence,18/05/2010,"Purchase of munitions, other inventory or fuel",Defence Equipment & Support,THE HIGHLAND COUNCIL,636078,25956.27
Ministry of Defence,Defence Science and Technology Laboratory,21/05/2010,Sub Contracted Work,Operations,BORWELL LIMITED,V - 9000123063 - 00081231,25924.4
Ministry of Defence,Ministry of Defence,14/05/2010,Transport hire charges,Central TLB,VT LAND (WHITEFLEET MANAGEMENT) LTD,634697,25910.03
Ministry of Defence,Ministry of Defence,12/05/2010,Food and clothing,Land Forces,COMPASS SERVICES (U.K.) LIMITED,632588,25878.07
Ministry of Defence,Ministry of Defence,07/05/2010,Estate management,Command Joint Operations,INTERSERVE (DEFENCE) LTD,630474,25854.68
Ministry of Defence,Ministry of Defence,18/05/2010,Estates - Equipment/Works,Defence Estate - SSG,BENWELD SECURE                  ,PMT - 067,25818.74
Ministry of Defence,Defence Science and Technology Laboratory,14/05/2010,Sub Contracted Work,Programme Office,MATHSHOP,V - 9000122770 - 00081138,25800
Ministry of Defence,Ministry of Defence,05/05/2010,Estate management,Air Command,MITIE CLEANING & ENVIRONMENTAL  SERVICES LIMITED,628839,25745.76
Ministry of Defence,Defence Science and Technology Laboratory,28/05/2010,Professional Services,Operations,UK DEFENCE PROCUREMENT OFFICE,V - 0000000412 - 00082176,25685.07
Ministry of Defence,United Kingdom Hydrographic Office,19/05/2010,Computer maint&hire,Information Management & Technology,Vialtus Solutuions,5100077793,25662.5
Ministry of Defence,Ministry of Defence,06/05/2010,Payment of utilities,Air Command,SSE ENERGY SUPPLY LIMITED,629922,25628.74
Ministry of Defence,Ministry of Defence,21/05/2010,Rent and rates,Defence Estates,WREKIN DISTRICT COUNCIL,638390,25544.15
Ministry of Defence,Defence Science and Technology Laboratory,28/05/2010,Materials & Equipment,Operations,RETROTEC LIMITED,V - 9000123293 - 00080959,25505.42
Ministry of Defence,Ministry of Defence,04/05/2010,IT and communication services,Defence Equipment & Support,RISK DECISIONS LTD,628382,25502.33
Ministry of Defence,Ministry of Defence,19/05/2010,Estate management,Air Command,ARAMARK LTD,636174,25455.38
Ministry of Defence,Ministry of Defence,06/05/2010,Purchase of inventory and services ,Defence Equipment & Support,STELLA-META  LIMITED,629925,25418.78
Ministry of Defence,Ministry of Defence,07/05/2010,Purchase of inventory and services ,Land Forces,BUNZL UK LIMITED,630226,25377.78
Ministry of Defence,Ministry of Defence,21/05/2010,Estate management,Defence Estates,LENGELING SERVICE GMBH UMWELTSERVICE GMBH,5000035294,25351.96
Ministry of Defence,Ministry of Defence,14/05/2010,Design services and minor equipment purchases,Air Command,VT LAND (WHITEFLEET MANAGEMENT) LTD,634697,25322.74
Ministry of Defence,Ministry of Defence,17/05/2010,Purchase of inventory and services ,Land Forces,SCOTT BROTHERS LIMITED,635342,25291.87
Ministry of Defence,Ministry of Defence,27/05/2010,Estate management,Land Forces,MITIE CATERING SERVICES LTD,641569,25278.61
Ministry of Defence,Ministry of Defence,06/05/2010,General services and support,Air Command,DEFENCE SCIENCE & TECHNOLOGY LABORATORY,629398,25260.35
Ministry of Defence,Ministry of Defence,28/05/2010,Fees for professional services,Land Forces,CORPORATE DOCUMENT SERVICES  LIMITED,642027,25210.08
Ministry of Defence,Ministry of Defence,17/05/2010,Estate management,Defence Estates,German Construction Authority,PBAB000883,25121.74
Ministry of Defence,Ministry of Defence,17/05/2010,General services and support,Land Forces,TECHNOGYM U K LIMITED,635394,25108.4
Ministry of Defence,Defence Science and Technology Laboratory,21/05/2010,Materials & Equipment,Operations,MS INSTRUMENTS PLC,V - 9000122960 - 00081441,25100
Ministry of Defence,Ministry of Defence,20/05/2010,Research and development,Defence Equipment & Support,THE FIRE PROTECTION ASSOCIATION,637452,25070.2
Ministry of Defence,Ministry of Defence,06/05/2010,Design services and minor equipment purchases,Defence Equipment & Support,MSI-DEFENCE SYSTEMS LTD,629693,25054.24
Ministry of Defence,Ministry of Defence,07/05/2010,Purchase of inventory and services ,Land Forces,CARWOOD MOTOR UNITS LTD,630250,25047.89
Ministry of Defence,Ministry of Defence,11/05/2010,General services and support,Land Forces,LION LABORATORIES LTD,632076,25047.33
Ministry of Defence,Ministry of Defence,07/05/2010,"Transportation of personnel, freight and travel expenses",Command Joint Operations,APOLLO 11 BUS CO LTD,5000034551,25040
Ministry of Defence,Defence Science and Technology Laboratory,07/05/2010,IT Hardware,Operations,CODA OCTOPUS MARTECH LIMITED,V - 9000122613 - 00078631,25000
Ministry of Defence,Defence Science and Technology Laboratory,28/05/2010,Materials & Equipment,Operations,ROCHE DIAGNOSTICS LIMITED,V - 9000123174 - 00082271,25000
Ministry of Defence,Ministry of Defence,25/05/2010,Purchase of inventory and services ,Air Command,XMA LTD,640411,24886.13
Ministry of Defence,Ministry of Defence,04/05/2010,Estate management,Air Command,ARAMARK LTD,628026,24873.98
Ministry of Defence,Ministry of Defence,10/05/2010,"Transportation of personnel, freight and travel expenses",Defence Equipment & Support,CITYSPRINT (UK) LIMITED,631144,24840.13
Ministry of Defence,Defence Science and Technology Laboratory,21/05/2010,Professional Services,Operations,QINETIQ LIMITED,V - 9000123034 - 00081468,24824
Ministry of Defence,Defence Support Group,05/05/2010,Direct Materials,Jordan,IMER-REMAN LTD,423826,24800
Ministry of Defence,Defence Support Group,12/05/2010,Oth facilities costs,Corporate,LAND ROVER,394283,24700.8
Ministry of Defence,Ministry of Defence,27/05/2010,Design services and minor equipment purchases,Land Forces,SOMERS TOTALKARE LIMITED,641762,24656.81
Ministry of Defence,Defence Science and Technology Laboratory,21/05/2010,Sub Contracted Work,Operations,ATLAS ELEKTRONIK UK LIMITED,V - 9000123107 - 00078842,24630
Ministry of Defence,Ministry of Defence,20/05/2010,Design services and minor equipment purchases,Air Command,SERCO LIMITED,637394,24585.91
Ministry of Defence,Ministry of Defence,10/05/2010,Purchase of inventory and services ,Land Forces,AAH PHARMACEUTICALS LTD,631024,24554.84
Ministry of Defence,Ministry of Defence,19/05/2010,Property leases,Land Forces,ASPIRE DEFENCE LIMITED,636179,24531.73
Ministry of Defence,Ministry of Defence,19/05/2010,Preparation of land & buildings for disposal,Defence Estates,DEBUT SERVICES (SOUTH WEST)LIMITED,636283,24498.24
Ministry of Defence,Ministry of Defence,11/05/2010,Purchase of buildings and military equipment ,Defence Estates,TURNER ESTATE SOLUTIONS LIMITED,632381,24491.85
Ministry of Defence,Ministry of Defence,10/05/2010,Purchase of inventory and services ,Defence Equipment & Support,ROYSTON LTD,631582,24481.68
Ministry of Defence,Defence Science and Technology Laboratory,21/05/2010,Sub Contracted Work,Operations,RISKAWARE LIMITED,V - 9000123016 - 00081360,24447.72
Ministry of Defence,Defence Science and Technology Laboratory,21/05/2010,Capital Asset expenditure,Infrastructure,SERCO LIMITED,V - 9000123122 - 00081652,24383.54
Ministry of Defence,Ministry of Defence,24/05/2010,"Transporation of personnel, freight and travel expenses",Defence Equipment & Support,DHL GLOBAL FORWARDING (UK)  LIMITED,638533,24354.14
Ministry of Defence,Defence Support Group,05/05/2010,Direct Materials,Business Stream 1,THE ACCOUNTING OFFIC,423113,24302.25
Ministry of Defence,Ministry of Defence,28/05/2010,Estate management,Land Forces,AVENANCE PLC,641927,24276.04
Ministry of Defence,Ministry of Defence,07/05/2010,Transport hire charges,Central TLB,VT LAND (WHITEFLEET MANAGEMENT) LTD,630994,24273.19
Ministry of Defence,United Kingdom Hydrographic Office,13/05/2010,"Computers,periph,s/w",Corporate Services,Talent Innovations,5100077662,24234
Ministry of Defence,Ministry of Defence,26/05/2010,Payment of utilities,Defence Equipment & Support,TOTAL GAS & POWER LIMITED,641147,24207.41
Ministry of Defence,Ministry of Defence,14/05/2010,"Transporation of personnel, freight and travel expenses",Land Forces,ANNE KLEPS,5000034935,24188.69
Ministry of Defence,Ministry of Defence,28/05/2010,Medical treatment & stores and welfare services.,Air Command,CASTLEROCK RECRUITMENT GROUP LIMITED,642003,24179.6
Ministry of Defence,Ministry of Defence,18/05/2010,Fees for professional services,Land Forces,TWOFOUR COMMUNICATIONS LIMITED,636101,24104
Ministry of Defence,Defence Science and Technology Laboratory,07/05/2010,Sub Contracted Work,Operations,RISKAWARE LIMITED,V - 9000122624 - 00080208,23928.32
Ministry of Defence,Defence Science and Technology Laboratory,28/05/2010,Sub Contracted Work,Operations,VISUAL AUTOMATION LIMITED,V - 9000123267 - 00078563,23908
Ministry of Defence,Ministry of Defence,25/05/2010,"Transporation of personnel, freight and travel expenses",Land Forces,PLANT SPEED LIMITED,640214,23906.68
Ministry of Defence,Ministry of Defence,19/05/2010,Official entertainment and hospitality.,Central TLB,FOREIGN & COMMONWEALTH OFFICE,2.00E+11,23903.17
Ministry of Defence,Ministry of Defence,20/05/2010,Design services and minor equipment purchases,Air Command,VT LAND (WHITEFLEET MANAGEMENT) LTD,637513,23871.03
Ministry of Defence,Ministry of Defence,14/05/2010,Fees for professional services,Land Forces,CENTRAL OFFICE OF INFORMATION,2.00E+11,23729.95
Ministry of Defence,Defence Science and Technology Laboratory,07/05/2010,Sub Contracted Work,Operations,FLUID GRAVITY ENGINEERING LIMITED,V - 9000122628 - 00078857,23688
Ministry of Defence,Ministry of Defence,19/05/2010,Design services and minor equipment purchases,Defence Equipment & Support,JRA AEROSPACE LTD,636437,23672
Ministry of Defence,Ministry of Defence,21/05/2010,Estate management,Defence Equipment & Support,WYG MANAGEMENT SERVICES LIMITED,638396,23593.41
Ministry of Defence,Ministry of Defence,06/05/2010,Estate management,Defence Estates,DEBUT SERVICES (SOUTH WEST)LIMITED,629395,23587.56
Ministry of Defence,Ministry of Defence,20/05/2010,Food and clothing,Navy Command,TURNER VIRR & CO. LTD,637494,23565.29
Ministry of Defence,Ministry of Defence,07/05/2010,Design services and minor equipment purchases,Defence Equipment & Support,BAE SYSTEMS (OPERATIONS) LIMITED,630161,23519.41
Ministry of Defence,Ministry of Defence,20/05/2010,Purchase of inventory and services ,Land Forces,AAH PHARMACEUTICALS LTD,636889,23500.01
Ministry of Defence,Ministry of Defence,10/05/2010,"Purchase of munitions, other inventory or fuel",Defence Equipment & Support,WINCANTON GROUP LIMITED,631769,23446.74
Ministry of Defence,Ministry of Defence,10/05/2010,Purchase of inventory and services ,Defence Equipment & Support,AAH PHARMACEUTICALS LTD,631024,23316.69
Ministry of Defence,Ministry of Defence,17/05/2010,Fees for professional services,Central TLB,IBM UNITED KINGDOM LIMITED,635010,23301
Ministry of Defence,Ministry of Defence,04/05/2010,Purchase of inventory and services ,Land Forces,AAH PHARMACEUTICALS LTD,628009,23289.75
Ministry of Defence,Ministry of Defence,14/05/2010,Estate management,Land Forces,VIGIL SECURITY MANAGEMENT  LIMITED,634692,23270.28
Ministry of Defence,Defence Support Group,19/05/2010,Works - Fees,Large Aircraft,Carillion Enterprise Ltd,10113613,23249.58
Ministry of Defence,Defence Science and Technology Laboratory,28/05/2010,Materials & Equipment,Operations,GRIFF COMM LIMITED,V - 9000123232 - 00081270,23100
Ministry of Defence,Ministry of Defence,10/05/2010,Estate management,Air Command,ARAMARK LTD,631060,23013.51
Ministry of Defence,Ministry of Defence,25/05/2010,Purchase of buildings and military equipment ,Defence Estates,WYG MANAGEMENT SERVICES LIMITED,640409,23007.75
Ministry of Defence,Ministry of Defence,26/05/2010,Payment of utilities,Central TLB,TOTAL GAS & POWER LIMITED,641147,23005.42
Ministry of Defence,Defence Support Group,26/05/2010,Gas,Large Aircraft,TOTAL GAS & POWER LIMITED,10056172,22961.25
Ministry of Defence,Ministry of Defence,11/05/2010,Fees for professional services,Defence Equipment & Support,CORPORATE DOCUMENT SERVICES  LIMITED,631910,22933.87
Ministry of Defence,Defence Support Group,12/05/2010,Gas,Businesss Stream 1,TOTAL GAS & POWER LIMITED,10113493,22901.45
Ministry of Defence,Ministry of Defence,21/05/2010,Payment of utilities,Defence Equipment & Support,SSE ENERGY SUPPLY LIMITED,638247,22900.65
Ministry of Defence,Ministry of Defence,19/05/2010,Design services and minor equipment purchases,Land Forces,ARMY PARACHUTE AIRCRAFT COMPANY LIMITED,636176,22652.42
Ministry of Defence,Defence Science and Technology Laboratory,21/05/2010,Staff Training,Operations,BARCLAYCARD,G - 9000123135 - 00082571,22617.52
Ministry of Defence,Ministry of Defence,07/05/2010,Purchase of buildings and military equipment ,Defence Equipment & Support,SYSTEMS CONSULTANTS SERVICES  LIMITED,630916,22603.84
Ministry of Defence,Ministry of Defence,28/05/2010,Fees for professional services,Central TLB,CORPORATE DOCUMENT SERVICES  LIMITED,642027,22592.86
Ministry of Defence,Ministry of Defence,25/05/2010,Purchase of inventory and services ,Land Forces,FORBO FLOORING UK LIMITED,639922,22586.83
Ministry of Defence,Ministry of Defence,19/05/2010,Estate management,Air Command,QINETIQ LIMITED,636684,22520.05
Ministry of Defence,Ministry of Defence,20/05/2010,Purchase of buildings and military equipment ,Defence Estates,BUILDING DESIGN PARTNERSHIP  LIMITED,636984,22379.37
Ministry of Defence,Ministry of Defence,28/05/2010,Purchase of inventory and services ,Air Command,WF ELECTRICAL PLC,642627,22359.49
Ministry of Defence,Defence Science and Technology Laboratory,28/05/2010,Sub Contracted Work,Operations,QINETIQ LIMITED,V - 9000123283 - 00081575,22351.03
Ministry of Defence,Ministry of Defence,17/05/2010,Payment of utilities,Defence Equipment & Support,ESSO PETROLEUM COMPANY LIMITED,634946,22321.53
Ministry of Defence,Ministry of Defence,10/05/2010,Purchase of inventory and services ,Land Forces,XMA LTD,631776,22250.37
Ministry of Defence,Defence Science and Technology Laboratory,14/05/2010,Facility Management Costs,Corporate,ICS COMPUTING LIMITED,V - 9000122853 - 00079888,22224.9
Ministry of Defence,Ministry of Defence,12/05/2010,Payment of utilities,Land Forces,E.ON WESTFALEN WESE VETRIEB GMBH,5000034780,22179.9
Ministry of Defence,Ministry of Defence,13/05/2010,Fees for professional services,Defence Estates,CAPITA SYMONDS LTD,633314,22140.52
Ministry of Defence,Defence Science and Technology Laboratory,14/05/2010,Sub Contracted Work,Operations,QINETIQ LIMITED,V - 9000122900 - 00079915,22048.11
Ministry of Defence,Ministry of Defence,04/05/2010,"Transportation of personnel, freight and travel expenses",Land Forces,DHL GLOBAL FORWARDING (UK)  LIMITED,628145,22045.12
Ministry of Defence,Ministry of Defence,11/05/2010,Estate management,Air Command,AIRFIELD WILDLIFE MANAGEMENT  LIMITED,631794,21980.29
Ministry of Defence,Ministry of Defence,17/05/2010,Medical treatment & stores and welfare services.,Land Forces,YOUR WORLD RECRUITMENT LIMITED,635473,21925.55
Ministry of Defence,Ministry of Defence,19/05/2010,Transport hire charges,Navy Command,VT LAND (WHITEFLEET MANAGEMENT) LTD,636861,21885.71
Ministry of Defence,Defence Science and Technology Laboratory,14/05/2010,IT Hardware,Infrastructure,SAFECOM A/S,V - 0000001114 - 00062960,21867.5
Ministry of Defence,Ministry of Defence,28/05/2010,Fees for professional services,Central TLB,WYG MANAGEMENT SERVICES LIMITED,642632,21836.61
Ministry of Defence,Ministry of Defence,21/05/2010,Purchase of inventory and services ,Land Forces,XMA LTD,638399,21831.08
Ministry of Defence,Ministry of Defence,11/05/2010,Design services and minor equipment purchases,Land Forces,TURNER FACILITIES MANAGEMENT LTD,632382,21804.92
Ministry of Defence,Ministry of Defence,13/05/2010,Rent and rates,Central TLB,FOREIGN & COMMONWEALTH OFFICE,2.00E+11,21791
Ministry of Defence,Defence Science and Technology Laboratory,28/05/2010,Materials & Equipment,Operations,RETROTEC LIMITED,V - 9000123293 - 00082405,21739.35
Ministry of Defence,Ministry of Defence,07/05/2010,Purchase of inventory and services ,Defence Equipment & Support,HALE HAMILTON (VALVES) LTD,630430,21724.54
Ministry of Defence,Ministry of Defence,26/05/2010,Rent and rates,Central TLB,G J SUCKLING,640704,21715.5
Ministry of Defence,Ministry of Defence,28/05/2010,Food and clothing,Land Forces,COMPASS CONTRACT SERVICES (U K)LIMITED,136020,21685.23
Ministry of Defence,Ministry of Defence,04/05/2010,Purchase of inventory and services ,Land Forces,XMA LTD,628501,21664.39
Ministry of Defence,Ministry of Defence,17/05/2010,Payment of utilities,Land Forces,ESSO PETROLEUM COMPANY LIMITED,634946,21432.78
Ministry of Defence,Ministry of Defence,25/05/2010,Purchase of inventory and services ,Air Command,AAH PHARMACEUTICALS LTD,639714,21424.6
Ministry of Defence,Ministry of Defence,27/05/2010,"Transporation of personnel, freight and travel expenses",Navy Command,RAIL SETTLEMENT PLAN LIMITED,641696,21405.2
Ministry of Defence,Ministry of Defence,13/05/2010,Food and clothing,Navy Command,TURNER VIRR & CO. LTD,633890,21387.78
Ministry of Defence,Ministry of Defence,06/05/2010,Purchase of inventory and services ,Defence Equipment & Support,MSI-DEFENCE SYSTEMS LTD,629693,21290.3
Ministry of Defence,Ministry of Defence,10/05/2010,Purchase of inventory and services ,Land Forces,FORBO FLOORING UK LIMITED,631236,21193.44
Ministry of Defence,Ministry of Defence,10/05/2010,Fees for professional services,Defence Estates,GRONTMIJ GROUP LIMITED,631266,21083.09
Ministry of Defence,Ministry of Defence,06/05/2010,Estate management,Air Command,MOUCHEL MANAGEMENT CONSULTING LTD,135108,21009
Ministry of Defence,Ministry of Defence,20/05/2010,Fuel for military use,Land Forces,BP INTERNATIONAL LIMITED,2000008267,20902.83
Ministry of Defence,Ministry of Defence,19/05/2010,Payment of utilities,Defence Estates,BRITISH GAS TRADING LIMITED,636225,20899.73
Ministry of Defence,Ministry of Defence,27/05/2010,Payment of utilities,Defence Equipment & Support,GB OILS LIMITED,641454,20852.51
Ministry of Defence,Ministry of Defence,25/05/2010,Estate management,Air Command,SODEXO LTD,640286,20847.78
Ministry of Defence,Ministry of Defence,06/05/2010,Design services and minor equipment purchases,Land Forces,NEW PIG LTD,629706,20827.3
Ministry of Defence,Ministry of Defence,07/05/2010,Externally delivered education and training.,Land Forces,THE BRITISH SCHOOL OF MOTORING LIMITED,630937,20824
Ministry of Defence,Defence Science and Technology Laboratory,07/05/2010,Repairs & Maintenance,Operations,DETICA LIMITED,V - 9000122588 - 00078709,20755.42
Ministry of Defence,Ministry of Defence,28/05/2010,Estate management,Defence Estates,MODERN HOUSING SOLUTIONS (PRIME)LIMITED,642252,20734.39
Ministry of Defence,Ministry of Defence,10/05/2010,Purchase of inventory and services ,Command Joint Operations,FORBO FLOORING UK LIMITED,631236,20727.18
Ministry of Defence,Ministry of Defence,07/05/2010,Purchase of inventory and services ,Land Forces,AAH PHARMACEUTICALS LTD,630084,20662.21
Ministry of Defence,Ministry of Defence,06/05/2010,Fuel for military use,Air Command,PACE FUELCARE LIMITED,629780,20624.19
Ministry of Defence,Ministry of Defence,28/05/2010,Purchase of inventory and services ,Land Forces,XMA LTD,642634,20492.16
Ministry of Defence,Ministry of Defence,12/05/2010,Fuel for military use,Defence Equipment & Support,ARVAL UK LTD,632471,20472.88
Ministry of Defence,Ministry of Defence,05/05/2010,Purchase of inventory and services ,Defence Equipment & Support,SELEX GALILEO LTD,629076,20441.73
Ministry of Defence,Ministry of Defence,13/05/2010,Purchase of buildings and military equipment ,Defence Estates,JACOBS U.K. LTD,633513,20430
Ministry of Defence,Ministry of Defence,12/05/2010,IT and communication services,Central TLB,SERCO LIMITED,633058,20336.32
Ministry of Defence,Ministry of Defence,06/05/2010,Payment of utilities,Central TLB,SSE ENERGY SUPPLY LIMITED,629922,20333.6
Ministry of Defence,Ministry of Defence,11/05/2010,Estate management,Defence Estates,TPS CONSULT LTD,632373,20295
Ministry of Defence,Ministry of Defence,17/05/2010,IT and communication services,Command Joint Operations,CYTA,5000034981,20090.16
Ministry of Defence,Ministry of Defence,10/05/2010,Estate management,Air Command,VEOLIA ES (UK) LIMITED,631742,20017
Ministry of Defence,Ministry of Defence,24/05/2010,Fees for professional services,Land Forces,THE TREASURY SOLICITOR,638922,19998.8
Ministry of Defence,Ministry of Defence,26/05/2010,Estate management,Air Command,CHUBB SECURITY PERSONNEL LIMITED,640576,19958.18
Ministry of Defence,Ministry of Defence,20/05/2010,Fees for professional services,Land Forces,ELAN COMPUTING LTD,637084,19930
Ministry of Defence,Ministry of Defence,17/05/2010,Purchase of inventory and services ,Land Forces,UNIPART GROUP LIMITED,635436,19909.56
Ministry of Defence,Ministry of Defence,05/05/2010,Purchase of buildings and military equipment ,Navy Command,DEBUT SERVICES (SOUTH WEST)LIMITED,628675,19907.31
Ministry of Defence,Ministry of Defence,12/05/2010,Payment of utilities,Land Forces,ESSO PETROLEUM COMPANY LIMITED,632663,19889.99
Ministry of Defence,Ministry of Defence,07/05/2010,Purchase of inventory and services ,Land Forces,XMA LTD,631015,19803.14
Ministry of Defence,Ministry of Defence,19/05/2010,"Transporation of personnel, freight and travel expenses",Air Command,DHL GLOBAL FORWARDING (UK)  LIMITED,636292,19782.34
Ministry of Defence,Ministry of Defence,17/05/2010,Fees for professional services,Land Forces,BOWLES SECURITY SERVICES (UK)  LIMITED,634814,19764
Ministry of Defence,Ministry of Defence,05/05/2010,"Transportation of personnel, freight and travel expenses",Central TLB,CARTUS LTD,628635,19720.05
Ministry of Defence,Ministry of Defence,11/05/2010,"Transportation of personnel, freight and travel expenses",Air Command,CITYSPRINT (UK) LIMITED,631904,19520.59
Ministry of Defence,Ministry of Defence,19/05/2010,Externally delivered education and training.,Central TLB,BRAY LEINO LIMITED,636221,19513.19
Ministry of Defence,Ministry of Defence,25/05/2010,Purchase of inventory and services ,Air Command,FORBO FLOORING UK LIMITED,639922,19450.2
Ministry of Defence,Ministry of Defence,25/05/2010,Medical treatment & stores and welfare services.,Air Command,CASTLEROCK RECRUITMENT GROUP LIMITED,639823,19330.71
Ministry of Defence,Ministry of Defence,07/05/2010,Purchase of inventory and services ,Defence Equipment & Support,CENTRAL MANAGEMENT CATALOGUE AGENCY (U K) LTD,630255,19199.21
Ministry of Defence,Ministry of Defence,17/05/2010,Transport hire charges,Command Joint Operations,VT LAND (WHITEFLEET MANAGEMENT) LTD,635452,19106.27
Ministry of Defence,Ministry of Defence,04/05/2010,Fees for professional services,Land Forces,CHUBB SECURITY PERSONNEL LIMITED,628112,19103.97
Ministry of Defence,Ministry of Defence,26/05/2010,Fees for professional services,Land Forces,CHUBB SECURITY PERSONNEL LIMITED,640576,19103.97
Ministry of Defence,Ministry of Defence,20/05/2010,Fees for professional services,Defence Estates,SCOTT WILSON LTD,637389,19102.39
Ministry of Defence,Ministry of Defence,10/05/2010,Purchase of inventory and services ,Air Command,AAH PHARMACEUTICALS LTD,631024,19097.65
Ministry of Defence,Ministry of Defence,06/05/2010,Fees for professional services,Central TLB,CORPORATE DOCUMENT SERVICES  LIMITED,629376,18808.01
Ministry of Defence,Ministry of Defence,11/05/2010,Design services and minor equipment purchases,Air Command,VT LAND (WHITEFLEET MANAGEMENT) LTD,632400,18697.53
Ministry of Defence,Ministry of Defence,06/05/2010,Externally delivered education and training.,Land Forces,SANDY ARTHUR TRAINING SERVICES LIMITED,29093,18690
Ministry of Defence,Ministry of Defence,11/05/2010,Purchase of inventory and services ,Air Command,BOC LIMITED,631848,18666.03
Ministry of Defence,Ministry of Defence,07/05/2010,Transport hire charges,Navy Command,VT LAND (WHITEFLEET MANAGEMENT) LTD,630994,18595.09
Ministry of Defence,Ministry of Defence,19/05/2010,Fees for professional services,Central TLB,BRAY LEINO LIMITED,636221,18562.85
Ministry of Defence,Ministry of Defence,06/05/2010,Research and development,Central TLB,DEFENCE SCIENCE & TECHNOLOGY LABORATORY,629398,18387.9
Ministry of Defence,Ministry of Defence,10/05/2010,Design services and minor equipment purchases,Defence Equipment & Support,STELLA-META  LIMITED,631674,18387.29
Ministry of Defence,Ministry of Defence,28/05/2010,"Transporation of personnel, freight and travel expenses",Air Command,DHL GLOBAL FORWARDING (UK)  LIMITED,642054,18357.33
Ministry of Defence,Defence Support Group,12/05/2010,Gas,Business Stream 1,THE ACCOUNTING OFFIC,424049,18250.16
Ministry of Defence,Ministry of Defence,07/05/2010,Estate management,Land Forces,COMPASS CONTRACT SERVICES (U K)LIMITED,630279,18233.53
Ministry of Defence,Ministry of Defence,11/05/2010,Design services and minor equipment purchases,Defence Equipment & Support,RAYTHEON SYSTEMS LIMITED,632249,18203.02
Ministry of Defence,Defence Support Group,25/05/2010,FM Contract var chgs,Business Stream 2,CARILLION (AMBS) LTD,426554,18060.51
Ministry of Defence,Ministry of Defence,06/05/2010,Purchase of inventory and services ,Command Joint Operations,AAH PHARMACEUTICALS LTD,629212,18057.17
Ministry of Defence,Ministry of Defence,24/05/2010,Rent and rates,Land Forces,QINETIQ LIMITED,638815,17797.73
Ministry of Defence,Ministry of Defence,19/05/2010,Fees for professional services,Land Forces,MITIE SECURITY LIMITED,636479,17772.88
Ministry of Defence,Ministry of Defence,06/05/2010,Payment of utilities,Land Forces,BRITISH GAS TRADING LIMITED,629323,17761
Ministry of Defence,Defence Science and Technology Laboratory,21/05/2010,Consumable Materials,Operations,BARCLAYCARD,G - 9000123135 - 00082571,17719.26
Ministry of Defence,Ministry of Defence,28/05/2010,Design services and minor equipment purchases,Defence Equipment & Support,VT LAND (WHITEFLEET MANAGEMENT) LTD,642620,17714.35
Ministry of Defence,Ministry of Defence,06/05/2010,Purchase of inventory and services ,Land Forces,BOC LIMITED,629306,17708.62
Ministry of Defence,Ministry of Defence,13/05/2010,Estate management,Defence Estates,INTERSERVE (DEFENCE) LTD,5000034897,17655.91
Ministry of Defence,Ministry of Defence,20/05/2010,Estate management,Defence Estates,SCOTT WILSON LTD,637389,17616.01
Ministry of Defence,Defence Support Group,25/05/2010,FM Contract var chgs,Business Stream 2,CARILLION (AMBS) LTD,426555,17611.92
Ministry of Defence,Ministry of Defence,06/05/2010,Purchase of inventory and services ,Defence Equipment & Support,NORTHERN DIVER (INTERNATIONAL) LTD,629752,17557.36
Ministry of Defence,Ministry of Defence,19/05/2010,"Transporation of personnel, freight and travel expenses",Defence Equipment & Support,DHL GLOBAL FORWARDING (UK)  LIMITED,636292,17548.75
Ministry of Defence,Ministry of Defence,04/05/2010,Purchase of inventory and services ,Air Command,FORBO FLOORING UK LIMITED,628194,17524.23
Ministry of Defence,Ministry of Defence,21/05/2010,Payments on behalf of Defence Support Group,Central TLB,TOTAL GAS & POWER LIMITED,638312,17482.45
Ministry of Defence,Ministry of Defence,10/05/2010,Purchase of inventory and services ,Land Forces,CANON (UK) LIMITED,631113,17449.5
Ministry of Defence,Defence Science and Technology Laboratory,21/05/2010,Consumable Materials,Corporate,BARCLAYCARD,G - 9000123135 - 00082570,17432.83
Ministry of Defence,Ministry of Defence,12/05/2010,Estate management,Air Command,ARAMARK LTD,632469,17371.26
Ministry of Defence,Ministry of Defence,18/05/2010,Payment of utilities,Navy Command,GB OILS LIMITED,635693,17337.81
Ministry of Defence,Ministry of Defence,13/05/2010,Design services and minor equipment purchases,Defence Equipment & Support,DEFENCE SUPPORT GROUP  (DSG),633369,17335.42
Ministry of Defence,Ministry of Defence,28/05/2010,Estate management,Land Forces,SODEXO LTD,642505,17302.05
Ministry of Defence,Ministry of Defence,14/05/2010,Transport hire charges,Navy Command,VT LAND (WHITEFLEET MANAGEMENT) LTD,634697,17263.26
Ministry of Defence,Ministry of Defence,17/05/2010,Estate management,Land Forces,BOWLES SECURITY SERVICES (UK)  LIMITED,634814,17254.41
Ministry of Defence,Ministry of Defence,13/05/2010,"Purchase of munitions, other inventory or fuel",Land Forces,TOTAL UK LIMITED,633881,17214.14
Ministry of Defence,Ministry of Defence,13/05/2010,Fees for professional services,Defence Equipment & Support,WILLIS LIMITED,633927,17159.99
Ministry of Defence,Ministry of Defence,20/05/2010,Purchase of inventory and services ,Air Command,L WHITAKER & SONS (1983) LIMITED,637177,17159
Ministry of Defence,Ministry of Defence,12/05/2010,Design services and minor equipment purchases,Land Forces,VT LAND (WHITEFLEET MANAGEMENT) LTD,633178,17010.52
Ministry of Defence,Ministry of Defence,06/05/2010,Purchase of inventory and services ,Command Joint Operations,BOC LIMITED,629306,16966.58
Ministry of Defence,Ministry of Defence,14/05/2010,"Transporation of personnel, freight and travel expenses",Central TLB,DHL GLOBAL FORWARDING (UK)  LIMITED,634132,16906.94
Ministry of Defence,Ministry of Defence,25/05/2010,Estate management,Defence Estates,SODEXO LTD,640286,16869.99
Ministry of Defence,Ministry of Defence,20/05/2010,Purchase of inventory and services ,Land Forces,L WHITAKER & SONS (1983) LIMITED,637177,16639.31
Ministry of Defence,Ministry of Defence,18/05/2010,Estate management,Air Command,CARILLIONENTERPRISE LIMITED,635579,16524.16
Ministry of Defence,Ministry of Defence,05/05/2010,Design services and minor equipment purchases,Defence Equipment & Support,SELEX GALILEO LTD,629076,16389.93
Ministry of Defence,Ministry of Defence,20/05/2010,Purchase of inventory and services ,Land Forces,XMA LTD,637532,16336.06
Ministry of Defence,Ministry of Defence,21/05/2010,Estate management,Air Command,SAFESKYS LTD,638180,16227.26
Ministry of Defence,Ministry of Defence,20/05/2010,Purchase of inventory and services ,Land Forces,BUNZL UK LIMITED,636985,16147.33
Ministry of Defence,Ministry of Defence,05/05/2010,Purchase of inventory and services ,Land Forces,AAH PHARMACEUTICALS LTD,628508,15980.79
Ministry of Defence,Ministry of Defence,21/05/2010,Estate management,Air Command,AVENANCE PLC,637581,15939.39
Ministry of Defence,Ministry of Defence,11/05/2010,Payment of utilities,Defence Equipment & Support,SSE ENERGY SUPPLY LIMITED,632317,15909.62
Ministry of Defence,Ministry of Defence,25/05/2010,Fuel for military use,Defence Equipment & Support,ARVAL UK LTD,639749,15724.73
Ministry of Defence,Ministry of Defence,10/05/2010,Purchase of inventory and services ,Defence Equipment & Support,KASHKET & PARTNERS LIMITED,631322,15703.01
Ministry of Defence,Ministry of Defence,10/05/2010,Purchase of inventory and services ,Air Command,BOC LIMITED,631094,15571.7
Ministry of Defence,Defence Science and Technology Laboratory,14/05/2010,Professional Services,Operations,CLOVER SHIPPING COMPANY LIMITED,V - 0000001106 - 00081061,15542.32
Ministry of Defence,Ministry of Defence,25/05/2010,Purchase of inventory and services ,Land Forces,LYRECO UK LTD,640017,15493.94
Ministry of Defence,Ministry of Defence,06/05/2010,Fuel for military use,Navy Command,PACE FUELCARE LIMITED,629780,15493.43
Ministry of Defence,Ministry of Defence,28/05/2010,Purchase of inventory and services ,Command Joint Operations,WF ELECTRICAL PLC,642627,15457.14
Ministry of Defence,Ministry of Defence,24/05/2010,Fees for professional services,Central TLB,SERCO LIMITED,638859,15446.34
Ministry of Defence,Ministry of Defence,12/05/2010,Estate management,Land Forces,SODEXO LTD,633072,15405.95
Ministry of Defence,Ministry of Defence,18/05/2010,Purchase of inventory and services ,Land Forces,XMA LTD,636140,15405.1
Ministry of Defence,Ministry of Defence,27/05/2010,Purchase of inventory and services ,Land Forces,BUNZL UK LIMITED,641316,15405.01
Ministry of Defence,Ministry of Defence,24/05/2010,Miscellaneous Administration Costs,Land Forces,CANON (UK) LIMITED,638481,15383.45
Ministry of Defence,Ministry of Defence,13/05/2010,Fuel for military use,Air Command,EXXONMOBIL PETROLEUM & CHEMICAL BVBA,2000008191,15375.03
Ministry of Defence,Ministry of Defence,27/05/2010,Transport hire charges,Defence Equipment & Support,VT LAND (WHITEFLEET MANAGEMENT) LTD,641860,15347.24
Ministry of Defence,Ministry of Defence,28/05/2010,Design services and minor equipment purchases,Air Command,VT LAND (WHITEFLEET MANAGEMENT) LTD,642620,15326.11
Ministry of Defence,Ministry of Defence,25/05/2010,"Transporation of personnel, freight and travel expenses",Land Forces,DAVID MOULAND HAULAGE LIMITED,639856,15300
Ministry of Defence,Ministry of Defence,04/05/2010,Purchase of inventory and services ,Navy Command,AAH PHARMACEUTICALS LTD,628009,15172.24
Ministry of Defence,Ministry of Defence,06/05/2010,Purchase of inventory and services ,Defence Equipment & Support,DEFENCE SCIENCE & TECHNOLOGY LABORATORY,629398,15091.92
Ministry of Defence,Ministry of Defence,28/05/2010,Medical treatment & stores and welfare services.,Central TLB,FOREIGN & COMMONWEALTH OFFICE,2.00E+11,14955.43
Ministry of Defence,Ministry of Defence,25/05/2010,Estate management,Land Forces,COMPASS CONTRACT SERVICES (U K)LIMITED,639844,14915.14
Ministry of Defence,Ministry of Defence,05/05/2010,Purchase of inventory and services ,Land Forces,XMA LTD,629200,14887.89
Ministry of Defence,Ministry of Defence,07/05/2010,Purchase of inventory and services ,Air Command,AAH PHARMACEUTICALS LTD,630084,14883.41
Ministry of Defence,Ministry of Defence,28/05/2010,Purchase of inventory and services ,Air Command,AAH PHARMACEUTICALS LTD,641883,14776.8
Ministry of Defence,Ministry of Defence,14/05/2010,Transport hire charges,Defence Equipment & Support,VT LAND (WHITEFLEET MANAGEMENT) LTD,634697,14715.08
Ministry of Defence,Ministry of Defence,13/05/2010,Purchase of inventory and services ,Land Forces,LYRECO UK LTD,633548,14678.24
Ministry of Defence,Ministry of Defence,27/05/2010,Payment of utilities,Navy Command,TOTAL GAS & POWER LIMITED,641829,14608.47
Ministry of Defence,Ministry of Defence,20/05/2010,Medical treatment & stores and welfare services.,Air Command,HCL HEALTHCARE LIMITED,637134,14596.98
Ministry of Defence,Ministry of Defence,14/05/2010,Estate management,Defence Estates,SERCO LIMITED,634577,14408.12
Ministry of Defence,Ministry of Defence,14/05/2010,Purchase of inventory and services ,Air Command,XMA LTD,634723,14385.56
Ministry of Defence,Ministry of Defence,11/05/2010,Fees for professional services,Land Forces,CORPORATE DOCUMENT SERVICES  LIMITED,631910,14284.72
Ministry of Defence,Ministry of Defence,19/05/2010,Purchase of inventory and services ,Land Forces,AAH PHARMACEUTICALS LTD,636147,14264.96
Ministry of Defence,Ministry of Defence,06/05/2010,Design services and minor equipment purchases,Defence Equipment & Support,QINETIQ LIMITED,629828,14253.07
Ministry of Defence,Ministry of Defence,06/05/2010,IT and communication services,Navy Command,DEFENCE SCIENCE & TECHNOLOGY LABORATORY,629398,14250.42
Ministry of Defence,Ministry of Defence,17/05/2010,Purchase of inventory and services ,Land Forces,XMA LTD,635470,14216.88
